Publisher Label,Publisher URI,"Directorate code","Directorate","Service code","Service","Revenue or capital code","Revenue capital","Cost centre","Cost centre description","Bvsub Category","Bvsub description","Bvsum code","Bvsum description","Account code","Account description","Transaction No","Period","Transaction Date","Amount","Classification code","Classification description","Supplier ID","Supplier description","Company registration number","Company registration number Uri","VAT registration number"
"London Borough of Redbridge","http://opendatacommunities.org/doc/london-borough-council/redbridge","6BADULTSOCIA","Adult Social Care","6CADLEARNDIS","Adults Under 65 with Learning Disabilities","REV","Revenue","R4185","LD - Supported Living","09-INCOME","Income","09C","Customer and Client Receipts","8553","Care Package Charges","90926463","201811",23/01/2018 00:00:00,-271.65,"1266","Accommodation Agencies - Residential","REDACTED DATA","SPENCER & ARLINGTON LTD","4377774","http://opencorporates.com/companies/gb/4377774",""
"London Borough of Redbridge","http://opendatacommunities.org/doc/london-borough-council/redbridge","6BADULTSOCIA","Adult Social Care","6CADLEARNDIS","Adults Under 65 with Learning Disabilities","REV","Revenue","R4185","LD - Supported Living","09-INCOME","Income","09C","Customer and Client Receipts","8553","Care Package Charges","90926463","201811",23/01/2018 00:00:00,-131.71,"1266","Accommodation Agencies - Residential","REDACTED DATA","SPENCER & ARLINGTON LTD","4377774","http://opencorporates.com/companies/gb/4377774",""
"London Borough of Redbridge","http://opendatacommunities.org/doc/london-borough-council/redbridge","1BOTHEROPI&E","Other Operating Income & Expenditure","1CTRADSURDEF","Trading Account Surpluses & Deficits","REV","Revenue","R9568","Corporate Landlord","04-SUPPLIES","Supplies And Services","04H","Grants and subscriptions","5955","Fees","60365487","201811",31/01/2018 00:00:00,3792.36,"42230","Health and Safety Consultants","REDACTED DATA","PELLINGS LLP","OC326178","http://opencorporates.com/companies/gb/OC326178","299349688"
"London Borough of Redbridge","http://opendatacommunities.org/doc/london-borough-council/redbridge","6BADULTSOCIA","Adult Social Care","6CADLEARNDIS","Adults Under 65 with Learning Disabilities","REV","Revenue","R4185","LD - Supported Living","06-TRANSFER","Transfer Payments","06B","Social Services Clients","7066","Supportive Lodgings (Transfer Payments)","90926467","201811",23/01/2018 00:00:00,4517.14,"64710","Residential Care Homes","REDACTED DATA","TOPAZ CARE AND SUPPORT","10246406","http://opencorporates.com/companies/gb/10246406",""
"London Borough of Redbridge","http://opendatacommunities.org/doc/london-borough-council/redbridge","6BADULTSOCIA","Adult Social Care","6CADLEARNDIS","Adults Under 65 with Learning Disabilities","REV","Revenue","R4185","LD - Supported Living","09-INCOME","Income","09C","Customer and Client Receipts","8553","Care Package Charges","90926467","201811",23/01/2018 00:00:00,8.08,"64710","Residential Care Homes","REDACTED DATA","TOPAZ CARE AND SUPPORT","10246406","http://opencorporates.com/companies/gb/10246406",""
"London Borough of Redbridge","http://opendatacommunities.org/doc/london-borough-council/redbridge","4BPUBLICTRAN","Public Transport","4CPARKING","Parking Services","REV","Revenue","R7037","Attendants Parking Enforcement","04-SUPPLIES","Supplies And Services","04H","Grants and subscriptions","5954","Professional Fees","60367563","201811",22/02/2018 00:00:00,3764,"79980","Training Services","REDACTED DATA","ALPHA PARKING LTD","5246532","http://opencorporates.com/companies/gb/5246532","853212841"
"London Borough of Redbridge","http://opendatacommunities.org/doc/london-borough-council/redbridge","1BCENTRALPUB","Central Services to the Public","1CTRADSURDEF","Trading Account Surpluses & Deficits","REV","Revenue","R3971","Local London Director","01-EMPLOYEES","Employees","01A","Direct employee expenses","4","Agency Staff - Pay","60365075","201810",26/01/2018 00:00:00,3764,"31230","Employment and Recruitment Agencies","REDACTED DATA","GATENBY SANDERSON LTD","4451141","http://opencorporates.com/companies/gb/4451141","804465047"
"London Borough of Redbridge","http://opendatacommunities.org/doc/london-borough-council/redbridge","6BPUBHEALTH","Public Health","6CSEXHEALTH","Sexual Health","REV","Revenue","R4804","STI Testing & Treatment","05-THIRD","Third Party Payments","05D","Health authorities","6703","Hospital Trusts","70099899","201811",28/11/2017 00:00:00,4510,"42200","Health Authorities","REDACTED DATA","IMPERIAL COLLEGE HEALTHCARE NHS TRUST","",,"654945990"
"London Borough of Redbridge","http://opendatacommunities.org/doc/london-borough-council/redbridge","2BENVIRONMEN","Environmental Services","2CENVTLHEALT","Environmental Health","REV","Revenue","R6765","Pest Control","04-SUPPLIES","Supplies And Services","04K","Miscellaneous expenses","6216","Contract","60367179","201811",31/01/2018 00:00:00,3753.8,"57130","Pest and Vermin Control Products","REDACTED DATA","SDK ENVIRONMENTAL LTD","3988788","http://opencorporates.com/companies/gb/3988788","388966174"
"London Borough of Redbridge","http://opendatacommunities.org/doc/london-borough-council/redbridge","4BMANGT&SUPP","Management & Support Services","4CHIGHRDROUT","Highways/Roads (Routine)","REV","Revenue","R7079","Highways and Transportation Management","01-EMPLOYEES","Employees","01B","Indirect employee expenses","2403","External Training","60367288","201811",29/09/2017 00:00:00,4500,"79980","Training Services","REDACTED DATA","LONDON SOUTH BANK UNIVERSITY","986761","http://opencorporates.com/companies/gb/986761","778111617"
"London Borough of Redbridge","http://opendatacommunities.org/doc/london-borough-council/redbridge","3BNONSCHFUND","Non-School Funding","6CCHILLOOKED","Children Looked After","REV","Revenue","R2238","Looked After Children Placements LA","05-THIRD","Third Party Payments","05H","Private contractors","6917","Fostering Costs - Agency","60360023","201811",01/12/2017 00:00:00,4481.58,"1880","Adoption and Fostering","REDACTED DATA","BY THE BRIDGE","4050928","http://opencorporates.com/companies/gb/4050928",""
"London Borough of Redbridge","http://opendatacommunities.org/doc/london-borough-council/redbridge","5BGFHOUSING","General Fund Housing","5CHOMELESS","Homelessness","REV","Revenue","R5630","HAC Temporary Accomodation","05-THIRD","Third Party Payments","05H","Private contractors","6900","Nightly Let Plus Charges","3501997","201811",04/02/2018 00:00:00,1705,"31230","Employment and Recruitment Agencies","REDACTED DATA","ADAM HTT LIMITED T/A ADAM","7718565","http://opencorporates.com/companies/gb/7718565","198573349"
"London Borough of Redbridge","http://opendatacommunities.org/doc/london-borough-council/redbridge","5BGFHOUSING","General Fund Housing","5CHOMELESS","Homelessness","REV","Revenue","R5630","HAC Temporary Accomodation","05-THIRD","Third Party Payments","05H","Private contractors","6900","Nightly Let Plus Charges","3501997","201811",04/02/2018 00:00:00,2015,"31230","Employment and Recruitment Agencies","REDACTED DATA","ADAM HTT LIMITED T/A ADAM","7718565","http://opencorporates.com/companies/gb/7718565","198573349"
"London Borough of Redbridge","http://opendatacommunities.org/doc/london-borough-council/redbridge","5BGFHOUSING","General Fund Housing","5CHOMELESS","Homelessness","REV","Revenue","R5630","HAC Temporary Accomodation","05-THIRD","Third Party Payments","05H","Private contractors","6900","Nightly Let Plus Charges","3501997","201811",04/02/2018 00:00:00,1395,"31230","Employment and Recruitment Agencies","REDACTED DATA","ADAM HTT LIMITED T/A ADAM","7718565","http://opencorporates.com/companies/gb/7718565","198573349"
"London Borough of Redbridge","http://opendatacommunities.org/doc/london-borough-council/redbridge","5BGFHOUSING","General Fund Housing","5CHOMELESS","Homelessness","REV","Revenue","R5630","HAC Temporary Accomodation","05-THIRD","Third Party Payments","05H","Private contractors","6900","Nightly Let Plus Charges","3501997","201811",25/01/2018 00:00:00,900,"31230","Employment and Recruitment Agencies","REDACTED DATA","ADAM HTT LIMITED T/A ADAM","7718565","http://opencorporates.com/companies/gb/7718565","198573349"
"London Borough of Redbridge","http://opendatacommunities.org/doc/london-borough-council/redbridge","5BGFHOUSING","General Fund Housing","5CHOMELESS","Homelessness","REV","Revenue","R5630","HAC Temporary Accomodation","05-THIRD","Third Party Payments","05H","Private contractors","6900","Nightly Let Plus Charges","3501997","201811",25/01/2018 00:00:00,930,"31230","Employment and Recruitment Agencies","REDACTED DATA","ADAM HTT LIMITED T/A ADAM","7718565","http://opencorporates.com/companies/gb/7718565","198573349"
"London Borough of Redbridge","http://opendatacommunities.org/doc/london-borough-council/redbridge","5BGFHOUSING","General Fund Housing","5CHOMELESS","Homelessness","REV","Revenue","R5630","HAC Temporary Accomodation","05-THIRD","Third Party Payments","05H","Private contractors","6900","Nightly Let Plus Charges","3501997","201811",04/02/2018 00:00:00,1395,"31230","Employment and Recruitment Agencies","REDACTED DATA","ADAM HTT LIMITED T/A ADAM","7718565","http://opencorporates.com/companies/gb/7718565","198573349"
"London Borough of Redbridge","http://opendatacommunities.org/doc/london-borough-council/redbridge","5BGFHOUSING","General Fund Housing","5CHOMELESS","Homelessness","REV","Revenue","R5630","HAC Temporary Accomodation","05-THIRD","Third Party Payments","05H","Private contractors","6900","Nightly Let Plus Charges","3501997","201811",04/02/2018 00:00:00,1395,"31230","Employment and Recruitment Agencies","REDACTED DATA","ADAM HTT LIMITED T/A ADAM","7718565","http://opencorporates.com/companies/gb/7718565","198573349"
"London Borough of Redbridge","http://opendatacommunities.org/doc/london-borough-council/redbridge","5BGFHOUSING","General Fund Housing","5CHOMELESS","Homelessness","REV","Revenue","R5630","HAC Temporary Accomodation","05-THIRD","Third Party Payments","05H","Private contractors","6900","Nightly Let Plus Charges","3501997","201811",04/02/2018 00:00:00,1116,"31230","Employment and Recruitment Agencies","REDACTED DATA","ADAM HTT LIMITED T/A ADAM","7718565","http://opencorporates.com/companies/gb/7718565","198573349"
"London Borough of Redbridge","http://opendatacommunities.org/doc/london-borough-council/redbridge","5BGFHOUSING","General Fund Housing","5CHOMELESS","Homelessness","REV","Revenue","R5630","HAC Temporary Accomodation","05-THIRD","Third Party Payments","05H","Private contractors","6900","Nightly Let Plus Charges","3501997","201811",04/02/2018 00:00:00,1441.5,"31230","Employment and Recruitment Agencies","REDACTED DATA","ADAM HTT LIMITED T/A ADAM","7718565","http://opencorporates.com/companies/gb/7718565","198573349"
"London Borough of Redbridge","http://opendatacommunities.org/doc/london-borough-council/redbridge","5BGFHOUSING","General Fund Housing","5CHOMELESS","Homelessness","REV","Revenue","R5630","HAC Temporary Accomodation","05-THIRD","Third Party Payments","05H","Private contractors","6900","Nightly Let Plus Charges","3501997","201811",04/02/2018 00:00:00,713,"31230","Employment and Recruitment Agencies","REDACTED DATA","ADAM HTT LIMITED T/A ADAM","7718565","http://opencorporates.com/companies/gb/7718565","198573349"
"London Borough of Redbridge","http://opendatacommunities.org/doc/london-borough-council/redbridge","5BGFHOUSING","General Fund Housing","5CHOMELESS","Homelessness","REV","Revenue","R5630","HAC Temporary Accomodation","05-THIRD","Third Party Payments","05H","Private contractors","6900","Nightly Let Plus Charges","3501997","201811",04/02/2018 00:00:00,1426,"31230","Employment and Recruitment Agencies","REDACTED DATA","ADAM HTT LIMITED T/A ADAM","7718565","http://opencorporates.com/companies/gb/7718565","198573349"
"London Borough of Redbridge","http://opendatacommunities.org/doc/london-borough-council/redbridge","5BGFHOUSING","General Fund Housing","5CHOMELESS","Homelessness","REV","Revenue","R5630","HAC Temporary Accomodation","05-THIRD","Third Party Payments","05H","Private contractors","6900","Nightly Let Plus Charges","3501997","201811",04/02/2018 00:00:00,870.17,"31230","Employment and Recruitment Agencies","REDACTED DATA","ADAM HTT LIMITED T/A ADAM","7718565","http://opencorporates.com/companies/gb/7718565","198573349"
"London Borough of Redbridge","http://opendatacommunities.org/doc/london-borough-council/redbridge","5BGFHOUSING","General Fund Housing","5CHOMELESS","Homelessness","REV","Revenue","R5630","HAC Temporary Accomodation","05-THIRD","Third Party Payments","05H","Private contractors","6900","Nightly Let Plus Charges","3501997","201811",04/02/2018 00:00:00,810.65,"31230","Employment and Recruitment Agencies","REDACTED DATA","ADAM HTT LIMITED T/A ADAM","7718565","http://opencorporates.com/companies/gb/7718565","198573349"
"London Borough of Redbridge","http://opendatacommunities.org/doc/london-borough-council/redbridge","5BGFHOUSING","General Fund Housing","5CHOMELESS","Homelessness","REV","Revenue","R5630","HAC Temporary Accomodation","05-THIRD","Third Party Payments","05H","Private contractors","6900","Nightly Let Plus Charges","3501997","201811",04/02/2018 00:00:00,1098.33,"31230","Employment and Recruitment Agencies","REDACTED DATA","ADAM HTT LIMITED T/A ADAM","7718565","http://opencorporates.com/companies/gb/7718565","198573349"
"London Borough of Redbridge","http://opendatacommunities.org/doc/london-borough-council/redbridge","5BGFHOUSING","General Fund Housing","5CHOMELESS","Homelessness","REV","Revenue","R5630","HAC Temporary Accomodation","05-THIRD","Third Party Payments","05H","Private contractors","6900","Nightly Let Plus Charges","3501997","201811",29/01/2018 00:00:00,930,"31230","Employment and Recruitment Agencies","REDACTED DATA","ADAM HTT LIMITED T/A ADAM","7718565","http://opencorporates.com/companies/gb/7718565","198573349"
"London Borough of Redbridge","http://opendatacommunities.org/doc/london-borough-council/redbridge","5BGFHOUSING","General Fund Housing","5CHOMELESS","Homelessness","REV","Revenue","R5630","HAC Temporary Accomodation","05-THIRD","Third Party Payments","05H","Private contractors","6900","Nightly Let Plus Charges","3501997","201811",25/01/2018 00:00:00,930,"31230","Employment and Recruitment Agencies","REDACTED DATA","ADAM HTT LIMITED T/A ADAM","7718565","http://opencorporates.com/companies/gb/7718565","198573349"
"London Borough of Redbridge","http://opendatacommunities.org/doc/london-borough-council/redbridge","5BGFHOUSING","General Fund Housing","5CHOMELESS","Homelessness","REV","Revenue","R5630","HAC Temporary Accomodation","05-THIRD","Third Party Payments","05H","Private contractors","6900","Nightly Let Plus Charges","3501997","201811",04/02/2018 00:00:00,1674,"31230","Employment and Recruitment Agencies","REDACTED DATA","ADAM HTT LIMITED T/A ADAM","7718565","http://opencorporates.com/companies/gb/7718565","198573349"
"London Borough of Redbridge","http://opendatacommunities.org/doc/london-borough-council/redbridge","5BGFHOUSING","General Fund Housing","5CHOMELESS","Homelessness","REV","Revenue","R5630","HAC Temporary Accomodation","05-THIRD","Third Party Payments","05H","Private contractors","6900","Nightly Let Plus Charges","3501997","201811",04/02/2018 00:00:00,1085,"31230","Employment and Recruitment Agencies","REDACTED DATA","ADAM HTT LIMITED T/A ADAM","7718565","http://opencorporates.com/companies/gb/7718565","198573349"
"London Borough of Redbridge","http://opendatacommunities.org/doc/london-borough-council/redbridge","5BGFHOUSING","General Fund Housing","5CHOMELESS","Homelessness","REV","Revenue","R5630","HAC Temporary Accomodation","05-THIRD","Third Party Payments","05H","Private contractors","6900","Nightly Let Plus Charges","3501997","201811",06/02/2018 00:00:00,-1395,"31230","Employment and Recruitment Agencies","REDACTED DATA","ADAM HTT LIMITED T/A ADAM","7718565","http://opencorporates.com/companies/gb/7718565","198573349"
"London Borough of Redbridge","http://opendatacommunities.org/doc/london-borough-council/redbridge","5BGFHOUSING","General Fund Housing","5CHOMELESS","Homelessness","REV","Revenue","R5630","HAC Temporary Accomodation","05-THIRD","Third Party Payments","05H","Private contractors","6900","Nightly Let Plus Charges","3501997","201811",04/02/2018 00:00:00,899,"31230","Employment and Recruitment Agencies","REDACTED DATA","ADAM HTT LIMITED T/A ADAM","7718565","http://opencorporates.com/companies/gb/7718565","198573349"
"London Borough of Redbridge","http://opendatacommunities.org/doc/london-borough-council/redbridge","5BGFHOUSING","General Fund Housing","5CHOMELESS","Homelessness","REV","Revenue","R5630","HAC Temporary Accomodation","05-THIRD","Third Party Payments","05H","Private contractors","6900","Nightly Let Plus Charges","3501997","201811",04/02/2018 00:00:00,1550,"31230","Employment and Recruitment Agencies","REDACTED DATA","ADAM HTT LIMITED T/A ADAM","7718565","http://opencorporates.com/companies/gb/7718565","198573349"
"London Borough of Redbridge","http://opendatacommunities.org/doc/london-borough-council/redbridge","5BGFHOUSING","General Fund Housing","5CHOMELESS","Homelessness","REV","Revenue","R5630","HAC Temporary Accomodation","05-THIRD","Third Party Payments","05H","Private contractors","6900","Nightly Let Plus Charges","3501997","201811",04/02/2018 00:00:00,1798,"31230","Employment and Recruitment Agencies","REDACTED DATA","ADAM HTT LIMITED T/A ADAM","7718565","http://opencorporates.com/companies/gb/7718565","198573349"
"London Borough of Redbridge","http://opendatacommunities.org/doc/london-borough-council/redbridge","3BNONSCHFUND","Non-School Funding","6CCHILLOOKED","Children Looked After","REV","Revenue","R2238","Looked After Children Placements LA","05-THIRD","Third Party Payments","05H","Private contractors","6917","Fostering Costs - Agency","60362606","201811",01/01/2018 00:00:00,4481.58,"1880","Adoption and Fostering","REDACTED DATA","BY THE BRIDGE","4050928","http://opencorporates.com/companies/gb/4050928",""
"London Borough of Redbridge","http://opendatacommunities.org/doc/london-borough-council/redbridge","1BCENTRALPUB","Central Services to the Public","1CREGBDM","Reg. of Births, Deaths & Marriages","REV","Revenue","R3970","Corporate Policy and Performance","04-SUPPLIES","Supplies And Services","04H","Grants and subscriptions","5956","Subscriptions","60363972","201810",17/01/2018 00:00:00,3696,"52415","Music Management and Promotion","REDACTED DATA","MOTION PICTURE LICENSING CO. (INTERNATIONAL) LTD T/A CVLE","2790268","http://opencorporates.com/companies/gb/2790268","788140111"
"London Borough of Redbridge","http://opendatacommunities.org/doc/london-borough-council/redbridge","1BOTHEROPI&E","Other Operating Income & Expenditure","1CTRADSURDEF","Trading Account Surpluses & Deficits","REV","Revenue","R9460","Pay, Contracts & HRD","01-EMPLOYEES","Employees","01A","Direct employee expenses","4","Agency Staff - Pay","60365958","201811",06/02/2018 00:00:00,3693.35,"31230","Employment and Recruitment Agencies","REDACTED DATA","ALLEN LANE LIMITED","5115229","http://opencorporates.com/companies/gb/5115229","835970985"
"London Borough of Redbridge","http://opendatacommunities.org/doc/london-borough-council/redbridge","1BOTHEROPI&E","Other Operating Income & Expenditure","1CTRADSURDEF","Trading Account Surpluses & Deficits","REV","Revenue","R9460","Pay, Contracts & HRD","01-EMPLOYEES","Employees","01A","Direct employee expenses","4","Agency Staff - Pay","60365174","201810",30/01/2018 00:00:00,3693.35,"31230","Employment and Recruitment Agencies","REDACTED DATA","ALLEN LANE LIMITED","5115229","http://opencorporates.com/companies/gb/5115229","835970985"
"London Borough of Redbridge","http://opendatacommunities.org/doc/london-borough-council/redbridge","1BOTHEROPI&E","Other Operating Income & Expenditure","1CTRADSURDEF","Trading Account Surpluses & Deficits","REV","Revenue","R9460","Pay, Contracts & HRD","01-EMPLOYEES","Employees","01A","Direct employee expenses","4","Agency Staff - Pay","60364588","201810",23/01/2018 00:00:00,3693.35,"31230","Employment and Recruitment Agencies","REDACTED DATA","ALLEN LANE LIMITED","5115229","http://opencorporates.com/companies/gb/5115229","835970985"
"London Borough of Redbridge","http://opendatacommunities.org/doc/london-borough-council/redbridge","6BADULTSOCIA","Adult Social Care","6CADLEARNDIS","Adults Under 65 with Learning Disabilities","REV","Revenue","R4188","LD - Residential Care","05-THIRD","Third Party Payments","05F","Voluntary associations","6802","Residential Homes","90926747","201811",23/01/2018 00:00:00,4828.72,"64710","Residential Care Homes","REDACTED DATA","TEALK SERVICES LTD (THE BEECHES- ILFORD)","4203171","http://opencorporates.com/companies/gb/4203171",""
"London Borough of Redbridge","http://opendatacommunities.org/doc/london-borough-council/redbridge","6BADULTSOCIA","Adult Social Care","6CADLEARNDIS","Adults Under 65 with Learning Disabilities","REV","Revenue","R4188","LD - Residential Care","09-INCOME","Income","09C","Customer and Client Receipts","8555","Accommodation Charges","90926747","201811",23/01/2018 00:00:00,-402.6,"64710","Residential Care Homes","REDACTED DATA","TEALK SERVICES LTD (THE BEECHES- ILFORD)","4203171","http://opencorporates.com/companies/gb/4203171",""
"London Borough of Redbridge","http://opendatacommunities.org/doc/london-borough-council/redbridge","6BADULTSOCIA","Adult Social Care","6CADLEARNDIS","Adults Under 65 with Learning Disabilities","REV","Revenue","R4188","LD - Residential Care","05-THIRD","Third Party Payments","05F","Voluntary associations","6802","Residential Homes","90930270","201811",23/01/2018 00:00:00,4748.28,"64710","Residential Care Homes","REDACTED DATA","AITHRIE RESIDENTIAL HOME","",,""
"London Borough of Redbridge","http://opendatacommunities.org/doc/london-borough-council/redbridge","6BADULTSOCIA","Adult Social Care","6CADLEARNDIS","Adults Under 65 with Learning Disabilities","REV","Revenue","R4188","LD - Residential Care","09-INCOME","Income","09C","Customer and Client Receipts","8555","Accommodation Charges","90930270","201811",23/01/2018 00:00:00,-323,"64710","Residential Care Homes","REDACTED DATA","AITHRIE RESIDENTIAL HOME","",,""
"London Borough of Redbridge","http://opendatacommunities.org/doc/london-borough-council/redbridge","3BNONSCHFUND","Non-School Funding","3CNONSCH","Non Schools","REV","Revenue","R3963","Early Years - 2 Year Olds - Statutory Place Funding","05-THIRD","Third Party Payments","05A","Independent units within the council","6517","Non-Maintained Schools","3500500","201811",05/02/2018 00:00:00,4420.46,"59760","Playgroups, Nurseries and Creches","REDACTED DATA","VALENTINE'S NEIGHBOURHOOD NURSERY","",,""
"London Borough of Redbridge","http://opendatacommunities.org/doc/london-borough-council/redbridge","6BADULTSOCIA","Adult Social Care","6COLDINCMENT","Older People (65 or over) incl. Older Mentally Ill","REV","Revenue","R4378","OP Residential","05-THIRD","Third Party Payments","05F","Voluntary associations","6802","Residential Homes","90930256","201811",23/01/2018 00:00:00,4420.4,"64710","Residential Care Homes","REDACTED DATA","ACORN CARE HOME","",,""
"London Borough of Redbridge","http://opendatacommunities.org/doc/london-borough-council/redbridge","5BGFHOUSING","General Fund Housing","5CHOMELESS","Homelessness","REV","Revenue","R5630","HAC Temporary Accomodation","05-THIRD","Third Party Payments","05H","Private contractors","6900","Nightly Let Plus Charges","3501997","201811",04/02/2018 00:00:00,1395,"31230","Employment and Recruitment Agencies","REDACTED DATA","ADAM HTT LIMITED T/A ADAM","7718565","http://opencorporates.com/companies/gb/7718565","198573349"
"London Borough of Redbridge","http://opendatacommunities.org/doc/london-borough-council/redbridge","5BGFHOUSING","General Fund Housing","5CHOMELESS","Homelessness","REV","Revenue","R5630","HAC Temporary Accomodation","05-THIRD","Third Party Payments","05H","Private contractors","6900","Nightly Let Plus Charges","3501997","201811",04/02/2018 00:00:00,1550,"31230","Employment and Recruitment Agencies","REDACTED DATA","ADAM HTT LIMITED T/A ADAM","7718565","http://opencorporates.com/companies/gb/7718565","198573349"
"London Borough of Redbridge","http://opendatacommunities.org/doc/london-borough-council/redbridge","5BGFHOUSING","General Fund Housing","5CHOMELESS","Homelessness","REV","Revenue","R5630","HAC Temporary Accomodation","05-THIRD","Third Party Payments","05H","Private contractors","6900","Nightly Let Plus Charges","3501997","201811",04/02/2018 00:00:00,1395,"31230","Employment and Recruitment Agencies","REDACTED DATA","ADAM HTT LIMITED T/A ADAM","7718565","http://opencorporates.com/companies/gb/7718565","198573349"
"London Borough of Redbridge","http://opendatacommunities.org/doc/london-borough-council/redbridge","5BGFHOUSING","General Fund Housing","5CHOMELESS","Homelessness","REV","Revenue","R5630","HAC Temporary Accomodation","05-THIRD","Third Party Payments","05H","Private contractors","6900","Nightly Let Plus Charges","3501997","201811",04/02/2018 00:00:00,1395,"31230","Employment and Recruitment Agencies","REDACTED DATA","ADAM HTT LIMITED T/A ADAM","7718565","http://opencorporates.com/companies/gb/7718565","198573349"
"London Borough of Redbridge","http://opendatacommunities.org/doc/london-borough-council/redbridge","5BGFHOUSING","General Fund Housing","5CHOMELESS","Homelessness","REV","Revenue","R5630","HAC Temporary Accomodation","05-THIRD","Third Party Payments","05H","Private contractors","6900","Nightly Let Plus Charges","3501997","201811",04/02/2018 00:00:00,899,"31230","Employment and Recruitment Agencies","REDACTED DATA","ADAM HTT LIMITED T/A ADAM","7718565","http://opencorporates.com/companies/gb/7718565","198573349"
"London Borough of Redbridge","http://opendatacommunities.org/doc/london-borough-council/redbridge","5BGFHOUSING","General Fund Housing","5CHOMELESS","Homelessness","REV","Revenue","R5630","HAC Temporary Accomodation","05-THIRD","Third Party Payments","05H","Private contractors","6900","Nightly Let Plus Charges","3501997","201811",04/02/2018 00:00:00,1116,"31230","Employment and Recruitment Agencies","REDACTED DATA","ADAM HTT LIMITED T/A ADAM","7718565","http://opencorporates.com/companies/gb/7718565","198573349"
"London Borough of Redbridge","http://opendatacommunities.org/doc/london-borough-council/redbridge","5BGFHOUSING","General Fund Housing","5CHOMELESS","Homelessness","REV","Revenue","R5630","HAC Temporary Accomodation","05-THIRD","Third Party Payments","05H","Private contractors","6900","Nightly Let Plus Charges","3501997","201811",04/02/2018 00:00:00,1674,"31230","Employment and Recruitment Agencies","REDACTED DATA","ADAM HTT LIMITED T/A ADAM","7718565","http://opencorporates.com/companies/gb/7718565","198573349"
"London Borough of Redbridge","http://opendatacommunities.org/doc/london-borough-council/redbridge","5BGFHOUSING","General Fund Housing","5CHOMELESS","Homelessness","REV","Revenue","R5630","HAC Temporary Accomodation","05-THIRD","Third Party Payments","05H","Private contractors","6900","Nightly Let Plus Charges","3501997","201811",04/02/2018 00:00:00,797.94,"31230","Employment and Recruitment Agencies","REDACTED DATA","ADAM HTT LIMITED T/A ADAM","7718565","http://opencorporates.com/companies/gb/7718565","198573349"
"London Borough of Redbridge","http://opendatacommunities.org/doc/london-borough-council/redbridge","5BGFHOUSING","General Fund Housing","5CHOMELESS","Homelessness","REV","Revenue","R5630","HAC Temporary Accomodation","05-THIRD","Third Party Payments","05H","Private contractors","6900","Nightly Let Plus Charges","3501997","201811",04/02/2018 00:00:00,2046,"31230","Employment and Recruitment Agencies","REDACTED DATA","ADAM HTT LIMITED T/A ADAM","7718565","http://opencorporates.com/companies/gb/7718565","198573349"
"London Borough of Redbridge","http://opendatacommunities.org/doc/london-borough-council/redbridge","5BGFHOUSING","General Fund Housing","5CHOMELESS","Homelessness","REV","Revenue","R5630","HAC Temporary Accomodation","05-THIRD","Third Party Payments","05H","Private contractors","6900","Nightly Let Plus Charges","3501997","201811",04/02/2018 00:00:00,1464.75,"31230","Employment and Recruitment Agencies","REDACTED DATA","ADAM HTT LIMITED T/A ADAM","7718565","http://opencorporates.com/companies/gb/7718565","198573349"
"London Borough of Redbridge","http://opendatacommunities.org/doc/london-borough-council/redbridge","5BGFHOUSING","General Fund Housing","5CHOMELESS","Homelessness","REV","Revenue","R5630","HAC Temporary Accomodation","05-THIRD","Third Party Payments","05H","Private contractors","6900","Nightly Let Plus Charges","3501997","201811",04/02/2018 00:00:00,1891,"31230","Employment and Recruitment Agencies","REDACTED DATA","ADAM HTT LIMITED T/A ADAM","7718565","http://opencorporates.com/companies/gb/7718565","198573349"
"London Borough of Redbridge","http://opendatacommunities.org/doc/london-borough-council/redbridge","3BOPTIONHLDG","Optional Holding Accounts","3CADULT","Adult Education","REV","Revenue","R3490","RIAE   Home Cost Centre","02-PREMISES","Premises","02H","Cleaning and domestic supplies","4621","Cleaning DSO Recharge","3502810","201811",12/02/2018 00:00:00,3672.65,"15269","Cleaning Services - Commercial","REDACTED DATA","LEWIS & GRAVES PARTNERSHIP LLP","8953594","http://opencorporates.com/companies/gb/8953594","135553810"
"London Borough of Redbridge","http://opendatacommunities.org/doc/london-borough-council/redbridge","3BOPTIONHLDG","Optional Holding Accounts","3CADULT","Adult Education","REV","Revenue","R3490","RIAE   Home Cost Centre","02-PREMISES","Premises","02H","Cleaning and domestic supplies","4621","Cleaning DSO Recharge","3502811","201811",12/02/2018 00:00:00,3672.65,"15269","Cleaning Services - Commercial","REDACTED DATA","LEWIS & GRAVES PARTNERSHIP LLP","8953594","http://opencorporates.com/companies/gb/8953594","135553810"
"London Borough of Redbridge","http://opendatacommunities.org/doc/london-borough-council/redbridge","3BOPTIONHLDG","Optional Holding Accounts","3CADULT","Adult Education","REV","Revenue","R3490","RIAE   Home Cost Centre","02-PREMISES","Premises","02H","Cleaning and domestic supplies","4621","Cleaning DSO Recharge","3500270","201810",29/01/2018 00:00:00,3672.63,"15269","Cleaning Services - Commercial","REDACTED DATA","LEWIS & GRAVES PARTNERSHIP LLP","8953594","http://opencorporates.com/companies/gb/8953594","135553810"
"London Borough of Redbridge","http://opendatacommunities.org/doc/london-borough-council/redbridge","3BNONSCHFUND","Non-School Funding","6CCHILLOOKED","Children Looked After","REV","Revenue","R2238","Looked After Children Placements LA","05-THIRD","Third Party Payments","05H","Private contractors","6917","Fostering Costs - Agency","60365550","201811",01/02/2018 00:00:00,4399.92,"1880","Adoption and Fostering","REDACTED DATA","COMPASS FOSTERING LONDON LIMITED","3292070","http://opencorporates.com/companies/gb/3292070","153173918"
"London Borough of Redbridge","http://opendatacommunities.org/doc/london-borough-council/redbridge","5BGFHOUSING","General Fund Housing","5CHOMELESS","Homelessness","REV","Revenue","R5622","The Foyer","05-THIRD","Third Party Payments","05H","Private contractors","6915","Contractor Payments","3501855","201811",17/01/2018 00:00:00,3661,"11040","Builders","REDACTED DATA","M & G CONSTRUCTION LTD.","1918880","http://opencorporates.com/companies/gb/1918880","406392853"
"London Borough of Redbridge","http://opendatacommunities.org/doc/london-borough-council/redbridge","3BNONSCHFUND","Non-School Funding","6CCHILLOOKED","Children Looked After","REV","Revenue","R2238","Looked After Children Placements LA","05-THIRD","Third Party Payments","05H","Private contractors","6917","Fostering Costs - Agency","60357096","201811",01/11/2017 00:00:00,4337.01,"1880","Adoption and Fostering","REDACTED DATA","BY THE BRIDGE","4050928","http://opencorporates.com/companies/gb/4050928",""
"London Borough of Redbridge","http://opendatacommunities.org/doc/london-borough-council/redbridge","6BADULTSOCIA","Adult Social Care","6CADLEARNDIS","Adults Under 65 with Learning Disabilities","REV","Revenue","R4188","LD - Residential Care","05-THIRD","Third Party Payments","05F","Voluntary associations","6802","Residential Homes","90930283","201811",23/01/2018 00:00:00,4872,"17020","Charities and Voluntary Organisations","REDACTED DATA","NORWOOD SCHOOLS LTD","516901","http://opencorporates.com/companies/gb/516901","629720917"
"London Borough of Redbridge","http://opendatacommunities.org/doc/london-borough-council/redbridge","6BADULTSOCIA","Adult Social Care","6CADLEARNDIS","Adults Under 65 with Learning Disabilities","REV","Revenue","R4188","LD - Residential Care","09-INCOME","Income","09C","Customer and Client Receipts","8555","Accommodation Charges","90930283","201811",23/01/2018 00:00:00,-537.8,"17020","Charities and Voluntary Organisations","REDACTED DATA","NORWOOD SCHOOLS LTD","516901","http://opencorporates.com/companies/gb/516901","629720917"
"London Borough of Redbridge","http://opendatacommunities.org/doc/london-borough-council/redbridge","3BINDSCHFUND","Individual School Funds","3CDELSECOND","Delegated Individual Secondary School Budgets","REV","Revenue","S3544","KING SOLOMON - Electricity","02-PREMISES","Premises","02B","Energy costs","4000","Electricity","60367295","201811",06/02/2018 00:00:00,4114.77,"30586","Electricity Companies","REDACTED DATA","NPOWER LTD","3653277","http://opencorporates.com/companies/gb/3653277","768362492"
"London Borough of Redbridge","http://opendatacommunities.org/doc/london-borough-council/redbridge","6BADULTSOCIA","Adult Social Care","6CADLEARNDIS","Adults Under 65 with Learning Disabilities","REV","Revenue","R4215","LD Direct Payments","06-TRANSFER","Transfer Payments","06B","Social Services Clients","7053","Direct Payments","3501376","201811",07/02/2018 00:00:00,4314.64,"90005","Home Care Services DP","REDACTED DATA","REDACTED DATA","",,""
"London Borough of Redbridge","http://opendatacommunities.org/doc/london-borough-council/redbridge","6BADULTSOCIA","Adult Social Care","6COLDINCMENT","Older People (65 or over) incl. Older Mentally Ill","REV","Revenue","R4385","OP Nursing","05-THIRD","Third Party Payments","05H","Private contractors","6909","Nursing Homes","90930249","201811",23/01/2018 00:00:00,5924.04,"64710","Residential Care Homes","REDACTED DATA","BUPA CARE SERVICES - PREMIER COURT RESIDENTIAL & NURSING HOME","2006738","http://opencorporates.com/companies/gb/2006738",""
"London Borough of Redbridge","http://opendatacommunities.org/doc/london-borough-council/redbridge","6BADULTSOCIA","Adult Social Care","6COLDINCMENT","Older People (65 or over) incl. Older Mentally Ill","REV","Revenue","R4385","OP Nursing","09-INCOME","Income","09C","Customer and Client Receipts","8557","Nursing Home Charges","90930249","201811",23/01/2018 00:00:00,-1613.4,"64710","Residential Care Homes","REDACTED DATA","BUPA CARE SERVICES - PREMIER COURT RESIDENTIAL & NURSING HOME","2006738","http://opencorporates.com/companies/gb/2006738",""
"London Borough of Redbridge","http://opendatacommunities.org/doc/london-borough-council/redbridge","3BLEACENTFND","LEA Centrally Held School Funds","3CNONSCH","Non Schools","REV","Revenue","R2010","Spec Transport LEA","01-EMPLOYEES","Employees","01A","Direct employee expenses","4","Agency Staff - Pay","60366407","201811",21/01/2018 00:00:00,3584.38,"51250","Mini Cabs","REDACTED DATA","CLAYHALL EXECUTIVE CARS LTD","6057590","http://opencorporates.com/companies/gb/6057590","911916336"
"London Borough of Redbridge","http://opendatacommunities.org/doc/london-borough-council/redbridge","3BNONSCHFUND","Non-School Funding","3CNONSCH","Non Schools","REV","Revenue","R3963","Early Years - 2 Year Olds - Statutory Place Funding","05-THIRD","Third Party Payments","05A","Independent units within the council","6517","Non-Maintained Schools","3500484","201811",05/02/2018 00:00:00,4278.96,"59760","Playgroups, Nurseries and Creches","REDACTED DATA","SOMERVILLE PRE-SCHOOL","",,""
"London Borough of Redbridge","http://opendatacommunities.org/doc/london-borough-council/redbridge","6BSOCIALSERV","Social Services","6CCHILLOOKED","Children Looked After","REV","Revenue","R2117","SEN and CD Care and Support Packages Social Care","06-TRANSFER","Transfer Payments","06B","Social Services Clients","7050","Agency Homecare","60364730","201811",05/01/2018 00:00:00,4267,"79980","Training Services","REDACTED DATA","ACCESS ALL CARE & TRAINING SOLUTIONS LTD","7545714","http://opencorporates.com/companies/gb/7545714",""
"London Borough of Redbridge","http://opendatacommunities.org/doc/london-borough-council/redbridge","6BPUBHEALTH","Public Health","6CSEXHEALTH","Sexual Health","REV","Revenue","R4804","STI Testing & Treatment","05-THIRD","Third Party Payments","05D","Health authorities","6703","Hospital Trusts","70099942","201811",09/02/2018 00:00:00,4266.23,"42200","Health Authorities","REDACTED DATA","CENTRAL & NORTH WEST LONDON NHS FOUNDATION TRUST","",,"654970895"
"London Borough of Redbridge","http://opendatacommunities.org/doc/london-borough-council/redbridge","9BNONBVO","Outside the BVACOP Objective Structure","9CNONBVO","Outside the BVACOP Objective Structure","CAP","Capital","C2235","Crossrail Capital","99-NONBV","Capital, Balance Sheet and Control","50E","Capital - Contract Payments","9185","Asset Under construction","3503452","201811",27/02/2018 00:00:00,3554.56,"21555","Construction Contractors - General","REDACTED DATA","SKANSKA CONSTRUCTION UK LTD","191408","http://opencorporates.com/companies/gb/191408","378403142"
"London Borough of Redbridge","http://opendatacommunities.org/doc/london-borough-council/redbridge","9BNONBVO","Outside the BVACOP Objective Structure","9CNONBVO","Outside the BVACOP Objective Structure","CAP","Capital","C1053","IT Modernisation-End Point Computing Refresh (CAPITAL)","99-NONBV","Capital, Balance Sheet and Control","50B","Capital - Contracted Works","9094","ICT","60365614","201811",01/02/2018 00:00:00,3552.99,"20703","Computer Systems and Software","REDACTED DATA","STONE COMPUTERS","2658501","http://opencorporates.com/companies/gb/2658501","747878857"
"London Borough of Redbridge","http://opendatacommunities.org/doc/london-borough-council/redbridge","6BADULTSOCIA","Adult Social Care","6CADLEARNDIS","Adults Under 65 with Learning Disabilities","REV","Revenue","R4185","LD - Supported Living","06-TRANSFER","Transfer Payments","06B","Social Services Clients","7066","Supportive Lodgings (Transfer Payments)","90926412","201811",23/01/2018 00:00:00,4251.43,"17020","Charities and Voluntary Organisations","REDACTED DATA","MENCAP","550457","http://opencorporates.com/companies/gb/550457","233010136"
"London Borough of Redbridge","http://opendatacommunities.org/doc/london-borough-council/redbridge","6BADULTSOCIA","Adult Social Care","6CADLEARNDIS","Adults Under 65 with Learning Disabilities","REV","Revenue","R4185","LD - Supported Living","06-TRANSFER","Transfer Payments","06B","Social Services Clients","7066","Supportive Lodgings (Transfer Payments)","90926413","201811",23/01/2018 00:00:00,4251.43,"17020","Charities and Voluntary Organisations","REDACTED DATA","MENCAP","550457","http://opencorporates.com/companies/gb/550457","233010136"
"London Borough of Redbridge","http://opendatacommunities.org/doc/london-borough-council/redbridge","3BNONSCHFUND","Non-School Funding","6CCHILLOOKED","Children Looked After","REV","Revenue","R2238","Looked After Children Placements LA","04-SUPPLIES","Supplies And Services","04K","Miscellaneous expenses","6930","Transitional (Under 18)","60366090","201811",31/01/2018 00:00:00,4242.86,"64710","Residential Care Homes","REDACTED DATA","IDEAL CARE SOLUTIONS LIMITED","7566021","http://opencorporates.com/companies/gb/7566021","114183936"
"London Borough of Redbridge","http://opendatacommunities.org/doc/london-borough-council/redbridge","6BSOCIALSERV","Social Services","6COTHC&FSERV","Other Children's & Families' Services","REV","Revenue","R2167","Intentionally Homeless","06-TRANSFER","Transfer Payments","06B","Social Services Clients","7069","Intentionally Homeless","60365875","201811",06/02/2018 00:00:00,3528,"44100","Hotels","REDACTED DATA","THE COURTNEY HOTEL LONDON LTD","6874974","http://opencorporates.com/companies/gb/6874974","719040943"
"London Borough of Redbridge","http://opendatacommunities.org/doc/london-borough-council/redbridge","6BADULTSOCIA","Adult Social Care","6COLDINCMENT","Older People (65 or over) incl. Older Mentally Ill","REV","Revenue","R4378","OP Residential","05-THIRD","Third Party Payments","05F","Voluntary associations","6802","Residential Homes","90930290","201811",23/01/2018 00:00:00,4233,"64710","Residential Care Homes","REDACTED DATA","OAKWOOD LODGE","6798990","http://opencorporates.com/companies/gb/6798990",""
"London Borough of Redbridge","http://opendatacommunities.org/doc/london-borough-council/redbridge","3BINDSCHFUND","Individual School Funds","3CDELPRIMARY","Delegated Individual Primary School Budgets","REV","Revenue","S1050","CHRISTCHURCH : Supply Teachers","01-EMPLOYEES","Employees","01A","Direct employee expenses","409","Agency Staff Pay","60367631","201811",02/02/2018 00:00:00,3525,"29300","Education Agencies and Authorities","REDACTED DATA","DESTINATION EDUCATION LTD","",,"930151073"
"London Borough of Redbridge","http://opendatacommunities.org/doc/london-borough-council/redbridge","6BADULTSOCIA","Adult Social Care","6CADPHYSDIS","Adults Under 65 with Phys Disab or Sensory Impair","REV","Revenue","R4214","PD Direct Payments","06-TRANSFER","Transfer Payments","06B","Social Services Clients","7053","Direct Payments","3501380","201811",07/02/2018 00:00:00,4416,"90005","Home Care Services DP","REDACTED DATA","REDACTED DATA","",,""
"London Borough of Redbridge","http://opendatacommunities.org/doc/london-borough-council/redbridge","6BADULTSOCIA","Adult Social Care","6CADPHYSDIS","Adults Under 65 with Phys Disab or Sensory Impair","REV","Revenue","R4214","PD Direct Payments","09-INCOME","Income","09C","Customer and Client Receipts","8545","Direct Payments Income","3501380","201811",07/02/2018 00:00:00,-195,"90005","Home Care Services DP","REDACTED DATA","REDACTED DATA","",,""
"London Borough of Redbridge","http://opendatacommunities.org/doc/london-borough-council/redbridge","2BENVIRONMEN","Environmental Services","2CENVTLHEALT","Environmental Health","REV","Revenue","R6020","Public Convenience","04-SUPPLIES","Supplies And Services","04K","Miscellaneous expenses","6263","Supportive Activities","60367109","201811",12/02/2018 00:00:00,3515.91,"15269","Cleaning Services - Commercial","REDACTED DATA","LEWIS & GRAVES PARTNERSHIP LLP","8953594","http://opencorporates.com/companies/gb/8953594","135553810"
"London Borough of Redbridge","http://opendatacommunities.org/doc/london-borough-council/redbridge","2BENVIRONMEN","Environmental Services","2CENVTLHEALT","Environmental Health","REV","Revenue","R6020","Public Convenience","04-SUPPLIES","Supplies And Services","04K","Miscellaneous expenses","6263","Supportive Activities","60367108","201811",12/02/2018 00:00:00,3515.91,"15269","Cleaning Services - Commercial","REDACTED DATA","LEWIS & GRAVES PARTNERSHIP LLP","8953594","http://opencorporates.com/companies/gb/8953594","135553810"
"London Borough of Redbridge","http://opendatacommunities.org/doc/london-borough-council/redbridge","2BENVIRONMEN","Environmental Services","2CENVTLHEALT","Environmental Health","REV","Revenue","R6020","Public Convenience","04-SUPPLIES","Supplies And Services","04K","Miscellaneous expenses","6263","Supportive Activities","60365344","201810",29/01/2018 00:00:00,3515.91,"15269","Cleaning Services - Commercial","REDACTED DATA","LEWIS & GRAVES PARTNERSHIP LLP","8953594","http://opencorporates.com/companies/gb/8953594","135553810"
"London Borough of Redbridge","http://opendatacommunities.org/doc/london-borough-council/redbridge","6BADULTSOCIA","Adult Social Care","6COLDINCMENT","Older People (65 or over) incl. Older Mentally Ill","REV","Revenue","R4385","OP Nursing","05-THIRD","Third Party Payments","05H","Private contractors","6909","Nursing Homes","90926280","201811",23/01/2018 00:00:00,6619.92,"64710","Residential Care Homes","REDACTED DATA","FOUR SEASONS HEALTH CARE (SUMMERDALE COURT CARE)","3750254","http://opencorporates.com/companies/gb/3750254",""
"London Borough of Redbridge","http://opendatacommunities.org/doc/london-borough-council/redbridge","6BADULTSOCIA","Adult Social Care","6COLDINCMENT","Older People (65 or over) incl. Older Mentally Ill","REV","Revenue","R4385","OP Nursing","09-INCOME","Income","09C","Customer and Client Receipts","8557","Nursing Home Charges","90926280","201811",23/01/2018 00:00:00,-2405.4,"64710","Residential Care Homes","REDACTED DATA","FOUR SEASONS HEALTH CARE (SUMMERDALE COURT CARE)","3750254","http://opencorporates.com/companies/gb/3750254",""
"London Borough of Redbridge","http://opendatacommunities.org/doc/london-borough-council/redbridge","3BNONSCHFUND","Non-School Funding","6CCHILLOOKED","Children Looked After","REV","Revenue","R2238","Looked After Children Placements LA","05-THIRD","Third Party Payments","05H","Private contractors","6917","Fostering Costs - Agency","60367991","201811",01/03/2018 00:00:00,4207.14,"1880","Adoption and Fostering","REDACTED DATA","BRIGHTER FUTURES FOSTER CARE LTD","8013526237","http://opencorporates.com/companies/gb/8013526237","6846257"
"London Borough of Redbridge","http://opendatacommunities.org/doc/london-borough-council/redbridge","6BADULTSOCIA","Adult Social Care","6CADLEARNDIS","Adults Under 65 with Learning Disabilities","REV","Revenue","R4188","LD - Residential Care","05-THIRD","Third Party Payments","05F","Voluntary associations","6802","Residential Homes","90926667","201811",23/01/2018 00:00:00,4200,"64710","Residential Care Homes","REDACTED DATA","NORTHBROOK HOMES LTD - (NORTHBROOK CARE  HOME)","5526108","http://opencorporates.com/companies/gb/5526108",""
"London Borough of Redbridge","http://opendatacommunities.org/doc/london-borough-council/redbridge","9BNONBVO","Outside the BVACOP Objective Structure","9CNONBVO","Outside the BVACOP Objective Structure","CAP","Capital","C4320","Al-Noor Primary School","99-NONBV","Capital, Balance Sheet and Control","50B","Capital - Contracted Works","9055","External - Consultants Fees","60366691","201811",12/02/2018 00:00:00,3500,"11280","Building Consultants","REDACTED DATA","GARDINER & THEOBALD LLP","OC307124","http://opencorporates.com/companies/gb/OC307124","832776212"
"London Borough of Redbridge","http://opendatacommunities.org/doc/london-borough-council/redbridge","3BNONSCHFUND","Non-School Funding","6CCHILLOOKED","Children Looked After","REV","Revenue","R2238","Looked After Children Placements LA","04-SUPPLIES","Supplies And Services","04K","Miscellaneous expenses","6289","Children Services Supportive Activities","60367448","201811",23/01/2018 00:00:00,3500,"98758","Statutory Payments to Individuals","REDACTED DATA","REDACTED DATA","",,""
"London Borough of Redbridge","http://opendatacommunities.org/doc/london-borough-council/redbridge","3BLEACENTFND","LEA Centrally Held School Funds","3CNONSCH","Non Schools","REV","Revenue","R2230","Local Offer","01-EMPLOYEES","Employees","01A","Direct employee expenses","4","Agency Staff - Pay","60366676","201811",12/02/2018 00:00:00,3480,"31230","Employment and Recruitment Agencies","REDACTED DATA","BALTIMORE CONSULTING LTD","8387222","http://opencorporates.com/companies/gb/8387222","156711312"
"London Borough of Redbridge","http://opendatacommunities.org/doc/london-borough-council/redbridge","3BNONSCHFUND","Non-School Funding","3CNONSCH","Non Schools","REV","Revenue","R3962","Early Years - 3 and 4 Year Olds","05-THIRD","Third Party Payments","05A","Independent units within the council","6517","Non-Maintained Schools","3501958","201811",08/02/2018 00:00:00,4175,"17580","Childcare Services","REDACTED DATA","IN BLOOM INDUSTIES LTD T/A THE PLAY PACTORY","9918194","http://opencorporates.com/companies/gb/9918194",""
"London Borough of Redbridge","http://opendatacommunities.org/doc/london-borough-council/redbridge","1BCENTRALPUB","Central Services to the Public","1CLOCALTAXCO","Local Tax Collection","REV","Revenue","R5760","Local Tax Collection","04-SUPPLIES","Supplies And Services","04D","Printing, stationery and general office expenses","5706","Printing","60365127","201810",30/01/2018 00:00:00,3473.87,"49180","Mailing Houses","REDACTED DATA","OPUS TRUST MARKETING LIMITED","3829462","http://opencorporates.com/companies/gb/3829462","232730729"
"London Borough of Redbridge","http://opendatacommunities.org/doc/london-borough-council/redbridge","3BNONSCHFUND","Non-School Funding","6CCHILLOOKED","Children Looked After","REV","Revenue","R2238","Looked After Children Placements LA","05-THIRD","Third Party Payments","05H","Private contractors","6917","Fostering Costs - Agency","60366201","201811",01/12/2017 00:00:00,4167.86,"1880","Adoption and Fostering","REDACTED DATA","BY THE BRIDGE","4050928","http://opencorporates.com/companies/gb/4050928",""
"London Borough of Redbridge","http://opendatacommunities.org/doc/london-borough-council/redbridge","3BNONSCHFUND","Non-School Funding","3CNONSCH","Non Schools","REV","Revenue","R3963","Early Years - 2 Year Olds - Statutory Place Funding","05-THIRD","Third Party Payments","05A","Independent units within the council","6517","Non-Maintained Schools","3500587","201811",05/02/2018 00:00:00,4160.1,"17580","Childcare Services","REDACTED DATA","ILFORD TOTS TO TEENS CHILDCARE SERVICES LTD","10827106","http://opencorporates.com/companies/gb/10827106",""
"London Borough of Redbridge","http://opendatacommunities.org/doc/london-borough-council/redbridge","6BADULTSOCIA","Adult Social Care","6CADLEARNDIS","Adults Under 65 with Learning Disabilities","REV","Revenue","R4185","LD - Supported Living","06-TRANSFER","Transfer Payments","06B","Social Services Clients","7066","Supportive Lodgings (Transfer Payments)","90926411","201811",23/01/2018 00:00:00,4251.43,"17020","Charities and Voluntary Organisations","REDACTED DATA","MENCAP","550457","http://opencorporates.com/companies/gb/550457","233010136"
"London Borough of Redbridge","http://opendatacommunities.org/doc/london-borough-council/redbridge","6BADULTSOCIA","Adult Social Care","6CADLEARNDIS","Adults Under 65 with Learning Disabilities","REV","Revenue","R4185","LD - Supported Living","09-INCOME","Income","09C","Customer and Client Receipts","8553","Care Package Charges","90926411","201811",23/01/2018 00:00:00,-98.54,"17020","Charities and Voluntary Organisations","REDACTED DATA","MENCAP","550457","http://opencorporates.com/companies/gb/550457","233010136"
"London Borough of Redbridge","http://opendatacommunities.org/doc/london-borough-council/redbridge","6BADULTSOCIA","Adult Social Care","6COLDINCMENT","Older People (65 or over) incl. Older Mentally Ill","REV","Revenue","R4385","OP Nursing","05-THIRD","Third Party Payments","05H","Private contractors","6909","Nursing Homes","90926264","201811",23/01/2018 00:00:00,6041.4,"53350","Nursing Homes","REDACTED DATA","LOVEN LARCHWOOD LIMITED","8553870","http://opencorporates.com/companies/gb/8553870",""
"London Borough of Redbridge","http://opendatacommunities.org/doc/london-borough-council/redbridge","6BADULTSOCIA","Adult Social Care","6COLDINCMENT","Older People (65 or over) incl. Older Mentally Ill","REV","Revenue","R4385","OP Nursing","09-INCOME","Income","09C","Customer and Client Receipts","8557","Nursing Home Charges","90926264","201811",23/01/2018 00:00:00,-1892.4,"53350","Nursing Homes","REDACTED DATA","LOVEN LARCHWOOD LIMITED","8553870","http://opencorporates.com/companies/gb/8553870",""
"London Borough of Redbridge","http://opendatacommunities.org/doc/london-borough-council/redbridge","6BADULTSOCIA","Adult Social Care","6CADLEARNDIS","Adults Under 65 with Learning Disabilities","REV","Revenue","R4215","LD Direct Payments","06-TRANSFER","Transfer Payments","06B","Social Services Clients","7053","Direct Payments","3501392","201811",07/02/2018 00:00:00,4145.28,"90005","Home Care Services DP","REDACTED DATA","REDACTED DATA","",,""
"London Borough of Redbridge","http://opendatacommunities.org/doc/london-borough-council/redbridge","3BINDSCHFUND","Individual School Funds","3CDELPRIMARY","Delegated Individual Primary School Budgets","REV","Revenue","S1010","CHRISTCHURCH : Building Maintenance","02-PREMISES","Premises","02A","Repairs, alteration and maintenance of buildings","3001","Major Works Programme","60367802","201811",19/02/2018 00:00:00,3448,"30580","Electricians and Electrical Contractors","REDACTED DATA","EVANS & SHEA LTD","9365711","http://opencorporates.com/companies/gb/9365711","212776513"
"London Borough of Redbridge","http://opendatacommunities.org/doc/london-borough-council/redbridge","1BOTHEROPI&E","Other Operating Income & Expenditure","1CTRADSURDEF","Trading Account Surpluses & Deficits","REV","Revenue","R9551","CLM Maintenance","02-PREMISES","Premises","02A","Repairs, alteration and maintenance of buildings","3026","Minor Maintenance","3501854","201811",26/01/2018 00:00:00,223.5,"11040","Builders","REDACTED DATA","M & G CONSTRUCTION LTD.","1918880","http://opencorporates.com/companies/gb/1918880","406392853"
"London Borough of Redbridge","http://opendatacommunities.org/doc/london-borough-council/redbridge","1BOTHEROPI&E","Other Operating Income & Expenditure","1CTRADSURDEF","Trading Account Surpluses & Deficits","REV","Revenue","R9551","CLM Maintenance","02-PREMISES","Premises","02A","Repairs, alteration and maintenance of buildings","3026","Minor Maintenance","3501854","201811",26/01/2018 00:00:00,96,"11040","Builders","REDACTED DATA","M & G CONSTRUCTION LTD.","1918880","http://opencorporates.com/companies/gb/1918880","406392853"
"London Borough of Redbridge","http://opendatacommunities.org/doc/london-borough-council/redbridge","1BOTHEROPI&E","Other Operating Income & Expenditure","1CTRADSURDEF","Trading Account Surpluses & Deficits","REV","Revenue","R9551","CLM Maintenance","02-PREMISES","Premises","02A","Repairs, alteration and maintenance of buildings","3026","Minor Maintenance","3501854","201811",26/01/2018 00:00:00,985.45,"11040","Builders","REDACTED DATA","M & G CONSTRUCTION LTD.","1918880","http://opencorporates.com/companies/gb/1918880","406392853"
"London Borough of Redbridge","http://opendatacommunities.org/doc/london-borough-council/redbridge","1BOTHEROPI&E","Other Operating Income & Expenditure","1CTRADSURDEF","Trading Account Surpluses & Deficits","REV","Revenue","R9551","CLM Maintenance","02-PREMISES","Premises","02A","Repairs, alteration and maintenance of buildings","3026","Minor Maintenance","3501854","201811",26/01/2018 00:00:00,268.86,"11040","Builders","REDACTED DATA","M & G CONSTRUCTION LTD.","1918880","http://opencorporates.com/companies/gb/1918880","406392853"
"London Borough of Redbridge","http://opendatacommunities.org/doc/london-borough-council/redbridge","1BOTHEROPI&E","Other Operating Income & Expenditure","1CTRADSURDEF","Trading Account Surpluses & Deficits","REV","Revenue","R9551","CLM Maintenance","02-PREMISES","Premises","02A","Repairs, alteration and maintenance of buildings","3026","Minor Maintenance","3501854","201811",26/01/2018 00:00:00,48,"11040","Builders","REDACTED DATA","M & G CONSTRUCTION LTD.","1918880","http://opencorporates.com/companies/gb/1918880","406392853"
"London Borough of Redbridge","http://opendatacommunities.org/doc/london-borough-council/redbridge","1BOTHEROPI&E","Other Operating Income & Expenditure","1CTRADSURDEF","Trading Account Surpluses & Deficits","REV","Revenue","R9551","CLM Maintenance","02-PREMISES","Premises","02A","Repairs, alteration and maintenance of buildings","3026","Minor Maintenance","3501854","201811",26/01/2018 00:00:00,74,"11040","Builders","REDACTED DATA","M & G CONSTRUCTION LTD.","1918880","http://opencorporates.com/companies/gb/1918880","406392853"
"London Borough of Redbridge","http://opendatacommunities.org/doc/london-borough-council/redbridge","1BOTHEROPI&E","Other Operating Income & Expenditure","1CTRADSURDEF","Trading Account Surpluses & Deficits","REV","Revenue","R9551","CLM Maintenance","02-PREMISES","Premises","02A","Repairs, alteration and maintenance of buildings","3026","Minor Maintenance","3501854","201811",26/01/2018 00:00:00,276.6,"11040","Builders","REDACTED DATA","M & G CONSTRUCTION LTD.","1918880","http://opencorporates.com/companies/gb/1918880","406392853"
"London Borough of Redbridge","http://opendatacommunities.org/doc/london-borough-council/redbridge","1BOTHEROPI&E","Other Operating Income & Expenditure","1CTRADSURDEF","Trading Account Surpluses & Deficits","REV","Revenue","R9551","CLM Maintenance","02-PREMISES","Premises","02A","Repairs, alteration and maintenance of buildings","3026","Minor Maintenance","3501854","201811",26/01/2018 00:00:00,249.63,"11040","Builders","REDACTED DATA","M & G CONSTRUCTION LTD.","1918880","http://opencorporates.com/companies/gb/1918880","406392853"
"London Borough of Redbridge","http://opendatacommunities.org/doc/london-borough-council/redbridge","1BOTHEROPI&E","Other Operating Income & Expenditure","1CTRADSURDEF","Trading Account Surpluses & Deficits","REV","Revenue","R9551","CLM Maintenance","02-PREMISES","Premises","02A","Repairs, alteration and maintenance of buildings","3026","Minor Maintenance","3501854","201811",26/01/2018 00:00:00,90,"11040","Builders","REDACTED DATA","M & G CONSTRUCTION LTD.","1918880","http://opencorporates.com/companies/gb/1918880","406392853"
"London Borough of Redbridge","http://opendatacommunities.org/doc/london-borough-council/redbridge","1BOTHEROPI&E","Other Operating Income & Expenditure","1CTRADSURDEF","Trading Account Surpluses & Deficits","REV","Revenue","R9551","CLM Maintenance","02-PREMISES","Premises","02A","Repairs, alteration and maintenance of buildings","3026","Minor Maintenance","3501854","201811",26/01/2018 00:00:00,90,"11040","Builders","REDACTED DATA","M & G CONSTRUCTION LTD.","1918880","http://opencorporates.com/companies/gb/1918880","406392853"
"London Borough of Redbridge","http://opendatacommunities.org/doc/london-borough-council/redbridge","1BOTHEROPI&E","Other Operating Income & Expenditure","1CTRADSURDEF","Trading Account Surpluses & Deficits","REV","Revenue","R9575","Ilford Chambers Service Charge Account","02-PREMISES","Premises","02A","Repairs, alteration and maintenance of buildings","3026","Minor Maintenance","3501854","201811",26/01/2018 00:00:00,48,"11040","Builders","REDACTED DATA","M & G CONSTRUCTION LTD.","1918880","http://opencorporates.com/companies/gb/1918880","406392853"
"London Borough of Redbridge","http://opendatacommunities.org/doc/london-borough-council/redbridge","1BOTHEROPI&E","Other Operating Income & Expenditure","1CTRADSURDEF","Trading Account Surpluses & Deficits","REV","Revenue","R9576","Broadway Chambers Service Charge Account","02-PREMISES","Premises","02A","Repairs, alteration and maintenance of buildings","3026","Minor Maintenance","3501854","201811",26/01/2018 00:00:00,72,"11040","Builders","REDACTED DATA","M & G CONSTRUCTION LTD.","1918880","http://opencorporates.com/companies/gb/1918880","406392853"
"London Borough of Redbridge","http://opendatacommunities.org/doc/london-borough-council/redbridge","2BCULTUR&REL","Cultural & Related Services","2CCULTUR&HER","Culture & Heritage","REV","Revenue","R6281","KMT - Tenant","02-PREMISES","Premises","02A","Repairs, alteration and maintenance of buildings","3040","Tenant Maintenance","3501854","201811",26/01/2018 00:00:00,399,"11040","Builders","REDACTED DATA","M & G CONSTRUCTION LTD.","1918880","http://opencorporates.com/companies/gb/1918880","406392853"
"London Borough of Redbridge","http://opendatacommunities.org/doc/london-borough-council/redbridge","5BGFHOUSING","General Fund Housing","5CHOMELESS","Homelessness","REV","Revenue","R5622","The Foyer","05-THIRD","Third Party Payments","05H","Private contractors","6915","Contractor Payments","3501854","201811",26/01/2018 00:00:00,142.51,"11040","Builders","REDACTED DATA","M & G CONSTRUCTION LTD.","1918880","http://opencorporates.com/companies/gb/1918880","406392853"
"London Borough of Redbridge","http://opendatacommunities.org/doc/london-borough-council/redbridge","5BGFHOUSING","General Fund Housing","5CHOMELESS","Homelessness","REV","Revenue","R5654","St Georgio","05-THIRD","Third Party Payments","05H","Private contractors","6915","Contractor Payments","3501854","201811",26/01/2018 00:00:00,372.9,"11040","Builders","REDACTED DATA","M & G CONSTRUCTION LTD.","1918880","http://opencorporates.com/companies/gb/1918880","406392853"
"London Borough of Redbridge","http://opendatacommunities.org/doc/london-borough-council/redbridge","6BADULTSOCIA","Adult Social Care","6CADLEARNDIS","Adults Under 65 with Learning Disabilities","REV","Revenue","R4215","LD Direct Payments","06-TRANSFER","Transfer Payments","06B","Social Services Clients","7053","Direct Payments","3501127","201811",07/02/2018 00:00:00,4587.2,"90005","Home Care Services DP","REDACTED DATA","REDACTED DATA","",,""
"London Borough of Redbridge","http://opendatacommunities.org/doc/london-borough-council/redbridge","6BADULTSOCIA","Adult Social Care","6CADLEARNDIS","Adults Under 65 with Learning Disabilities","REV","Revenue","R4215","LD Direct Payments","09-INCOME","Income","09C","Customer and Client Receipts","8545","Direct Payments Income","3501127","201811",07/02/2018 00:00:00,-476,"90005","Home Care Services DP","REDACTED DATA","REDACTED DATA","",,""
"London Borough of Redbridge","http://opendatacommunities.org/doc/london-borough-council/redbridge","6BADULTSOCIA","Adult Social Care","6COLDINCMENT","Older People (65 or over) incl. Older Mentally Ill","REV","Revenue","R4410","OP Voluntary Contracts","05-THIRD","Third Party Payments","05F","Voluntary associations","6800","Voluntary Organisations","90930254","201811",12/12/2017 00:00:00,4083.43,"17020","Charities and Voluntary Organisations","REDACTED DATA","REDBRIDGE GUJERATI WELFARE  ASSOCIATION","",,""
"London Borough of Redbridge","http://opendatacommunities.org/doc/london-borough-council/redbridge","6BADULTSOCIA","Adult Social Care","6CADPHYSDIS","Adults Under 65 with Phys Disab or Sensory Impair","REV","Revenue","R4054","Dis - Section 5 and 6 Residential","05-THIRD","Third Party Payments","05F","Voluntary associations","6802","Residential Homes","90926732","201811",23/01/2018 00:00:00,4404.16,"25820","Disability and Special Needs - Services","REDACTED DATA","DISABILITIES TRUST(SHINEWATER COURT)","",,""
"London Borough of Redbridge","http://opendatacommunities.org/doc/london-borough-council/redbridge","6BADULTSOCIA","Adult Social Care","6CADPHYSDIS","Adults Under 65 with Phys Disab or Sensory Impair","REV","Revenue","R4054","Dis - Section 5 and 6 Residential","09-INCOME","Income","09C","Customer and Client Receipts","8555","Accommodation Charges","90926732","201811",23/01/2018 00:00:00,-323,"25820","Disability and Special Needs - Services","REDACTED DATA","DISABILITIES TRUST(SHINEWATER COURT)","",,""
"London Borough of Redbridge","http://opendatacommunities.org/doc/london-borough-council/redbridge","1BOTHEROPI&E","Other Operating Income & Expenditure","1CTRADSURDEF","Trading Account Surpluses & Deficits","REV","Revenue","R9462","Employment Relations","04-SUPPLIES","Supplies And Services","04E","Services","5755","Counselling","60365608","201811",05/02/2018 00:00:00,4080,"79980","Training Services","REDACTED DATA","EDENDYNAMICS LTD","4375929","http://opencorporates.com/companies/gb/4375929","937532310"
"London Borough of Redbridge","http://opendatacommunities.org/doc/london-borough-council/redbridge","6BADULTSOCIA","Adult Social Care","6CADLEARNDIS","Adults Under 65 with Learning Disabilities","REV","Revenue","R4215","LD Direct Payments","06-TRANSFER","Transfer Payments","06B","Social Services Clients","7053","Direct Payments","3501673","201811",07/02/2018 00:00:00,4071.44,"90005","Home Care Services DP","REDACTED DATA","REDACTED DATA","",,""
"London Borough of Redbridge","http://opendatacommunities.org/doc/london-borough-council/redbridge","9BNONBVO","Outside the BVACOP Objective Structure","9CNONBVO","Outside the BVACOP Objective Structure","CAP","Capital","C4284","Gordon Infant School","99-NONBV","Capital, Balance Sheet and Control","50B","Capital - Contracted Works","9055","External - Consultants Fees","60366520","201811",30/10/2017 00:00:00,3392,"31590","Engineers - Consulting","REDACTED DATA","MOTT MACDONALD LTD","1243967","http://opencorporates.com/companies/gb/1243967","523765636"
"London Borough of Redbridge","http://opendatacommunities.org/doc/london-borough-council/redbridge","9BNONBVO","Outside the BVACOP Objective Structure","9CNONBVO","Outside the BVACOP Objective Structure","CAP","Capital","C4284","Gordon Infant School","99-NONBV","Capital, Balance Sheet and Control","50B","Capital - Contracted Works","9055","External - Consultants Fees","60366521","201811",18/12/2017 00:00:00,3392,"31590","Engineers - Consulting","REDACTED DATA","MOTT MACDONALD LTD","1243967","http://opencorporates.com/companies/gb/1243967","523765636"
"London Borough of Redbridge","http://opendatacommunities.org/doc/london-borough-council/redbridge","9BNONBVO","Outside the BVACOP Objective Structure","9CNONBVO","Outside the BVACOP Objective Structure","CAP","Capital","C3101","Green Flag Works","99-NONBV","Capital, Balance Sheet and Control","50E","Capital - Contract Payments","9150","Main Contract","60366846","201811",08/02/2018 00:00:00,3390.6,"34660","Fencing Contractors","REDACTED DATA","THE HAVERING FENCING COMPANY LIMITED","",,"246240284"
"London Borough of Redbridge","http://opendatacommunities.org/doc/london-borough-council/redbridge","6BPUBHEALTH","Public Health","6CSEXHEALTH","Sexual Health","REV","Revenue","R4804","STI Testing & Treatment","05-THIRD","Third Party Payments","05D","Health authorities","6703","Hospital Trusts","70099939","201811",30/11/2017 00:00:00,4037.04,"42200","Health Authorities","REDACTED DATA","CENTRAL & NORTH WEST LONDON NHS FOUNDATION TRUST","",,"654970895"
"London Borough of Redbridge","http://opendatacommunities.org/doc/london-borough-council/redbridge","6BADULTSOCIA","Adult Social Care","6CADLEARNDIS","Adults Under 65 with Learning Disabilities","REV","Revenue","R4215","LD Direct Payments","06-TRANSFER","Transfer Payments","06B","Social Services Clients","7053","Direct Payments","3501799","201811",07/02/2018 00:00:00,4360.8,"90005","Home Care Services DP","REDACTED DATA","REDACTED DATA","",,""
"London Borough of Redbridge","http://opendatacommunities.org/doc/london-borough-council/redbridge","6BADULTSOCIA","Adult Social Care","6CADLEARNDIS","Adults Under 65 with Learning Disabilities","REV","Revenue","R4215","LD Direct Payments","09-INCOME","Income","09C","Customer and Client Receipts","8545","Direct Payments Income","3501799","201811",07/02/2018 00:00:00,-327.84,"90005","Home Care Services DP","REDACTED DATA","REDACTED DATA","",,""
"London Borough of Redbridge","http://opendatacommunities.org/doc/london-borough-council/redbridge","6BADULTSOCIA","Adult Social Care","6CADLEARNDIS","Adults Under 65 with Learning Disabilities","REV","Revenue","R4185","LD - Supported Living","06-TRANSFER","Transfer Payments","06B","Social Services Clients","7066","Supportive Lodgings (Transfer Payments)","90926410","201811",23/01/2018 00:00:00,4251.43,"17020","Charities and Voluntary Organisations","REDACTED DATA","MENCAP","550457","http://opencorporates.com/companies/gb/550457","233010136"
"London Borough of Redbridge","http://opendatacommunities.org/doc/london-borough-council/redbridge","6BADULTSOCIA","Adult Social Care","6CADLEARNDIS","Adults Under 65 with Learning Disabilities","REV","Revenue","R4185","LD - Supported Living","09-INCOME","Income","09C","Customer and Client Receipts","8553","Care Package Charges","90926410","201811",23/01/2018 00:00:00,-221.96,"17020","Charities and Voluntary Organisations","REDACTED DATA","MENCAP","550457","http://opencorporates.com/companies/gb/550457","233010136"
"London Borough of Redbridge","http://opendatacommunities.org/doc/london-borough-council/redbridge","6BADULTSOCIA","Adult Social Care","6CADMENHLTH","Adults Under 65 with Mental Health Needs","REV","Revenue","R4190","MH - Residential Care","05-THIRD","Third Party Payments","05F","Voluntary associations","6802","Residential Homes","90926634","201811",23/01/2018 00:00:00,4025.72,"64710","Residential Care Homes","REDACTED DATA","LEYTON HOUSE COMMUNITY CARE LTD","4199578","http://opencorporates.com/companies/gb/4199578",""
"London Borough of Redbridge","http://opendatacommunities.org/doc/london-borough-council/redbridge","6BADULTSOCIA","Adult Social Care","6COLDINCMENT","Older People (65 or over) incl. Older Mentally Ill","REV","Revenue","R4378","OP Residential","05-THIRD","Third Party Payments","05F","Voluntary associations","6802","Residential Homes","90926256","201811",23/01/2018 00:00:00,6142.44,"64710","Residential Care Homes","REDACTED DATA","RUNWOOD HOMES PLC (CROWSTONE HOUSE)","",,""
"London Borough of Redbridge","http://opendatacommunities.org/doc/london-borough-council/redbridge","6BADULTSOCIA","Adult Social Care","6COLDINCMENT","Older People (65 or over) incl. Older Mentally Ill","REV","Revenue","R4378","OP Residential","09-INCOME","Income","09C","Customer and Client Receipts","8555","Accommodation Charges","90926256","201811",23/01/2018 00:00:00,-2126.52,"64710","Residential Care Homes","REDACTED DATA","RUNWOOD HOMES PLC (CROWSTONE HOUSE)","",,""
"London Borough of Redbridge","http://opendatacommunities.org/doc/london-borough-council/redbridge","3BOPTIONHLDG","Optional Holding Accounts","3CYOUTH","Youth Service","REV","Revenue","R3379","Youth Detention Accommodation","05-THIRD","Third Party Payments","05H","Private contractors","6956","Bed Night Costs - Remand","3499246","201810",22/01/2018 00:00:00,4011,"86250","Youth Organisations and Centres","REDACTED DATA","YOUTH JUSTICE BOARD FOR ENGLAND AND WALES","",,""
"London Borough of Redbridge","http://opendatacommunities.org/doc/london-borough-council/redbridge","6BADULTSOCIA","Adult Social Care","6CADLEARNDIS","Adults Under 65 with Learning Disabilities","REV","Revenue","R4218","LD Individual Budgets","06-TRANSFER","Transfer Payments","06B","Social Services Clients","7053","Direct Payments","3501430","201811",07/02/2018 00:00:00,4008.6,"90005","Home Care Services DP","REDACTED DATA","REDACTED DATA","",,""
"London Borough of Redbridge","http://opendatacommunities.org/doc/london-borough-council/redbridge","6BADULTSOCIA","Adult Social Care","6CADPHYSDIS","Adults Under 65 with Phys Disab or Sensory Impair","REV","Revenue","R4214","PD Direct Payments","06-TRANSFER","Transfer Payments","06B","Social Services Clients","7053","Direct Payments","3501410","201811",07/02/2018 00:00:00,4346.4,"90005","Home Care Services DP","REDACTED DATA","REDACTED DATA","",,""
"London Borough of Redbridge","http://opendatacommunities.org/doc/london-borough-council/redbridge","6BADULTSOCIA","Adult Social Care","6CADPHYSDIS","Adults Under 65 with Phys Disab or Sensory Impair","REV","Revenue","R4214","PD Direct Payments","09-INCOME","Income","09C","Customer and Client Receipts","8545","Direct Payments Income","3501410","201811",07/02/2018 00:00:00,-338.68,"90005","Home Care Services DP","REDACTED DATA","REDACTED DATA","",,""
"London Borough of Redbridge","http://opendatacommunities.org/doc/london-borough-council/redbridge","3BLEACENTFND","LEA Centrally Held School Funds","3CFACILIMPRO","Facilitating School Improvement","REV","Revenue","R3240","Advisers/Inspectors","04-SUPPLIES","Supplies And Services","04E","Services","5959","Raising Standards in Schools","60367284","201811",08/01/2018 00:00:00,4000,"67981","Schools - Local Authority","REDACTED DATA","WOODLANDS PRIMARY SCHOOL","",,"24654647"
"London Borough of Redbridge","http://opendatacommunities.org/doc/london-borough-council/redbridge","3BNONSCHFUND","Non-School Funding","3CNONSCH","Non Schools","REV","Revenue","R3962","Early Years - 3 and 4 Year Olds","05-THIRD","Third Party Payments","05A","Independent units within the council","6517","Non-Maintained Schools","3502733","201811",23/02/2018 00:00:00,4000,"59760","Playgroups, Nurseries and Creches","REDACTED DATA","MALLARDS WOOD GROUP LTD","4837908","http://opencorporates.com/companies/gb/4837908",""
"London Borough of Redbridge","http://opendatacommunities.org/doc/london-borough-council/redbridge","5BGFHOUSING","General Fund Housing","5CHOMELESS","Homelessness","REV","Revenue","R5629","HAC Assessment","04-SUPPLIES","Supplies And Services","04K","Miscellaneous expenses","6282","Prevention & Procurement","70099798","201811",02/02/2018 00:00:00,4000,"47846","Letting Agents","REDACTED DATA","IDEAL LOCATIONS LONDON LTD","9818736","http://opencorporates.com/companies/gb/9818736","231843913"
"London Borough of Redbridge","http://opendatacommunities.org/doc/london-borough-council/redbridge","5BGFHOUSING","General Fund Housing","5CHOMELESS","Homelessness","REV","Revenue","R5629","HAC Assessment","04-SUPPLIES","Supplies And Services","04K","Miscellaneous expenses","6282","Prevention & Procurement","70099796","201811",15/02/2018 00:00:00,4000,"47846","Letting Agents","REDACTED DATA","IDEAL LOCATIONS LONDON LTD","9818736","http://opencorporates.com/companies/gb/9818736","231843913"
"London Borough of Redbridge","http://opendatacommunities.org/doc/london-borough-council/redbridge","5BGFHOUSING","General Fund Housing","5CHOMELESS","Homelessness","REV","Revenue","R5629","HAC Assessment","04-SUPPLIES","Supplies And Services","04K","Miscellaneous expenses","6282","Prevention & Procurement","70099805","201811",14/02/2018 00:00:00,4000,"61896","Property and Estate Management","REDACTED DATA","ZETA HOMES LTD","5380147","http://opencorporates.com/companies/gb/5380147",""
"London Borough of Redbridge","http://opendatacommunities.org/doc/london-borough-council/redbridge","5BGFHOUSING","General Fund Housing","5CHOMELESS","Homelessness","REV","Revenue","R5629","HAC Assessment","04-SUPPLIES","Supplies And Services","04K","Miscellaneous expenses","6282","Prevention & Procurement","70099749","201811",12/02/2018 00:00:00,4000,"47846","Letting Agents","REDACTED DATA","AYANN CONSULTANTS LTD","11025790","http://opencorporates.com/companies/gb/11025790",""
"London Borough of Redbridge","http://opendatacommunities.org/doc/london-borough-council/redbridge","5BGFHOUSING","General Fund Housing","5CHOMELESS","Homelessness","REV","Revenue","R5629","HAC Assessment","04-SUPPLIES","Supplies And Services","04K","Miscellaneous expenses","6282","Prevention & Procurement","70099747","201811",31/01/2018 00:00:00,4000,"47846","Letting Agents","REDACTED DATA","AYANN CONSULTANTS LTD","11025790","http://opencorporates.com/companies/gb/11025790",""
"London Borough of Redbridge","http://opendatacommunities.org/doc/london-borough-council/redbridge","5BGFHOUSING","General Fund Housing","5CHOMELESS","Homelessness","REV","Revenue","R5629","HAC Assessment","04-SUPPLIES","Supplies And Services","04K","Miscellaneous expenses","6282","Prevention & Procurement","70099564","201811",01/02/2018 00:00:00,4000,"47846","Letting Agents","REDACTED DATA","UK PROPERTY LET LTD T/AS UK POROPERTY LET","9569791","http://opencorporates.com/companies/gb/9569791",""
"London Borough of Redbridge","http://opendatacommunities.org/doc/london-borough-council/redbridge","5BGFHOUSING","General Fund Housing","5CHOMELESS","Homelessness","REV","Revenue","R5629","HAC Assessment","04-SUPPLIES","Supplies And Services","04K","Miscellaneous expenses","6282","Prevention & Procurement","70099748","201811",25/01/2018 00:00:00,4000,"47846","Letting Agents","REDACTED DATA","RME PROPERTIES T/A REAL MOVE ESTATES LTD","8970231","http://opencorporates.com/companies/gb/8970231",""
"London Borough of Redbridge","http://opendatacommunities.org/doc/london-borough-council/redbridge","5BGFHOUSING","General Fund Housing","5CHOMELESS","Homelessness","REV","Revenue","R5629","HAC Assessment","04-SUPPLIES","Supplies And Services","04K","Miscellaneous expenses","6282","Prevention & Procurement","70099797","201811",02/02/2018 00:00:00,4000,"61896","Property and Estate Management","REDACTED DATA","ZETA HOMES LTD","5380147","http://opencorporates.com/companies/gb/5380147",""
"London Borough of Redbridge","http://opendatacommunities.org/doc/london-borough-council/redbridge","3BINDSCHFUND","Individual School Funds","3CDELPRIMARY","Delegated Individual Primary School Budgets","REV","Revenue","S1050","CHRISTCHURCH : Supply Teachers","01-EMPLOYEES","Employees","01A","Direct employee expenses","409","Agency Staff Pay","60366260","201811",26/01/2018 00:00:00,3331,"29300","Education Agencies and Authorities","REDACTED DATA","DESTINATION EDUCATION LTD","",,"930151073"
"London Borough of Redbridge","http://opendatacommunities.org/doc/london-borough-council/redbridge","4BPARKING","Parking Services","4CTRAFMGT&RS","Traffic Management & Road Safety","REV","Revenue","R7086","Travel Awareness TFL Revenue","04-SUPPLIES","Supplies And Services","04K","Miscellaneous expenses","6263","Supportive Activities","60365734","201811",05/02/2018 00:00:00,3329,"54820","Outdoor Pursuit Organisers and Equipment","REDACTED DATA","TRAILNET CIC","6482275","http://opencorporates.com/companies/gb/6482275","128855973"
"London Borough of Redbridge","http://opendatacommunities.org/doc/london-borough-council/redbridge","3BNONSCHFUND","Non-School Funding","6CCHILLOOKED","Children Looked After","REV","Revenue","R2238","Looked After Children Placements LA","05-THIRD","Third Party Payments","05H","Private contractors","6917","Fostering Costs - Agency","60365805","201811",05/02/2018 00:00:00,3992,"1880","Adoption and Fostering","REDACTED DATA","ETHELBERT SPECIALIST HOMES LTD","3291503","http://opencorporates.com/companies/gb/3291503",""
"London Borough of Redbridge","http://opendatacommunities.org/doc/london-borough-council/redbridge","3BNONSCHFUND","Non-School Funding","6CCHILLOOKED","Children Looked After","REV","Revenue","R2238","Looked After Children Placements LA","05-THIRD","Third Party Payments","05H","Private contractors","6917","Fostering Costs - Agency","60364276","201810",19/01/2018 00:00:00,3986.6,"1880","Adoption and Fostering","REDACTED DATA","NEXT STEP FOSTERING SERVICES LTD","5160087","http://opencorporates.com/companies/gb/5160087",""
"London Borough of Redbridge","http://opendatacommunities.org/doc/london-borough-council/redbridge","6BSOCIALSERV","Social Services","6CASYLUMSEEK","Asylum Seekers","REV","Revenue","R2129","Unaccompanied Asylum Seekers","04-SUPPLIES","Supplies And Services","04K","Miscellaneous expenses","6930","Transitional (Under 18)","60366078","201811",31/01/2018 00:00:00,3985.71,"64710","Residential Care Homes","REDACTED DATA","IDEAL CARE SOLUTIONS LIMITED","7566021","http://opencorporates.com/companies/gb/7566021","114183936"
"London Borough of Redbridge","http://opendatacommunities.org/doc/london-borough-council/redbridge","6BADULTSOCIA","Adult Social Care","6CADMENHLTH","Adults Under 65 with Mental Health Needs","REV","Revenue","R4190","MH - Residential Care","05-THIRD","Third Party Payments","05F","Voluntary associations","6802","Residential Homes","90926769","201811",23/01/2018 00:00:00,3981.56,"64710","Residential Care Homes","REDACTED DATA","TEALK SERVICES LTD (THE BEECHES- ILFORD)","4203171","http://opencorporates.com/companies/gb/4203171",""
"London Borough of Redbridge","http://opendatacommunities.org/doc/london-borough-council/redbridge","6BADULTSOCIA","Adult Social Care","6CADPHYSDIS","Adults Under 65 with Phys Disab or Sensory Impair","REV","Revenue","R4214","PD Direct Payments","06-TRANSFER","Transfer Payments","06B","Social Services Clients","7053","Direct Payments","3501099","201811",07/02/2018 00:00:00,4084,"90005","Home Care Services DP","REDACTED DATA","REDACTED DATA","",,""
"London Borough of Redbridge","http://opendatacommunities.org/doc/london-borough-council/redbridge","6BADULTSOCIA","Adult Social Care","6CADPHYSDIS","Adults Under 65 with Phys Disab or Sensory Impair","REV","Revenue","R4214","PD Direct Payments","09-INCOME","Income","09C","Customer and Client Receipts","8545","Direct Payments Income","3501099","201811",07/02/2018 00:00:00,-119,"90005","Home Care Services DP","REDACTED DATA","REDACTED DATA","",,""
"London Borough of Redbridge","http://opendatacommunities.org/doc/london-borough-council/redbridge","6BADULTSOCIA","Adult Social Care","6COLDINCMENT","Older People (65 or over) incl. Older Mentally Ill","REV","Revenue","R4378","OP Residential","05-THIRD","Third Party Payments","05F","Voluntary associations","6802","Residential Homes","90926258","201811",23/01/2018 00:00:00,460.32,"64710","Residential Care Homes","REDACTED DATA","RUNWOOD HOMES PLC","731250","http://opencorporates.com/companies/gb/731250",""
"London Borough of Redbridge","http://opendatacommunities.org/doc/london-borough-council/redbridge","6BADULTSOCIA","Adult Social Care","6COLDINCMENT","Older People (65 or over) incl. Older Mentally Ill","REV","Revenue","R4378","OP Residential","05-THIRD","Third Party Payments","05F","Voluntary associations","6802","Residential Homes","90926258","201811",23/01/2018 00:00:00,5784.24,"64710","Residential Care Homes","REDACTED DATA","RUNWOOD HOMES PLC","731250","http://opencorporates.com/companies/gb/731250",""
"London Borough of Redbridge","http://opendatacommunities.org/doc/london-borough-council/redbridge","6BADULTSOCIA","Adult Social Care","6COLDINCMENT","Older People (65 or over) incl. Older Mentally Ill","REV","Revenue","R4378","OP Residential","09-INCOME","Income","09C","Customer and Client Receipts","8555","Accommodation Charges","90926258","201811",23/01/2018 00:00:00,-460.32,"64710","Residential Care Homes","REDACTED DATA","RUNWOOD HOMES PLC","731250","http://opencorporates.com/companies/gb/731250",""
"London Borough of Redbridge","http://opendatacommunities.org/doc/london-borough-council/redbridge","6BADULTSOCIA","Adult Social Care","6COLDINCMENT","Older People (65 or over) incl. Older Mentally Ill","REV","Revenue","R4378","OP Residential","09-INCOME","Income","09C","Customer and Client Receipts","8555","Accommodation Charges","90926258","201811",23/01/2018 00:00:00,-1829.64,"64710","Residential Care Homes","REDACTED DATA","RUNWOOD HOMES PLC","731250","http://opencorporates.com/companies/gb/731250",""
"London Borough of Redbridge","http://opendatacommunities.org/doc/london-borough-council/redbridge","6BADULTSOCIA","Adult Social Care","6CADLEARNDIS","Adults Under 65 with Learning Disabilities","REV","Revenue","R4215","LD Direct Payments","06-TRANSFER","Transfer Payments","06B","Social Services Clients","7053","Direct Payments","3501509","201811",07/02/2018 00:00:00,3950.76,"90005","Home Care Services DP","REDACTED DATA","REDACTED DATA","",,""
"London Borough of Redbridge","http://opendatacommunities.org/doc/london-borough-council/redbridge","2BPLAN&DEVEL","Planning & Development Services","2CCOMMDEVT","Community Development","REV","Revenue","R9820","NHS Complaints Advocacy","04-SUPPLIES","Supplies And Services","04K","Miscellaneous expenses","6216","Contract","60367153","201811",19/02/2018 00:00:00,3950,"22570","Counselling and Advice Services","REDACTED DATA","POhWER","3323040","http://opencorporates.com/companies/gb/3323040",""
"London Borough of Redbridge","http://opendatacommunities.org/doc/london-borough-council/redbridge","6BSOCIALSERV","Social Services","6CCHILLOOKED","Children Looked After","REV","Revenue","R2132","Asylum Seekers Non Grant Funded Accompanied","04-SUPPLIES","Supplies And Services","04K","Miscellaneous expenses","6930","Transitional (Under 18)","60365739","201811",01/02/2018 00:00:00,3941.43,"47846","Letting Agents","REDACTED DATA","GOLDEN CARE ESTATES","4756375","http://opencorporates.com/companies/gb/4756375","911917137"
"London Borough of Redbridge","http://opendatacommunities.org/doc/london-borough-council/redbridge","3BINDSCHFUND","Individual School Funds","3CDELSECOND","Delegated Individual Secondary School Budgets","REV","Revenue","S3012","MAYFIELD -  Advertising","01-EMPLOYEES","Employees","01B","Indirect employee expenses","2400","Advertising For Staff","60366736","201811",29/01/2018 00:00:00,3276.44,"1961","Advertising - Agencies","REDACTED DATA","ACCORD GROUP LTD","3874258","http://opencorporates.com/companies/gb/3874258","749570492"
"London Borough of Redbridge","http://opendatacommunities.org/doc/london-borough-council/redbridge","3BINDSCHFUND","Individual School Funds","3CDELSECOND","Delegated Individual Secondary School Budgets","REV","Revenue","S3545","KING SOLOMON -  Gas","02-PREMISES","Premises","02B","Energy costs","4002","Gas","60367130","201811",05/02/2018 00:00:00,3729.98,"30586","Electricity Companies","REDACTED DATA","OPUS ENERGY LTD","4382246","http://opencorporates.com/companies/gb/4382246","818290029"
"London Borough of Redbridge","http://opendatacommunities.org/doc/london-borough-council/redbridge","2BCULTUR&REL","Cultural & Related Services","2CREC&SPORT","Recreation & Sport","REV","Revenue","R6993","Development of Hainault Forest Country Park","04-SUPPLIES","Supplies And Services","04H","Grants and subscriptions","5954","Professional Fees","60366449","201811",12/02/2018 00:00:00,3263,"20482","Community Projects","REDACTED DATA","COMMUNITY FIRST PARTNERSHIP LTD","4738700","http://opencorporates.com/companies/gb/4738700","802998307"
"London Borough of Redbridge","http://opendatacommunities.org/doc/london-borough-council/redbridge","2BENVIRONMEN","Environmental Services","2CENVTLHEALT","Environmental Health","REV","Revenue","R6765","Pest Control","04-SUPPLIES","Supplies And Services","04K","Miscellaneous expenses","6216","Contract","60367355","201811",04/01/2018 00:00:00,3259.06,"57130","Pest and Vermin Control Products","REDACTED DATA","RENTOKIL PEST CONTROL","301044","http://opencorporates.com/companies/gb/301044","209918933"
"London Borough of Redbridge","http://opendatacommunities.org/doc/london-borough-council/redbridge","4BMANGT&SUPP","Management & Support Services","4CHIGHRDROUT","Highways/Roads (Routine)","REV","Revenue","R7079","Highways and Transportation Management","01-EMPLOYEES","Employees","01B","Indirect employee expenses","2403","External Training","60367358","201811",28/09/2017 00:00:00,3900,"79980","Training Services","REDACTED DATA","LONDON SOUTH BANK UNIVERSITY","986761","http://opencorporates.com/companies/gb/986761","778111617"
"London Borough of Redbridge","http://opendatacommunities.org/doc/london-borough-council/redbridge","4BMANGT&SUPP","Management & Support Services","4CHIGHRDROUT","Highways/Roads (Routine)","REV","Revenue","R7079","Highways and Transportation Management","01-EMPLOYEES","Employees","01B","Indirect employee expenses","2403","External Training","60367289","201811",18/10/2017 00:00:00,3900,"79980","Training Services","REDACTED DATA","LONDON SOUTH BANK UNIVERSITY","986761","http://opencorporates.com/companies/gb/986761","778111617"
"London Borough of Redbridge","http://opendatacommunities.org/doc/london-borough-council/redbridge","6BADULTSOCIA","Adult Social Care","6CADMENHLTH","Adults Under 65 with Mental Health Needs","REV","Revenue","R4190","MH - Residential Care","05-THIRD","Third Party Payments","05F","Voluntary associations","6802","Residential Homes","90926558","201811",23/01/2018 00:00:00,3876,"64710","Residential Care Homes","REDACTED DATA","ENDSLEIGH CARE LTD","7999328","http://opencorporates.com/companies/gb/7999328",""
"London Borough of Redbridge","http://opendatacommunities.org/doc/london-borough-council/redbridge","6BSOCIALSERV","Social Services","6COTHC&FSERV","Other Children's & Families' Services","REV","Revenue","R2168","NRtPF","06-TRANSFER","Transfer Payments","06B","Social Services Clients","7055","Habitual Residents","60366112","201811",07/02/2018 00:00:00,3220,"47846","Letting Agents","REDACTED DATA","GRIHA LIMITED","9206190","http://opencorporates.com/companies/gb/9206190","2155932"
"London Borough of Redbridge","http://opendatacommunities.org/doc/london-borough-council/redbridge","6BADULTSOCIA","Adult Social Care","6CADLEARNDIS","Adults Under 65 with Learning Disabilities","REV","Revenue","R4188","LD - Residential Care","05-THIRD","Third Party Payments","05F","Voluntary associations","6802","Residential Homes","90926474","201811",23/01/2018 00:00:00,4185.36,"64710","Residential Care Homes","REDACTED DATA","CARELINK LIMITED (S SHARMA)","",,""
"London Borough of Redbridge","http://opendatacommunities.org/doc/london-borough-council/redbridge","6BADULTSOCIA","Adult Social Care","6CADLEARNDIS","Adults Under 65 with Learning Disabilities","REV","Revenue","R4188","LD - Residential Care","09-INCOME","Income","09C","Customer and Client Receipts","8555","Accommodation Charges","90926474","201811",23/01/2018 00:00:00,-323,"64710","Residential Care Homes","REDACTED DATA","CARELINK LIMITED (S SHARMA)","",,""
"London Borough of Redbridge","http://opendatacommunities.org/doc/london-borough-council/redbridge","6BADULTSOCIA","Adult Social Care","6CADLEARNDIS","Adults Under 65 with Learning Disabilities","REV","Revenue","R4185","LD - Supported Living","06-TRANSFER","Transfer Payments","06B","Social Services Clients","7066","Supportive Lodgings (Transfer Payments)","90926456","201811",23/01/2018 00:00:00,3847.28,"1266","Accommodation Agencies - Residential","REDACTED DATA","SPENCER & ARLINGTON LTD","4377774","http://opencorporates.com/companies/gb/4377774",""
"London Borough of Redbridge","http://opendatacommunities.org/doc/london-borough-council/redbridge","3BNONSCHFUND","Non-School Funding","6CCHILLOOKED","Children Looked After","REV","Revenue","R2238","Looked After Children Placements LA","05-THIRD","Third Party Payments","05H","Private contractors","6917","Fostering Costs - Agency","60367035","201811",31/01/2018 00:00:00,3820.75,"1880","Adoption and Fostering","REDACTED DATA","FAMILY FIRST FOSTERING LTD","8113491","http://opencorporates.com/companies/gb/8113491",""
"London Borough of Redbridge","http://opendatacommunities.org/doc/london-borough-council/redbridge","3BNONSCHFUND","Non-School Funding","3CNONSCH","Non Schools","REV","Revenue","R3963","Early Years - 2 Year Olds - Statutory Place Funding","05-THIRD","Third Party Payments","05A","Independent units within the council","6517","Non-Maintained Schools","3500550","201811",05/02/2018 00:00:00,3820.5,"17580","Childcare Services","REDACTED DATA","BINDU CHILDCARE SERVICES LTD T/A ILFORD PRESCHOOL BREAKFAST & AFTERSCHOOLCLUB","9131239","http://opencorporates.com/companies/gb/9131239",""
"London Borough of Redbridge","http://opendatacommunities.org/doc/london-borough-council/redbridge","3BLEACENTFND","LEA Centrally Held School Funds","3CNONSCH","Non Schools","REV","Revenue","R2231","Special School Top Up Fees","05-THIRD","Third Party Payments","05G","Other establishments","7432","OOB Pre 16 Top Up","60366806","201811",01/01/2018 00:00:00,3803.8,"67981","Schools - Local Authority","REDACTED DATA","IAN MIKARDO HIGH SCHOOL","",,"232484277"
"London Borough of Redbridge","http://opendatacommunities.org/doc/london-borough-council/redbridge","3BINDSCHFUND","Individual School Funds","3CDELPRIMARY","Delegated Individual Primary School Budgets","REV","Revenue","S1050","CHRISTCHURCH : Supply Teachers","01-EMPLOYEES","Employees","01A","Direct employee expenses","409","Agency Staff Pay","60365348","201811",19/01/2018 00:00:00,3169,"29300","Education Agencies and Authorities","REDACTED DATA","DESTINATION EDUCATION LTD","",,"930151073"
"London Borough of Redbridge","http://opendatacommunities.org/doc/london-borough-council/redbridge","3BNONSCHFUND","Non-School Funding","6CCHILLOOKED","Children Looked After","REV","Revenue","R2238","Looked After Children Placements LA","05-THIRD","Third Party Payments","05H","Private contractors","6917","Fostering Costs - Agency","60365750","201811",01/02/2018 00:00:00,3800,"1880","Adoption and Fostering","REDACTED DATA","BRIGHTER FUTURES FOSTER CARE LTD","8013526237","http://opencorporates.com/companies/gb/8013526237","6846257"
"London Borough of Redbridge","http://opendatacommunities.org/doc/london-borough-council/redbridge","6BADULTSOCIA","Adult Social Care","6CADLEARNDIS","Adults Under 65 with Learning Disabilities","REV","Revenue","R4215","LD Direct Payments","06-TRANSFER","Transfer Payments","06B","Social Services Clients","7053","Direct Payments","3501628","201811",07/02/2018 00:00:00,3795.6,"90005","Home Care Services DP","REDACTED DATA","REDACTED DATA","",,""
"London Borough of Redbridge","http://opendatacommunities.org/doc/london-borough-council/redbridge","5BGFHOUSING","General Fund Housing","5CHOMELESS","Homelessness","REV","Revenue","R5630","HAC Temporary Accomodation","05-THIRD","Third Party Payments","05H","Private contractors","6900","Nightly Let Plus Charges","3500603","201811",01/03/2016 00:00:00,3791.23,"47846","Letting Agents","REDACTED DATA","THEORI HOUSING MANAGEMENT SERVICES LIMITED","4048450","http://opencorporates.com/companies/gb/4048450","773898950"
"London Borough of Redbridge","http://opendatacommunities.org/doc/london-borough-council/redbridge","6BADULTSOCIA","Adult Social Care","6CADLEARNDIS","Adults Under 65 with Learning Disabilities","REV","Revenue","R4188","LD - Residential Care","05-THIRD","Third Party Payments","05F","Voluntary associations","6802","Residential Homes","90926750","201811",23/01/2018 00:00:00,3981.56,"64710","Residential Care Homes","REDACTED DATA","TEALK SERVICES LTD (THE BEECHES- ILFORD)","4203171","http://opencorporates.com/companies/gb/4203171",""
"London Borough of Redbridge","http://opendatacommunities.org/doc/london-borough-council/redbridge","6BADULTSOCIA","Adult Social Care","6CADLEARNDIS","Adults Under 65 with Learning Disabilities","REV","Revenue","R4188","LD - Residential Care","09-INCOME","Income","09C","Customer and Client Receipts","8555","Accommodation Charges","90926750","201811",23/01/2018 00:00:00,-192.8,"64710","Residential Care Homes","REDACTED DATA","TEALK SERVICES LTD (THE BEECHES- ILFORD)","4203171","http://opencorporates.com/companies/gb/4203171",""
"London Borough of Redbridge","http://opendatacommunities.org/doc/london-borough-council/redbridge","3BNONSCHFUND","Non-School Funding","6CCHILLOOKED","Children Looked After","REV","Revenue","R2238","Looked After Children Placements LA","05-THIRD","Third Party Payments","05H","Private contractors","6917","Fostering Costs - Agency","60367993","201811",01/03/2018 00:00:00,3786.43,"1880","Adoption and Fostering","REDACTED DATA","BRIGHTER FUTURES FOSTER CARE LTD","8013526237","http://opencorporates.com/companies/gb/8013526237","6846257"
"London Borough of Redbridge","http://opendatacommunities.org/doc/london-borough-council/redbridge","6BADULTSOCIA","Adult Social Care","6CADLEARNDIS","Adults Under 65 with Learning Disabilities","REV","Revenue","R4215","LD Direct Payments","06-TRANSFER","Transfer Payments","06B","Social Services Clients","7053","Direct Payments","3501282","201811",07/02/2018 00:00:00,3812.76,"90005","Home Care Services DP","REDACTED DATA","REDACTED DATA","",,""
"London Borough of Redbridge","http://opendatacommunities.org/doc/london-borough-council/redbridge","6BADULTSOCIA","Adult Social Care","6CADLEARNDIS","Adults Under 65 with Learning Disabilities","REV","Revenue","R4215","LD Direct Payments","09-INCOME","Income","09C","Customer and Client Receipts","8545","Direct Payments Income","3501282","201811",07/02/2018 00:00:00,-40.44,"90005","Home Care Services DP","REDACTED DATA","REDACTED DATA","",,""
"London Borough of Redbridge","http://opendatacommunities.org/doc/london-borough-council/redbridge","6BADULTSOCIA","Adult Social Care","6CADLEARNDIS","Adults Under 65 with Learning Disabilities","REV","Revenue","R4215","LD Direct Payments","06-TRANSFER","Transfer Payments","06B","Social Services Clients","7053","Direct Payments","3501620","201811",07/02/2018 00:00:00,3946.12,"90005","Home Care Services DP","REDACTED DATA","REDACTED DATA","",,""
"London Borough of Redbridge","http://opendatacommunities.org/doc/london-borough-council/redbridge","6BADULTSOCIA","Adult Social Care","6CADLEARNDIS","Adults Under 65 with Learning Disabilities","REV","Revenue","R4215","LD Direct Payments","09-INCOME","Income","09C","Customer and Client Receipts","8545","Direct Payments Income","3501620","201811",07/02/2018 00:00:00,-185.16,"90005","Home Care Services DP","REDACTED DATA","REDACTED DATA","",,""
"London Borough of Redbridge","http://opendatacommunities.org/doc/london-borough-council/redbridge","3BNONSCHFUND","Non-School Funding","6CCHILLOOKED","Children Looked After","REV","Revenue","R2238","Looked After Children Placements LA","04-SUPPLIES","Supplies And Services","04K","Miscellaneous expenses","6930","Transitional (Under 18)","60365238","201811",31/01/2018 00:00:00,3759.99,"64710","Residential Care Homes","REDACTED DATA","HEARTWOOD RESIDENTIAL SERVICES LTD","7122916","http://opencorporates.com/companies/gb/7122916",""
"London Borough of Redbridge","http://opendatacommunities.org/doc/london-borough-council/redbridge","3BNONSCHFUND","Non-School Funding","6CCHILLOOKED","Children Looked After","REV","Revenue","R2238","Looked After Children Placements LA","04-SUPPLIES","Supplies And Services","04K","Miscellaneous expenses","6930","Transitional (Under 18)","60365241","201811",31/01/2018 00:00:00,3759.99,"64710","Residential Care Homes","REDACTED DATA","HEARTWOOD RESIDENTIAL SERVICES LTD","7122916","http://opencorporates.com/companies/gb/7122916",""
"London Borough of Redbridge","http://opendatacommunities.org/doc/london-borough-council/redbridge","3BNONSCHFUND","Non-School Funding","6CCHILLOOKED","Children Looked After","REV","Revenue","R2238","Looked After Children Placements LA","04-SUPPLIES","Supplies And Services","04K","Miscellaneous expenses","6930","Transitional (Under 18)","60365299","201811",31/01/2018 00:00:00,3759.99,"64710","Residential Care Homes","REDACTED DATA","HEARTWOOD RESIDENTIAL SERVICES LTD","7122916","http://opencorporates.com/companies/gb/7122916",""
"London Borough of Redbridge","http://opendatacommunities.org/doc/london-borough-council/redbridge","6BADULTSOCIA","Adult Social Care","6CADPHYSDIS","Adults Under 65 with Phys Disab or Sensory Impair","REV","Revenue","R4186","PD Residential","05-THIRD","Third Party Payments","05F","Voluntary associations","6802","Residential Homes","90926265","201811",23/01/2018 00:00:00,5369.76,"64710","Residential Care Homes","REDACTED DATA","RUNWOOD HOMES PLC","731250","http://opencorporates.com/companies/gb/731250",""
"London Borough of Redbridge","http://opendatacommunities.org/doc/london-borough-council/redbridge","6BADULTSOCIA","Adult Social Care","6CADPHYSDIS","Adults Under 65 with Phys Disab or Sensory Impair","REV","Revenue","R4186","PD Residential","09-INCOME","Income","09C","Customer and Client Receipts","8555","Accommodation Charges","90926265","201811",23/01/2018 00:00:00,-1613.4,"64710","Residential Care Homes","REDACTED DATA","RUNWOOD HOMES PLC","731250","http://opencorporates.com/companies/gb/731250",""
"London Borough of Redbridge","http://opendatacommunities.org/doc/london-borough-council/redbridge","6BADULTSOCIA","Adult Social Care","6CADPHYSDIS","Adults Under 65 with Phys Disab or Sensory Impair","REV","Revenue","R4186","PD Residential","05-THIRD","Third Party Payments","05F","Voluntary associations","6802","Residential Homes","90926542","201811",23/01/2018 00:00:00,4163.64,"64710","Residential Care Homes","REDACTED DATA","BLACK SWAN INTERNATIONAL LTD","2621410","http://opencorporates.com/companies/gb/2621410",""
"London Borough of Redbridge","http://opendatacommunities.org/doc/london-borough-council/redbridge","6BADULTSOCIA","Adult Social Care","6CADPHYSDIS","Adults Under 65 with Phys Disab or Sensory Impair","REV","Revenue","R4186","PD Residential","09-INCOME","Income","09C","Customer and Client Receipts","8555","Accommodation Charges","90926542","201811",23/01/2018 00:00:00,-415,"64710","Residential Care Homes","REDACTED DATA","BLACK SWAN INTERNATIONAL LTD","2621410","http://opencorporates.com/companies/gb/2621410",""
"London Borough of Redbridge","http://opendatacommunities.org/doc/london-borough-council/redbridge","6BADULTSOCIA","Adult Social Care","6CADPHYSDIS","Adults Under 65 with Phys Disab or Sensory Impair","REV","Revenue","R4214","PD Direct Payments","06-TRANSFER","Transfer Payments","06B","Social Services Clients","7053","Direct Payments","3501060","201811",07/02/2018 00:00:00,3744.6,"90005","Home Care Services DP","REDACTED DATA","REDACTED DATA","",,""
"London Borough of Redbridge","http://opendatacommunities.org/doc/london-borough-council/redbridge","1BOTHEROPI&E","Other Operating Income & Expenditure","1CTRADSURDEF","Trading Account Surpluses & Deficits","REV","Revenue","R9551","CLM Maintenance","02-PREMISES","Premises","02A","Repairs, alteration and maintenance of buildings","3016","General Premises Costs","60367266","201811",20/02/2018 00:00:00,3115,"36555","Fire Training","REDACTED DATA","MY FIRE SAFETY LTD","8031387","http://opencorporates.com/companies/gb/8031387","136128821"
"London Borough of Redbridge","http://opendatacommunities.org/doc/london-borough-council/redbridge","3BNONSCHFUND","Non-School Funding","3CNONSCH","Non Schools","REV","Revenue","R3963","Early Years - 2 Year Olds - Statutory Place Funding","05-THIRD","Third Party Payments","05A","Independent units within the council","6517","Non-Maintained Schools","3500491","201811",05/02/2018 00:00:00,3735.6,"59760","Playgroups, Nurseries and Creches","REDACTED DATA","WOODFORD PRE-SCHOOL PLAYGROUP","",,""
"London Borough of Redbridge","http://opendatacommunities.org/doc/london-borough-council/redbridge","3BNONSCHFUND","Non-School Funding","3CNONSCH","Non Schools","REV","Revenue","R3963","Early Years - 2 Year Olds - Statutory Place Funding","05-THIRD","Third Party Payments","05A","Independent units within the council","6517","Non-Maintained Schools","3500573","201811",05/02/2018 00:00:00,3735.6,"17580","Childcare Services","REDACTED DATA","KIDDY CARE NURSERY LTD","10249193","http://opencorporates.com/companies/gb/10249193",""
"London Borough of Redbridge","http://opendatacommunities.org/doc/london-borough-council/redbridge","3BNONSCHFUND","Non-School Funding","3CNONSCH","Non Schools","REV","Revenue","R3963","Early Years - 2 Year Olds - Statutory Place Funding","05-THIRD","Third Party Payments","05A","Independent units within the council","6517","Non-Maintained Schools","3500532","201811",05/02/2018 00:00:00,3735.6,"17580","Childcare Services","REDACTED DATA","LAKESIDE PRE SCHOOL","",,""
"London Borough of Redbridge","http://opendatacommunities.org/doc/london-borough-council/redbridge","5BGFHOUSING","General Fund Housing","5CHOMELESS","Homelessness","REV","Revenue","R5630","HAC Temporary Accomodation","05-THIRD","Third Party Payments","05H","Private contractors","6900","Nightly Let Plus Charges","3501997","201811",04/02/2018 00:00:00,1612,"31230","Employment and Recruitment Agencies","REDACTED DATA","ADAM HTT LIMITED T/A ADAM","7718565","http://opencorporates.com/companies/gb/7718565","198573349"
"London Borough of Redbridge","http://opendatacommunities.org/doc/london-borough-council/redbridge","5BGFHOUSING","General Fund Housing","5CHOMELESS","Homelessness","REV","Revenue","R5630","HAC Temporary Accomodation","05-THIRD","Third Party Payments","05H","Private contractors","6900","Nightly Let Plus Charges","3501997","201811",04/02/2018 00:00:00,930,"31230","Employment and Recruitment Agencies","REDACTED DATA","ADAM HTT LIMITED T/A ADAM","7718565","http://opencorporates.com/companies/gb/7718565","198573349"
"London Borough of Redbridge","http://opendatacommunities.org/doc/london-borough-council/redbridge","5BGFHOUSING","General Fund Housing","5CHOMELESS","Homelessness","REV","Revenue","R5630","HAC Temporary Accomodation","05-THIRD","Third Party Payments","05H","Private contractors","6900","Nightly Let Plus Charges","3501997","201811",04/02/2018 00:00:00,1441.5,"31230","Employment and Recruitment Agencies","REDACTED DATA","ADAM HTT LIMITED T/A ADAM","7718565","http://opencorporates.com/companies/gb/7718565","198573349"
"London Borough of Redbridge","http://opendatacommunities.org/doc/london-borough-council/redbridge","5BGFHOUSING","General Fund Housing","5CHOMELESS","Homelessness","REV","Revenue","R5630","HAC Temporary Accomodation","05-THIRD","Third Party Payments","05H","Private contractors","6900","Nightly Let Plus Charges","3501997","201811",04/02/2018 00:00:00,870.17,"31230","Employment and Recruitment Agencies","REDACTED DATA","ADAM HTT LIMITED T/A ADAM","7718565","http://opencorporates.com/companies/gb/7718565","198573349"
"London Borough of Redbridge","http://opendatacommunities.org/doc/london-borough-council/redbridge","5BGFHOUSING","General Fund Housing","5CHOMELESS","Homelessness","REV","Revenue","R5630","HAC Temporary Accomodation","05-THIRD","Third Party Payments","05H","Private contractors","6900","Nightly Let Plus Charges","3501997","201811",04/02/2018 00:00:00,1705,"31230","Employment and Recruitment Agencies","REDACTED DATA","ADAM HTT LIMITED T/A ADAM","7718565","http://opencorporates.com/companies/gb/7718565","198573349"
"London Borough of Redbridge","http://opendatacommunities.org/doc/london-borough-council/redbridge","5BGFHOUSING","General Fund Housing","5CHOMELESS","Homelessness","REV","Revenue","R5630","HAC Temporary Accomodation","05-THIRD","Third Party Payments","05H","Private contractors","6900","Nightly Let Plus Charges","3501997","201811",04/02/2018 00:00:00,1705,"31230","Employment and Recruitment Agencies","REDACTED DATA","ADAM HTT LIMITED T/A ADAM","7718565","http://opencorporates.com/companies/gb/7718565","198573349"
"London Borough of Redbridge","http://opendatacommunities.org/doc/london-borough-council/redbridge","5BGFHOUSING","General Fund Housing","5CHOMELESS","Homelessness","REV","Revenue","R5630","HAC Temporary Accomodation","05-THIRD","Third Party Payments","05H","Private contractors","6900","Nightly Let Plus Charges","3501997","201811",04/02/2018 00:00:00,2015,"31230","Employment and Recruitment Agencies","REDACTED DATA","ADAM HTT LIMITED T/A ADAM","7718565","http://opencorporates.com/companies/gb/7718565","198573349"
"London Borough of Redbridge","http://opendatacommunities.org/doc/london-borough-council/redbridge","5BGFHOUSING","General Fund Housing","5CHOMELESS","Homelessness","REV","Revenue","R5630","HAC Temporary Accomodation","05-THIRD","Third Party Payments","05H","Private contractors","6900","Nightly Let Plus Charges","3501997","201811",04/02/2018 00:00:00,2015,"31230","Employment and Recruitment Agencies","REDACTED DATA","ADAM HTT LIMITED T/A ADAM","7718565","http://opencorporates.com/companies/gb/7718565","198573349"
"London Borough of Redbridge","http://opendatacommunities.org/doc/london-borough-council/redbridge","5BGFHOUSING","General Fund Housing","5CHOMELESS","Homelessness","REV","Revenue","R5630","HAC Temporary Accomodation","05-THIRD","Third Party Payments","05H","Private contractors","6900","Nightly Let Plus Charges","3501997","201811",04/02/2018 00:00:00,1834.27,"31230","Employment and Recruitment Agencies","REDACTED DATA","ADAM HTT LIMITED T/A ADAM","7718565","http://opencorporates.com/companies/gb/7718565","198573349"
"London Borough of Redbridge","http://opendatacommunities.org/doc/london-borough-council/redbridge","5BGFHOUSING","General Fund Housing","5CHOMELESS","Homelessness","REV","Revenue","R5630","HAC Temporary Accomodation","05-THIRD","Third Party Payments","05H","Private contractors","6900","Nightly Let Plus Charges","3501997","201811",04/02/2018 00:00:00,1705,"31230","Employment and Recruitment Agencies","REDACTED DATA","ADAM HTT LIMITED T/A ADAM","7718565","http://opencorporates.com/companies/gb/7718565","198573349"
"London Borough of Redbridge","http://opendatacommunities.org/doc/london-borough-council/redbridge","5BGFHOUSING","General Fund Housing","5CHOMELESS","Homelessness","REV","Revenue","R5630","HAC Temporary Accomodation","05-THIRD","Third Party Payments","05H","Private contractors","6900","Nightly Let Plus Charges","3501997","201811",04/02/2018 00:00:00,1178,"31230","Employment and Recruitment Agencies","REDACTED DATA","ADAM HTT LIMITED T/A ADAM","7718565","http://opencorporates.com/companies/gb/7718565","198573349"
"London Borough of Redbridge","http://opendatacommunities.org/doc/london-borough-council/redbridge","3BNONSCHFUND","Non-School Funding","3CNONSCH","Non Schools","REV","Revenue","R3963","Early Years - 2 Year Olds - Statutory Place Funding","05-THIRD","Third Party Payments","05A","Independent units within the council","6517","Non-Maintained Schools","3500502","201811",05/02/2018 00:00:00,3735.6,"59760","Playgroups, Nurseries and Creches","REDACTED DATA","CLAYHALL NURSERY","",,""
"London Borough of Redbridge","http://opendatacommunities.org/doc/london-borough-council/redbridge","4BPUBLICTRAN","Public Transport","4CPARKING","Parking Services","REV","Revenue","R7036","On Street Parking Works","05-THIRD","Third Party Payments","05H","Private contractors","6915","Contractor Payments","60365152","201811",30/01/2018 00:00:00,3107,"1961","Advertising - Agencies","REDACTED DATA","CAVENDISH MEDIA LTD","3982290","http://opencorporates.com/companies/gb/3982290","756615116"
"London Borough of Redbridge","http://opendatacommunities.org/doc/london-borough-council/redbridge","1BCENTRALPUB","Central Services to the Public","1CTRADSURDEF","Trading Account Surpluses & Deficits","REV","Revenue","R5753","Cashiers","04-SUPPLIES","Supplies And Services","04F","Communications and computing","5853","Computer Software","60365730","201811",02/02/2018 00:00:00,3100,"20703","Computer Systems and Software","REDACTED DATA","NORTHGATE PUBLIC SERVICES (UK) LTD","968498","http://opencorporates.com/companies/gb/968498","202159745"
"London Borough of Redbridge","http://opendatacommunities.org/doc/london-borough-council/redbridge","6BADULTSOCIA","Adult Social Care","6COLDINCMENT","Older People (65 or over) incl. Older Mentally Ill","REV","Revenue","R4385","OP Nursing","05-THIRD","Third Party Payments","05H","Private contractors","6909","Nursing Homes","90926497","201811",23/01/2018 00:00:00,3717,"53350","Nursing Homes","REDACTED DATA","BUPA CARE SERVICES- BAKERS COURT NURSING HOME (ACCOMMODATION FEES)","",,""
"London Borough of Redbridge","http://opendatacommunities.org/doc/london-borough-council/redbridge","6BADULTSOCIA","Adult Social Care","6CADLEARNDIS","Adults Under 65 with Learning Disabilities","REV","Revenue","R4215","LD Direct Payments","06-TRANSFER","Transfer Payments","06B","Social Services Clients","7053","Direct Payments","3501164","201811",07/02/2018 00:00:00,3744.6,"90005","Home Care Services DP","REDACTED DATA","REDACTED DATA","",,""
"London Borough of Redbridge","http://opendatacommunities.org/doc/london-borough-council/redbridge","6BADULTSOCIA","Adult Social Care","6CADLEARNDIS","Adults Under 65 with Learning Disabilities","REV","Revenue","R4215","LD Direct Payments","09-INCOME","Income","09C","Customer and Client Receipts","8545","Direct Payments Income","3501164","201811",07/02/2018 00:00:00,-35.32,"90005","Home Care Services DP","REDACTED DATA","REDACTED DATA","",,""
"London Borough of Redbridge","http://opendatacommunities.org/doc/london-borough-council/redbridge","6BSOCIALSERV","Social Services","6CCHILLOOKED","Children Looked After","REV","Revenue","R2177","Public Law Outline","04-SUPPLIES","Supplies And Services","04H","Grants and subscriptions","5954","Professional Fees","60364935","201811",16/01/2018 00:00:00,3090,"6700","Barristers","REDACTED DATA","KATHRYN BLAIR","3410295397","http://opencorporates.com/companies/gb/3410295397",""
"London Borough of Redbridge","http://opendatacommunities.org/doc/london-borough-council/redbridge","3BNONSCHFUND","Non-School Funding","6CCHILLOOKED","Children Looked After","REV","Revenue","R2238","Looked After Children Placements LA","04-SUPPLIES","Supplies And Services","04K","Miscellaneous expenses","6930","Transitional (Under 18)","60365417","201811",01/02/2018 00:00:00,3699.92,"64710","Residential Care Homes","REDACTED DATA","ACORN HOMES UK LIMITED","3397032","http://opencorporates.com/companies/gb/3397032",""
"London Borough of Redbridge","http://opendatacommunities.org/doc/london-borough-council/redbridge","3BNONSCHFUND","Non-School Funding","6CCHILLOOKED","Children Looked After","REV","Revenue","R2238","Looked After Children Placements LA","05-THIRD","Third Party Payments","05H","Private contractors","6917","Fostering Costs - Agency","60365204","201810",30/01/2018 00:00:00,3697.99,"1880","Adoption and Fostering","REDACTED DATA","CHRYSALIS CARE","4473191","http://opencorporates.com/companies/gb/4473191",""
"London Borough of Redbridge","http://opendatacommunities.org/doc/london-borough-council/redbridge","9BNONBVO","Outside the BVACOP Objective Structure","9CNONBVO","Outside the BVACOP Objective Structure","BAL","Balance Sheet","B0095","CLOSED -  PO Holding Account","99-NONBV","Capital, Balance Sheet and Control","50Q","Other Balances & Reserves","9995","Early Payment Discount Holding Account","70099514","201811",17/01/2018 00:00:00,3697.2,"90005","Home Care Services DP","REDACTED DATA","REDACTED DATA","",,""
"London Borough of Redbridge","http://opendatacommunities.org/doc/london-borough-council/redbridge","6BADULTSOCIA","Adult Social Care","6CADMENHLTH","Adults Under 65 with Mental Health Needs","REV","Revenue","R4190","MH - Residential Care","05-THIRD","Third Party Payments","05F","Voluntary associations","6802","Residential Homes","90926577","201811",23/01/2018 00:00:00,3695.4,"64710","Residential Care Homes","REDACTED DATA","HART CARE ESSEX LTD","4253091","http://opencorporates.com/companies/gb/4253091",""
"London Borough of Redbridge","http://opendatacommunities.org/doc/london-borough-council/redbridge","5BGFHOUSING","General Fund Housing","5CHOMELESS","Homelessness","REV","Revenue","R5630","HAC Temporary Accomodation","05-THIRD","Third Party Payments","05H","Private contractors","6900","Nightly Let Plus Charges","3501997","201811",04/02/2018 00:00:00,899,"31230","Employment and Recruitment Agencies","REDACTED DATA","ADAM HTT LIMITED T/A ADAM","7718565","http://opencorporates.com/companies/gb/7718565","198573349"
"London Borough of Redbridge","http://opendatacommunities.org/doc/london-borough-council/redbridge","5BGFHOUSING","General Fund Housing","5CHOMELESS","Homelessness","REV","Revenue","R5630","HAC Temporary Accomodation","05-THIRD","Third Party Payments","05H","Private contractors","6900","Nightly Let Plus Charges","3501997","201811",04/02/2018 00:00:00,1705,"31230","Employment and Recruitment Agencies","REDACTED DATA","ADAM HTT LIMITED T/A ADAM","7718565","http://opencorporates.com/companies/gb/7718565","198573349"
"London Borough of Redbridge","http://opendatacommunities.org/doc/london-borough-council/redbridge","5BGFHOUSING","General Fund Housing","5CHOMELESS","Homelessness","REV","Revenue","R5630","HAC Temporary Accomodation","05-THIRD","Third Party Payments","05H","Private contractors","6900","Nightly Let Plus Charges","3501997","201811",04/02/2018 00:00:00,1178,"31230","Employment and Recruitment Agencies","REDACTED DATA","ADAM HTT LIMITED T/A ADAM","7718565","http://opencorporates.com/companies/gb/7718565","198573349"
"London Borough of Redbridge","http://opendatacommunities.org/doc/london-borough-council/redbridge","5BGFHOUSING","General Fund Housing","5CHOMELESS","Homelessness","REV","Revenue","R5630","HAC Temporary Accomodation","05-THIRD","Third Party Payments","05H","Private contractors","6900","Nightly Let Plus Charges","3501997","201811",26/01/2018 00:00:00,-450,"31230","Employment and Recruitment Agencies","REDACTED DATA","ADAM HTT LIMITED T/A ADAM","7718565","http://opencorporates.com/companies/gb/7718565","198573349"
"London Borough of Redbridge","http://opendatacommunities.org/doc/london-borough-council/redbridge","5BGFHOUSING","General Fund Housing","5CHOMELESS","Homelessness","REV","Revenue","R5630","HAC Temporary Accomodation","05-THIRD","Third Party Payments","05H","Private contractors","6900","Nightly Let Plus Charges","3501997","201811",04/02/2018 00:00:00,1550,"31230","Employment and Recruitment Agencies","REDACTED DATA","ADAM HTT LIMITED T/A ADAM","7718565","http://opencorporates.com/companies/gb/7718565","198573349"
"London Borough of Redbridge","http://opendatacommunities.org/doc/london-borough-council/redbridge","5BGFHOUSING","General Fund Housing","5CHOMELESS","Homelessness","REV","Revenue","R5630","HAC Temporary Accomodation","05-THIRD","Third Party Payments","05H","Private contractors","6900","Nightly Let Plus Charges","3501997","201811",04/02/2018 00:00:00,797.94,"31230","Employment and Recruitment Agencies","REDACTED DATA","ADAM HTT LIMITED T/A ADAM","7718565","http://opencorporates.com/companies/gb/7718565","198573349"
"London Borough of Redbridge","http://opendatacommunities.org/doc/london-borough-council/redbridge","5BGFHOUSING","General Fund Housing","5CHOMELESS","Homelessness","REV","Revenue","R5630","HAC Temporary Accomodation","05-THIRD","Third Party Payments","05H","Private contractors","6900","Nightly Let Plus Charges","3501997","201811",04/02/2018 00:00:00,797.94,"31230","Employment and Recruitment Agencies","REDACTED DATA","ADAM HTT LIMITED T/A ADAM","7718565","http://opencorporates.com/companies/gb/7718565","198573349"
"London Borough of Redbridge","http://opendatacommunities.org/doc/london-borough-council/redbridge","5BGFHOUSING","General Fund Housing","5CHOMELESS","Homelessness","REV","Revenue","R5630","HAC Temporary Accomodation","05-THIRD","Third Party Payments","05H","Private contractors","6900","Nightly Let Plus Charges","3501997","201811",04/02/2018 00:00:00,1612,"31230","Employment and Recruitment Agencies","REDACTED DATA","ADAM HTT LIMITED T/A ADAM","7718565","http://opencorporates.com/companies/gb/7718565","198573349"
"London Borough of Redbridge","http://opendatacommunities.org/doc/london-borough-council/redbridge","5BGFHOUSING","General Fund Housing","5CHOMELESS","Homelessness","REV","Revenue","R5630","HAC Temporary Accomodation","05-THIRD","Third Party Payments","05H","Private contractors","6900","Nightly Let Plus Charges","3501997","201811",04/02/2018 00:00:00,1302,"31230","Employment and Recruitment Agencies","REDACTED DATA","ADAM HTT LIMITED T/A ADAM","7718565","http://opencorporates.com/companies/gb/7718565","198573349"
"London Borough of Redbridge","http://opendatacommunities.org/doc/london-borough-council/redbridge","5BGFHOUSING","General Fund Housing","5CHOMELESS","Homelessness","REV","Revenue","R5630","HAC Temporary Accomodation","05-THIRD","Third Party Payments","05H","Private contractors","6900","Nightly Let Plus Charges","3501997","201811",04/02/2018 00:00:00,1178,"31230","Employment and Recruitment Agencies","REDACTED DATA","ADAM HTT LIMITED T/A ADAM","7718565","http://opencorporates.com/companies/gb/7718565","198573349"
"London Borough of Redbridge","http://opendatacommunities.org/doc/london-borough-council/redbridge","5BGFHOUSING","General Fund Housing","5CHOMELESS","Homelessness","REV","Revenue","R5630","HAC Temporary Accomodation","05-THIRD","Third Party Payments","05H","Private contractors","6900","Nightly Let Plus Charges","3501997","201811",04/02/2018 00:00:00,1550,"31230","Employment and Recruitment Agencies","REDACTED DATA","ADAM HTT LIMITED T/A ADAM","7718565","http://opencorporates.com/companies/gb/7718565","198573349"
"London Borough of Redbridge","http://opendatacommunities.org/doc/london-borough-council/redbridge","6BADULTSOCIA","Adult Social Care","6CADPHYSDIS","Adults Under 65 with Phys Disab or Sensory Impair","REV","Revenue","R4186","PD Residential","05-THIRD","Third Party Payments","05F","Voluntary associations","6802","Residential Homes","90926637","201811",23/01/2018 00:00:00,4017.6,"64710","Residential Care Homes","REDACTED DATA","LITTLE OYSTER LTD(LITTLE OYSTER RESIDENTIAL HOME)","7154099","http://opencorporates.com/companies/gb/7154099",""
"London Borough of Redbridge","http://opendatacommunities.org/doc/london-borough-council/redbridge","6BADULTSOCIA","Adult Social Care","6CADPHYSDIS","Adults Under 65 with Phys Disab or Sensory Impair","REV","Revenue","R4186","PD Residential","09-INCOME","Income","09C","Customer and Client Receipts","8555","Accommodation Charges","90926637","201811",23/01/2018 00:00:00,-323,"64710","Residential Care Homes","REDACTED DATA","LITTLE OYSTER LTD(LITTLE OYSTER RESIDENTIAL HOME)","7154099","http://opencorporates.com/companies/gb/7154099",""
"London Borough of Redbridge","http://opendatacommunities.org/doc/london-borough-council/redbridge","6BADULTSOCIA","Adult Social Care","6CADLEARNDIS","Adults Under 65 with Learning Disabilities","REV","Revenue","R4188","LD - Residential Care","05-THIRD","Third Party Payments","05F","Voluntary associations","6802","Residential Homes","90926477","201811",23/01/2018 00:00:00,4104.32,"64710","Residential Care Homes","REDACTED DATA","CARELINK LIMITED (S SHARMA)","",,""
"London Borough of Redbridge","http://opendatacommunities.org/doc/london-borough-council/redbridge","6BADULTSOCIA","Adult Social Care","6CADLEARNDIS","Adults Under 65 with Learning Disabilities","REV","Revenue","R4188","LD - Residential Care","09-INCOME","Income","09C","Customer and Client Receipts","8555","Accommodation Charges","90926477","201811",23/01/2018 00:00:00,-422.6,"64710","Residential Care Homes","REDACTED DATA","CARELINK LIMITED (S SHARMA)","",,""
"London Borough of Redbridge","http://opendatacommunities.org/doc/london-borough-council/redbridge","6BADULTSOCIA","Adult Social Care","6CADPHYSDIS","Adults Under 65 with Phys Disab or Sensory Impair","REV","Revenue","R4061","PD Section 5 and 6 Direct Payments","06-TRANSFER","Transfer Payments","06B","Social Services Clients","7053","Direct Payments","3501237","201811",07/02/2018 00:00:00,3681.88,"90005","Home Care Services DP","REDACTED DATA","REDACTED DATA","",,""
"London Borough of Redbridge","http://opendatacommunities.org/doc/london-borough-council/redbridge","6BADULTSOCIA","Adult Social Care","6CADPHYSDIS","Adults Under 65 with Phys Disab or Sensory Impair","REV","Revenue","R4061","PD Section 5 and 6 Direct Payments","09-INCOME","Income","09C","Customer and Client Receipts","8545","Direct Payments Income","3501237","201811",07/02/2018 00:00:00,-8.68,"90005","Home Care Services DP","REDACTED DATA","REDACTED DATA","",,""
"London Borough of Redbridge","http://opendatacommunities.org/doc/london-borough-council/redbridge","6BADULTSOCIA","Adult Social Care","6CADPHYSDIS","Adults Under 65 with Phys Disab or Sensory Impair","REV","Revenue","R4186","PD Residential","05-THIRD","Third Party Payments","05F","Voluntary associations","6802","Residential Homes","90926633","201811",23/01/2018 00:00:00,4075.16,"25820","Disability and Special Needs - Services","REDACTED DATA","LEONARD CHESHIRE FOUNDATION","552847","http://opencorporates.com/companies/gb/552847","646140453"
"London Borough of Redbridge","http://opendatacommunities.org/doc/london-borough-council/redbridge","6BADULTSOCIA","Adult Social Care","6CADPHYSDIS","Adults Under 65 with Phys Disab or Sensory Impair","REV","Revenue","R4186","PD Residential","09-INCOME","Income","09C","Customer and Client Receipts","8555","Accommodation Charges","90926633","201811",23/01/2018 00:00:00,-402.6,"25820","Disability and Special Needs - Services","REDACTED DATA","LEONARD CHESHIRE FOUNDATION","552847","http://opencorporates.com/companies/gb/552847","646140453"
"London Borough of Redbridge","http://opendatacommunities.org/doc/london-borough-council/redbridge","3BINDSCHFUND","Individual School Funds","3CDELSECOND","Delegated Individual Secondary School Budgets","REV","Revenue","S3529","KING SOLOMON - IT Whole School Expenditure","04-SUPPLIES","Supplies And Services","04F","Communications and computing","5868","IT Support Contract","60364506","201810",16/01/2018 00:00:00,3059,"20703","Computer Systems and Software","REDACTED DATA","STONE COMPUTERS","2658501","http://opencorporates.com/companies/gb/2658501","747878857"
"London Borough of Redbridge","http://opendatacommunities.org/doc/london-borough-council/redbridge","1BOTHEROPI&E","Other Operating Income & Expenditure","1CTRADSURDEF","Trading Account Surpluses & Deficits","REV","Revenue","R9575","Ilford Chambers Service Charge Account","04-SUPPLIES","Supplies And Services","04K","Miscellaneous expenses","6258","Security Patrol Services","60365779","201811",31/01/2018 00:00:00,3049.67,"69240","Security Services","REDACTED DATA","A & M SECURITY CO","",,"311691676"
"London Borough of Redbridge","http://opendatacommunities.org/doc/london-borough-council/redbridge","6BADULTSOCIA","Adult Social Care","6COLDINCMENT","Older People (65 or over) incl. Older Mentally Ill","REV","Revenue","R4385","OP Nursing","05-THIRD","Third Party Payments","05H","Private contractors","6909","Nursing Homes","90926599","201811",23/01/2018 00:00:00,3658.41,"53350","Nursing Homes","REDACTED DATA","JEWISH CARE (MERIT  HOUSE)","2447900","http://opencorporates.com/companies/gb/2447900","587033133"
"London Borough of Redbridge","http://opendatacommunities.org/doc/london-borough-council/redbridge","3BNONSCHFUND","Non-School Funding","3CNONSCH","Non Schools","REV","Revenue","R3963","Early Years - 2 Year Olds - Statutory Place Funding","05-THIRD","Third Party Payments","05A","Independent units within the council","6517","Non-Maintained Schools","3500584","201811",05/02/2018 00:00:00,3650.7,"17580","Childcare Services","REDACTED DATA","READ ACADEMY EDUCATION","",,""
"London Borough of Redbridge","http://opendatacommunities.org/doc/london-borough-council/redbridge","6BADULTSOCIA","Adult Social Care","6CADLEARNDIS","Adults Under 65 with Learning Disabilities","REV","Revenue","R4188","LD - Residential Care","05-THIRD","Third Party Payments","05F","Voluntary associations","6802","Residential Homes","90926751","201811",23/01/2018 00:00:00,3969.84,"64710","Residential Care Homes","REDACTED DATA","TEALK SERVICES LTD (THE BEECHES- ILFORD)","4203171","http://opencorporates.com/companies/gb/4203171",""
"London Borough of Redbridge","http://opendatacommunities.org/doc/london-borough-council/redbridge","6BADULTSOCIA","Adult Social Care","6CADLEARNDIS","Adults Under 65 with Learning Disabilities","REV","Revenue","R4188","LD - Residential Care","09-INCOME","Income","09C","Customer and Client Receipts","8555","Accommodation Charges","90926751","201811",23/01/2018 00:00:00,-323,"64710","Residential Care Homes","REDACTED DATA","TEALK SERVICES LTD (THE BEECHES- ILFORD)","4203171","http://opencorporates.com/companies/gb/4203171",""
"London Borough of Redbridge","http://opendatacommunities.org/doc/london-borough-council/redbridge","3BNONSCHFUND","Non-School Funding","6CCHILLOOKED","Children Looked After","REV","Revenue","R2238","Looked After Children Placements LA","05-THIRD","Third Party Payments","05H","Private contractors","6917","Fostering Costs - Agency","60364035","201810",17/01/2018 00:00:00,3631.43,"1880","Adoption and Fostering","REDACTED DATA","FIVE RIVERS CHILD CARE LTD","4236028","http://opencorporates.com/companies/gb/4236028",""
"London Borough of Redbridge","http://opendatacommunities.org/doc/london-borough-council/redbridge","3BNONSCHFUND","Non-School Funding","6CCHILLOOKED","Children Looked After","REV","Revenue","R2238","Looked After Children Placements LA","05-THIRD","Third Party Payments","05H","Private contractors","6917","Fostering Costs - Agency","60366012","201811",31/01/2018 00:00:00,3631.34,"1880","Adoption and Fostering","REDACTED DATA","INTEGRATED FOSTERING SERVICES LTD","6978852","http://opencorporates.com/companies/gb/6978852",""
"London Borough of Redbridge","http://opendatacommunities.org/doc/london-borough-council/redbridge","6BADULTSOCIA","Adult Social Care","6CADMENHLTH","Adults Under 65 with Mental Health Needs","REV","Revenue","R4463","Mental Health Capacity Act and Safeguarding Adults","04-SUPPLIES","Supplies And Services","04H","Grants and subscriptions","5954","Professional Fees","60364837","201810",25/01/2018 00:00:00,3017.1,"5170","Assessors","REDACTED DATA","EDUHEZ LTD","2494128392","http://opencorporates.com/companies/gb/2494128392","223827610"
"London Borough of Redbridge","http://opendatacommunities.org/doc/london-borough-council/redbridge","3BNONSCHFUND","Non-School Funding","6CCHILLOOKED","Children Looked After","REV","Revenue","R2238","Looked After Children Placements LA","05-THIRD","Third Party Payments","05H","Private contractors","6917","Fostering Costs - Agency","60366622","201811",15/02/2018 00:00:00,3600.8,"1880","Adoption and Fostering","REDACTED DATA","RYANCARE FOSTERING LTD","4372220","http://opencorporates.com/companies/gb/4372220",""
"London Borough of Redbridge","http://opendatacommunities.org/doc/london-borough-council/redbridge","3BNONSCHFUND","Non-School Funding","6CCHILLOOKED","Children Looked After","REV","Revenue","R2238","Looked After Children Placements LA","05-THIRD","Third Party Payments","05H","Private contractors","6917","Fostering Costs - Agency","60366927","201811",13/02/2018 00:00:00,3600.8,"1880","Adoption and Fostering","REDACTED DATA","NEXT STEP FOSTERING SERVICES LTD","5160087","http://opencorporates.com/companies/gb/5160087",""
"London Borough of Redbridge","http://opendatacommunities.org/doc/london-borough-council/redbridge","3BNONSCHFUND","Non-School Funding","6CCHILLOOKED","Children Looked After","REV","Revenue","R2238","Looked After Children Placements LA","05-THIRD","Third Party Payments","05H","Private contractors","6917","Fostering Costs - Agency","60366928","201811",13/02/2018 00:00:00,3600.8,"1880","Adoption and Fostering","REDACTED DATA","NEXT STEP FOSTERING SERVICES LTD","5160087","http://opencorporates.com/companies/gb/5160087",""
"London Borough of Redbridge","http://opendatacommunities.org/doc/london-borough-council/redbridge","6BSOCIALSERV","Social Services","6CASYLUMSEEK","Asylum Seekers","REV","Revenue","R2129","Unaccompanied Asylum Seekers","05-THIRD","Third Party Payments","05H","Private contractors","6917","Fostering Costs - Agency","60366621","201811",15/02/2018 00:00:00,3600.8,"1880","Adoption and Fostering","REDACTED DATA","RYANCARE FOSTERING LTD","4372220","http://opencorporates.com/companies/gb/4372220",""
"London Borough of Redbridge","http://opendatacommunities.org/doc/london-borough-council/redbridge","5BGFHOUSING","General Fund Housing","5CHOMELESS","Homelessness","REV","Revenue","R5611","Homelessness","04-SUPPLIES","Supplies And Services","04H","Grants and subscriptions","5955","Fees","70099611","201811",31/08/2017 00:00:00,3000,"22930","Credit Reference Agencies","REDACTED DATA","EXPERIAN LIMITED","653331","http://opencorporates.com/companies/gb/653331","887133593"
"London Borough of Redbridge","http://opendatacommunities.org/doc/london-borough-council/redbridge","5BGFHOUSING","General Fund Housing","5CWELFARE","Welfare Services","REV","Revenue","R4111","Supporting People - CPB","05-THIRD","Third Party Payments","05G","Other establishments","6851","Housing Association Payments","60365677","201811",02/02/2018 00:00:00,3600,"44166","Housing Associations, Societies, Trusts and Co-operatives","REDACTED DATA","INDUSTRIAL DWELLINGS SOCIETY (1885) LTD","CHARITY14044","http://opencorporates.com/companies/gb/CHARITY14044",""
"London Borough of Redbridge","http://opendatacommunities.org/doc/london-borough-council/redbridge","6BADULTSOCIA","Adult Social Care","6CADMENHLTH","Adults Under 65 with Mental Health Needs","REV","Revenue","R4463","Mental Health Capacity Act and Safeguarding Adults","04-SUPPLIES","Supplies And Services","04H","Grants and subscriptions","5954","Professional Fees","60364944","201811",27/01/2018 00:00:00,3000,"12100","Business and Management Consultants","REDACTED DATA","JOHN GOLDUP CONSULTANCY LTD","8486961","http://opencorporates.com/companies/gb/8486961","185529082"
"London Borough of Redbridge","http://opendatacommunities.org/doc/london-borough-council/redbridge","9BNONBVO","Outside the BVACOP Objective Structure","9CNONBVO","Outside the BVACOP Objective Structure","CAP","Capital","C4281","Ilford County High School (CAPITAL)","99-NONBV","Capital, Balance Sheet and Control","50B","Capital - Contracted Works","9055","External - Consultants Fees","60366693","201811",12/02/2018 00:00:00,3000,"11280","Building Consultants","REDACTED DATA","GARDINER & THEOBALD LLP","OC307124","http://opencorporates.com/companies/gb/OC307124","832776212"
"London Borough of Redbridge","http://opendatacommunities.org/doc/london-borough-council/redbridge","9BNONBVO","Outside the BVACOP Objective Structure","9CNONBVO","Outside the BVACOP Objective Structure","CAP","Capital","C4282","Woodford County High School","99-NONBV","Capital, Balance Sheet and Control","50B","Capital - Contracted Works","9055","External - Consultants Fees","60366692","201811",12/02/2018 00:00:00,3000,"11280","Building Consultants","REDACTED DATA","GARDINER & THEOBALD LLP","OC307124","http://opencorporates.com/companies/gb/OC307124","832776212"
"London Borough of Redbridge","http://opendatacommunities.org/doc/london-borough-council/redbridge","6BADULTSOCIA","Adult Social Care","6CADLEARNDIS","Adults Under 65 with Learning Disabilities","REV","Revenue","R4215","LD Direct Payments","06-TRANSFER","Transfer Payments","06B","Social Services Clients","7053","Direct Payments","3501637","201811",07/02/2018 00:00:00,3728.56,"90005","Home Care Services DP","REDACTED DATA","REDACTED DATA","",,""
"London Borough of Redbridge","http://opendatacommunities.org/doc/london-borough-council/redbridge","6BADULTSOCIA","Adult Social Care","6CADLEARNDIS","Adults Under 65 with Learning Disabilities","REV","Revenue","R4215","LD Direct Payments","09-INCOME","Income","09C","Customer and Client Receipts","8545","Direct Payments Income","3501637","201811",07/02/2018 00:00:00,-128.8,"90005","Home Care Services DP","REDACTED DATA","REDACTED DATA","",,""
"London Borough of Redbridge","http://opendatacommunities.org/doc/london-borough-council/redbridge","6BADULTSOCIA","Adult Social Care","6CADLEARNDIS","Adults Under 65 with Learning Disabilities","REV","Revenue","R4188","LD - Residential Care","05-THIRD","Third Party Payments","05F","Voluntary associations","6802","Residential Homes","90926548","201811",23/01/2018 00:00:00,3922.52,"44166","Housing Associations, Societies, Trusts and Co-operatives","REDACTED DATA","L&Q LIVING LIMITED (EAST THAMES GROUP LTD)","",,"660420762"
"London Borough of Redbridge","http://opendatacommunities.org/doc/london-borough-council/redbridge","6BADULTSOCIA","Adult Social Care","6CADLEARNDIS","Adults Under 65 with Learning Disabilities","REV","Revenue","R4188","LD - Residential Care","09-INCOME","Income","09C","Customer and Client Receipts","8555","Accommodation Charges","90926548","201811",23/01/2018 00:00:00,-323,"44166","Housing Associations, Societies, Trusts and Co-operatives","REDACTED DATA","L&Q LIVING LIMITED (EAST THAMES GROUP LTD)","",,"660420762"
"London Borough of Redbridge","http://opendatacommunities.org/doc/london-borough-council/redbridge","3BNONSCHFUND","Non-School Funding","6CCHILLOOKED","Children Looked After","REV","Revenue","R2238","Looked After Children Placements LA","04-SUPPLIES","Supplies And Services","04K","Miscellaneous expenses","6930","Transitional (Under 18)","60363884","201810",16/01/2018 00:00:00,3588,"64710","Residential Care Homes","REDACTED DATA","SUPPORTING YOUNG FUTURES LTD","880124","http://opencorporates.com/companies/gb/880124",""
"London Borough of Redbridge","http://opendatacommunities.org/doc/london-borough-council/redbridge","6BADULTSOCIA","Adult Social Care","6CADLEARNDIS","Adults Under 65 with Learning Disabilities","REV","Revenue","R4218","LD Individual Budgets","06-TRANSFER","Transfer Payments","06B","Social Services Clients","7053","Direct Payments","3501429","201811",07/02/2018 00:00:00,3585.32,"90005","Home Care Services DP","REDACTED DATA","REDACTED DATA","",,""
"London Borough of Redbridge","http://opendatacommunities.org/doc/london-borough-council/redbridge","6BADULTSOCIA","Adult Social Care","6CADLEARNDIS","Adults Under 65 with Learning Disabilities","REV","Revenue","R4188","LD - Residential Care","05-THIRD","Third Party Payments","05F","Voluntary associations","6802","Residential Homes","90926566","201811",23/01/2018 00:00:00,4015.64,"64710","Residential Care Homes","REDACTED DATA","FITZROY SUPPORT","2699902","http://opencorporates.com/companies/gb/2699902",""
"London Borough of Redbridge","http://opendatacommunities.org/doc/london-borough-council/redbridge","6BADULTSOCIA","Adult Social Care","6CADLEARNDIS","Adults Under 65 with Learning Disabilities","REV","Revenue","R4188","LD - Residential Care","09-INCOME","Income","09C","Customer and Client Receipts","8555","Accommodation Charges","90926566","201811",23/01/2018 00:00:00,-434.72,"64710","Residential Care Homes","REDACTED DATA","FITZROY SUPPORT","2699902","http://opencorporates.com/companies/gb/2699902",""
"London Borough of Redbridge","http://opendatacommunities.org/doc/london-borough-council/redbridge","2BPLANPOL","Planning Policy","","","REV","Revenue","R6519","The Local Plan","01-EMPLOYEES","Employees","01A","Direct employee expenses","4","Agency Staff - Pay","60364245","201810",17/01/2018 00:00:00,2975.7,"31230","Employment and Recruitment Agencies","REDACTED DATA","THE OYSTER PARTNERSHIP LTD","5020374","http://opencorporates.com/companies/gb/5020374","832961025"
"London Borough of Redbridge","http://opendatacommunities.org/doc/london-borough-council/redbridge","3BNONSCHFUND","Non-School Funding","6CCHILLOOKED","Children Looked After","REV","Revenue","R2238","Looked After Children Placements LA","05-THIRD","Third Party Payments","05H","Private contractors","6917","Fostering Costs - Agency","60365513","201811",09/01/2018 00:00:00,3565.22,"1880","Adoption and Fostering","REDACTED DATA","QUALITY FOSTER CARE LTD","4464943","http://opencorporates.com/companies/gb/4464943",""
"London Borough of Redbridge","http://opendatacommunities.org/doc/london-borough-council/redbridge","3BINDSCHFUND","Individual School Funds","3CDELPRIMARY","Delegated Individual Primary School Budgets","REV","Revenue","S2339","GROVE : PERSONNEL","01-EMPLOYEES","Employees","01A","Direct employee expenses","4","Agency Staff - Pay","60366498","201811",26/01/2018 00:00:00,1096,"29300","Education Agencies and Authorities","REDACTED DATA","DESTINATION EDUCATION LTD","",,"930151073"
"London Borough of Redbridge","http://opendatacommunities.org/doc/london-borough-council/redbridge","3BINDSCHFUND","Individual School Funds","3CDELPRIMARY","Delegated Individual Primary School Budgets","REV","Revenue","S2339","GROVE : PERSONNEL","01-EMPLOYEES","Employees","01A","Direct employee expenses","9","Agency Staff Sickness Cover","60366498","201811",26/01/2018 00:00:00,370,"29300","Education Agencies and Authorities","REDACTED DATA","DESTINATION EDUCATION LTD","",,"930151073"
"London Borough of Redbridge","http://opendatacommunities.org/doc/london-borough-council/redbridge","3BINDSCHFUND","Individual School Funds","3CDELPRIMARY","Delegated Individual Primary School Budgets","REV","Revenue","S2339","GROVE : PERSONNEL","01-EMPLOYEES","Employees","01A","Direct employee expenses","409","Agency Staff Pay","60366498","201811",26/01/2018 00:00:00,1500,"29300","Education Agencies and Authorities","REDACTED DATA","DESTINATION EDUCATION LTD","",,"930151073"
"London Borough of Redbridge","http://opendatacommunities.org/doc/london-borough-council/redbridge","3BNONSCHFUND","Non-School Funding","3CNONSCH","Non Schools","REV","Revenue","R3963","Early Years - 2 Year Olds - Statutory Place Funding","05-THIRD","Third Party Payments","05A","Independent units within the council","6517","Non-Maintained Schools","3500576","201811",05/02/2018 00:00:00,3548.82,"17580","Childcare Services","REDACTED DATA","RISING STARS NURSERY AND PRESCHOOL LIMITED","10345387","http://opencorporates.com/companies/gb/10345387",""
"London Borough of Redbridge","http://opendatacommunities.org/doc/london-borough-council/redbridge","1BOTHEROPI&E","Other Operating Income & Expenditure","1CTRADSURDEF","Trading Account Surpluses & Deficits","REV","Revenue","R9460","Pay, Contracts & HRD","01-EMPLOYEES","Employees","01A","Direct employee expenses","4","Agency Staff - Pay","60363917","201810",16/01/2018 00:00:00,2954.68,"31230","Employment and Recruitment Agencies","REDACTED DATA","ALLEN LANE LIMITED","5115229","http://opencorporates.com/companies/gb/5115229","835970985"
"London Borough of Redbridge","http://opendatacommunities.org/doc/london-borough-council/redbridge","6BADULTSOCIA","Adult Social Care","6CADLEARNDIS","Adults Under 65 with Learning Disabilities","REV","Revenue","R4215","LD Direct Payments","06-TRANSFER","Transfer Payments","06B","Social Services Clients","7053","Direct Payments","3501092","201811",07/02/2018 00:00:00,3603.52,"90005","Home Care Services DP","REDACTED DATA","REDACTED DATA","",,""
"London Borough of Redbridge","http://opendatacommunities.org/doc/london-borough-council/redbridge","6BADULTSOCIA","Adult Social Care","6CADLEARNDIS","Adults Under 65 with Learning Disabilities","REV","Revenue","R4215","LD Direct Payments","09-INCOME","Income","09C","Customer and Client Receipts","8545","Direct Payments Income","3501092","201811",07/02/2018 00:00:00,-62.6,"90005","Home Care Services DP","REDACTED DATA","REDACTED DATA","",,""
"London Borough of Redbridge","http://opendatacommunities.org/doc/london-borough-council/redbridge","6BSOCIALSERV","Social Services","6COTHC&FSERV","Other Children's & Families' Services","REV","Revenue","R2168","NRtPF","06-TRANSFER","Transfer Payments","06B","Social Services Clients","7055","Habitual Residents","60366313","201811",12/02/2018 00:00:00,2950,"61896","Property and Estate Management","REDACTED DATA","BARKING PARK HOTEL LTD","4817373","http://opencorporates.com/companies/gb/4817373","833190246"
"London Borough of Redbridge","http://opendatacommunities.org/doc/london-borough-council/redbridge","3BNONSCHFUND","Non-School Funding","6CCHILLOOKED","Children Looked After","REV","Revenue","R2238","Looked After Children Placements LA","05-THIRD","Third Party Payments","05H","Private contractors","6917","Fostering Costs - Agency","60365551","201811",01/02/2018 00:00:00,3536.12,"1880","Adoption and Fostering","REDACTED DATA","COMPASS FOSTERING LONDON LIMITED","3292070","http://opencorporates.com/companies/gb/3292070","153173918"
"London Borough of Redbridge","http://opendatacommunities.org/doc/london-borough-council/redbridge","1BCENTRALPUB","Central Services to the Public","1CREGBDM","Reg. of Births, Deaths & Marriages","REV","Revenue","R3970","Corporate Policy and Performance","01-EMPLOYEES","Employees","01A","Direct employee expenses","4","Agency Staff - Pay","60366343","201811",06/04/2017 00:00:00,2942.58,"81491","Universities and Medical Schools","REDACTED DATA","COSECTOR LIMITED","",,"GB222797103"
"London Borough of Redbridge","http://opendatacommunities.org/doc/london-borough-council/redbridge","6BADULTSOCIA","Adult Social Care","6CADLEARNDIS","Adults Under 65 with Learning Disabilities","REV","Revenue","R4188","LD - Residential Care","05-THIRD","Third Party Payments","05F","Voluntary associations","6802","Residential Homes","90926475","201811",23/01/2018 00:00:00,3854.08,"64710","Residential Care Homes","REDACTED DATA","CARELINK LIMITED (S SHARMA)","",,""
"London Borough of Redbridge","http://opendatacommunities.org/doc/london-borough-council/redbridge","6BADULTSOCIA","Adult Social Care","6CADLEARNDIS","Adults Under 65 with Learning Disabilities","REV","Revenue","R4188","LD - Residential Care","09-INCOME","Income","09C","Customer and Client Receipts","8555","Accommodation Charges","90926475","201811",23/01/2018 00:00:00,-323,"64710","Residential Care Homes","REDACTED DATA","CARELINK LIMITED (S SHARMA)","",,""
"London Borough of Redbridge","http://opendatacommunities.org/doc/london-borough-council/redbridge","6BADULTSOCIA","Adult Social Care","6CADLEARNDIS","Adults Under 65 with Learning Disabilities","REV","Revenue","R4185","LD - Supported Living","06-TRANSFER","Transfer Payments","06B","Social Services Clients","7066","Supportive Lodgings (Transfer Payments)","90926516","201811",23/01/2018 00:00:00,3560,"64710","Residential Care Homes","REDACTED DATA","CARETECH COMMUNITY SERVICES LTD","2804415","http://opencorporates.com/companies/gb/2804415",""
"London Borough of Redbridge","http://opendatacommunities.org/doc/london-borough-council/redbridge","6BADULTSOCIA","Adult Social Care","6CADLEARNDIS","Adults Under 65 with Learning Disabilities","REV","Revenue","R4185","LD - Supported Living","09-INCOME","Income","09C","Customer and Client Receipts","8553","Care Package Charges","90926516","201811",23/01/2018 00:00:00,-35.56,"64710","Residential Care Homes","REDACTED DATA","CARETECH COMMUNITY SERVICES LTD","2804415","http://opencorporates.com/companies/gb/2804415",""
"London Borough of Redbridge","http://opendatacommunities.org/doc/london-borough-council/redbridge","6BADULTSOCIA","Adult Social Care","6CADLEARNDIS","Adults Under 65 with Learning Disabilities","REV","Revenue","R4185","LD - Supported Living","06-TRANSFER","Transfer Payments","06B","Social Services Clients","7066","Supportive Lodgings (Transfer Payments)","90926545","201811",23/01/2018 00:00:00,3556.2,"43419","Home Care Services","REDACTED DATA","L&Q LIVING LIMITED (EAST LIVING-SL)","",,""
"London Borough of Redbridge","http://opendatacommunities.org/doc/london-borough-council/redbridge","6BADULTSOCIA","Adult Social Care","6CADLEARNDIS","Adults Under 65 with Learning Disabilities","REV","Revenue","R4185","LD - Supported Living","09-INCOME","Income","09C","Customer and Client Receipts","8553","Care Package Charges","90926545","201811",23/01/2018 00:00:00,-37.8,"43419","Home Care Services","REDACTED DATA","L&Q LIVING LIMITED (EAST LIVING-SL)","",,""
"London Borough of Redbridge","http://opendatacommunities.org/doc/london-borough-council/redbridge","6BADULTSOCIA","Adult Social Care","6CADLEARNDIS","Adults Under 65 with Learning Disabilities","REV","Revenue","R4188","LD - Residential Care","05-THIRD","Third Party Payments","05F","Voluntary associations","6802","Residential Homes","90926476","201811",23/01/2018 00:00:00,4050,"64710","Residential Care Homes","REDACTED DATA","CARELINK LIMITED (S SHARMA)","",,""
"London Borough of Redbridge","http://opendatacommunities.org/doc/london-borough-council/redbridge","6BADULTSOCIA","Adult Social Care","6CADLEARNDIS","Adults Under 65 with Learning Disabilities","REV","Revenue","R4188","LD - Residential Care","09-INCOME","Income","09C","Customer and Client Receipts","8555","Accommodation Charges","90926476","201811",23/01/2018 00:00:00,-537.8,"64710","Residential Care Homes","REDACTED DATA","CARELINK LIMITED (S SHARMA)","",,""
"London Borough of Redbridge","http://opendatacommunities.org/doc/london-borough-council/redbridge","6BADULTSOCIA","Adult Social Care","6COLDINCMENT","Older People (65 or over) incl. Older Mentally Ill","REV","Revenue","R4378","OP Residential","05-THIRD","Third Party Payments","05F","Voluntary associations","6802","Residential Homes","90926311","201811",23/01/2018 00:00:00,4580,"64710","Residential Care Homes","REDACTED DATA","HOMESDALE (WOODFORD BAPTIST HOMES) LTD (KENISTON)","",,""
"London Borough of Redbridge","http://opendatacommunities.org/doc/london-borough-council/redbridge","6BADULTSOCIA","Adult Social Care","6COLDINCMENT","Older People (65 or over) incl. Older Mentally Ill","REV","Revenue","R4378","OP Residential","09-INCOME","Income","09C","Customer and Client Receipts","8555","Accommodation Charges","90926311","201811",23/01/2018 00:00:00,-1075.6,"64710","Residential Care Homes","REDACTED DATA","HOMESDALE (WOODFORD BAPTIST HOMES) LTD (KENISTON)","",,""
"London Borough of Redbridge","http://opendatacommunities.org/doc/london-borough-council/redbridge","3BNONSCHFUND","Non-School Funding","3CNONSCH","Non Schools","REV","Revenue","R3963","Early Years - 2 Year Olds - Statutory Place Funding","05-THIRD","Third Party Payments","05A","Independent units within the council","6517","Non-Maintained Schools","3500506","201811",05/02/2018 00:00:00,3486.56,"59760","Playgroups, Nurseries and Creches","REDACTED DATA","FAREACRES DAY NURSERY","",,""
"London Borough of Redbridge","http://opendatacommunities.org/doc/london-borough-council/redbridge","3BINDSCHFUND","Individual School Funds","3CDELPRIMARY","Delegated Individual Primary School Budgets","REV","Revenue","S2339","GROVE : PERSONNEL","01-EMPLOYEES","Employees","01A","Direct employee expenses","4","Agency Staff - Pay","60366610","201811",02/02/2018 00:00:00,850,"29300","Education Agencies and Authorities","REDACTED DATA","DESTINATION EDUCATION LTD","",,"930151073"
"London Borough of Redbridge","http://opendatacommunities.org/doc/london-borough-council/redbridge","3BINDSCHFUND","Individual School Funds","3CDELPRIMARY","Delegated Individual Primary School Budgets","REV","Revenue","S2339","GROVE : PERSONNEL","01-EMPLOYEES","Employees","01A","Direct employee expenses","4","Agency Staff - Pay","60366061","201811",19/01/2018 00:00:00,1490,"29300","Education Agencies and Authorities","REDACTED DATA","DESTINATION EDUCATION LTD","",,"930151073"
"London Borough of Redbridge","http://opendatacommunities.org/doc/london-borough-council/redbridge","3BINDSCHFUND","Individual School Funds","3CDELPRIMARY","Delegated Individual Primary School Budgets","REV","Revenue","S2339","GROVE : PERSONNEL","01-EMPLOYEES","Employees","01A","Direct employee expenses","9","Agency Staff Sickness Cover","60366610","201811",02/02/2018 00:00:00,1110,"29300","Education Agencies and Authorities","REDACTED DATA","DESTINATION EDUCATION LTD","",,"930151073"
"London Borough of Redbridge","http://opendatacommunities.org/doc/london-borough-council/redbridge","3BINDSCHFUND","Individual School Funds","3CDELPRIMARY","Delegated Individual Primary School Budgets","REV","Revenue","S2339","GROVE : PERSONNEL","01-EMPLOYEES","Employees","01A","Direct employee expenses","9","Agency Staff Sickness Cover","60366061","201811",19/01/2018 00:00:00,1045,"29300","Education Agencies and Authorities","REDACTED DATA","DESTINATION EDUCATION LTD","",,"930151073"
"London Borough of Redbridge","http://opendatacommunities.org/doc/london-borough-council/redbridge","3BINDSCHFUND","Individual School Funds","3CDELPRIMARY","Delegated Individual Primary School Budgets","REV","Revenue","S2339","GROVE : PERSONNEL","01-EMPLOYEES","Employees","01A","Direct employee expenses","409","Agency Staff Pay","60366610","201811",02/02/2018 00:00:00,945,"29300","Education Agencies and Authorities","REDACTED DATA","DESTINATION EDUCATION LTD","",,"930151073"
"London Borough of Redbridge","http://opendatacommunities.org/doc/london-borough-council/redbridge","3BINDSCHFUND","Individual School Funds","3CDELPRIMARY","Delegated Individual Primary School Budgets","REV","Revenue","S2339","GROVE : PERSONNEL","01-EMPLOYEES","Employees","01A","Direct employee expenses","409","Agency Staff Pay","60366061","201811",19/01/2018 00:00:00,370,"29300","Education Agencies and Authorities","REDACTED DATA","DESTINATION EDUCATION LTD","",,"930151073"
"London Borough of Redbridge","http://opendatacommunities.org/doc/london-borough-council/redbridge","6BADULTSOCIA","Adult Social Care","6CADLEARNDIS","Adults Under 65 with Learning Disabilities","REV","Revenue","R4215","LD Direct Payments","06-TRANSFER","Transfer Payments","06B","Social Services Clients","7053","Direct Payments","3501077","201811",07/02/2018 00:00:00,3602.4,"90005","Home Care Services DP","REDACTED DATA","REDACTED DATA","",,""
"London Borough of Redbridge","http://opendatacommunities.org/doc/london-borough-council/redbridge","6BADULTSOCIA","Adult Social Care","6CADLEARNDIS","Adults Under 65 with Learning Disabilities","REV","Revenue","R4215","LD Direct Payments","09-INCOME","Income","09C","Customer and Client Receipts","8545","Direct Payments Income","3501077","201811",07/02/2018 00:00:00,-119,"90005","Home Care Services DP","REDACTED DATA","REDACTED DATA","",,""
"London Borough of Redbridge","http://opendatacommunities.org/doc/london-borough-council/redbridge","1BOTHEROPI&E","Other Operating Income & Expenditure","1CTRADSURDEF","Trading Account Surpluses & Deficits","REV","Revenue","R9152","Operational Accounting","01-EMPLOYEES","Employees","01A","Direct employee expenses","4","Agency Staff - Pay","60365960","201811",06/02/2018 00:00:00,2900,"31230","Employment and Recruitment Agencies","REDACTED DATA","ALLEN LANE LIMITED","5115229","http://opencorporates.com/companies/gb/5115229","835970985"
"London Borough of Redbridge","http://opendatacommunities.org/doc/london-borough-council/redbridge","1BOTHEROPI&E","Other Operating Income & Expenditure","1CTRADSURDEF","Trading Account Surpluses & Deficits","REV","Revenue","R9152","Operational Accounting","01-EMPLOYEES","Employees","01A","Direct employee expenses","4","Agency Staff - Pay","60366705","201811",13/02/2018 00:00:00,2900,"31230","Employment and Recruitment Agencies","REDACTED DATA","ALLEN LANE LIMITED","5115229","http://opencorporates.com/companies/gb/5115229","835970985"
"London Borough of Redbridge","http://opendatacommunities.org/doc/london-borough-council/redbridge","6BADULTSOCIA","Adult Social Care","6CADLEARNDIS","Adults Under 65 with Learning Disabilities","REV","Revenue","R4215","LD Direct Payments","06-TRANSFER","Transfer Payments","06B","Social Services Clients","7053","Direct Payments","3501062","201811",07/02/2018 00:00:00,3580.52,"90005","Home Care Services DP","REDACTED DATA","REDACTED DATA","",,""
"London Borough of Redbridge","http://opendatacommunities.org/doc/london-borough-council/redbridge","6BADULTSOCIA","Adult Social Care","6CADLEARNDIS","Adults Under 65 with Learning Disabilities","REV","Revenue","R4215","LD Direct Payments","09-INCOME","Income","09C","Customer and Client Receipts","8545","Direct Payments Income","3501062","201811",07/02/2018 00:00:00,-104.72,"90005","Home Care Services DP","REDACTED DATA","REDACTED DATA","",,""
"London Borough of Redbridge","http://opendatacommunities.org/doc/london-borough-council/redbridge","3BINDSCHFUND","Individual School Funds","3CDELSECOND","Delegated Individual Secondary School Budgets","REV","Revenue","S3117","MAYFIELD -  Admin Furniture","04-SUPPLIES","Supplies And Services","04A","Equipment, furniture and materials","5506","Furniture & Fittings - Purchase","60364593","201810",23/01/2018 00:00:00,2895,"23100","Curtain and Blind Fittings","REDACTED DATA","BLINDMASTER LTD","3787563","http://opencorporates.com/companies/gb/3787563","741082066"
"London Borough of Redbridge","http://opendatacommunities.org/doc/london-borough-council/redbridge","3BNONSCHFUND","Non-School Funding","6CCHILLOOKED","Children Looked After","REV","Revenue","R2238","Looked After Children Placements LA","05-THIRD","Third Party Payments","05H","Private contractors","6917","Fostering Costs - Agency","60366946","201811",31/01/2018 00:00:00,3472,"1880","Adoption and Fostering","REDACTED DATA","INTEGRATED FOSTERING SERVICES LTD","6978852","http://opencorporates.com/companies/gb/6978852",""
"London Borough of Redbridge","http://opendatacommunities.org/doc/london-borough-council/redbridge","3BNONSCHFUND","Non-School Funding","6CCHILLOOKED","Children Looked After","REV","Revenue","R2238","Looked After Children Placements LA","05-THIRD","Third Party Payments","05H","Private contractors","6917","Fostering Costs - Agency","60366945","201811",31/12/2017 00:00:00,3472,"1880","Adoption and Fostering","REDACTED DATA","INTEGRATED FOSTERING SERVICES LTD","6978852","http://opencorporates.com/companies/gb/6978852",""
"London Borough of Redbridge","http://opendatacommunities.org/doc/london-borough-council/redbridge","6BADULTSOCIA","Adult Social Care","6CADLEARNDIS","Adults Under 65 with Learning Disabilities","REV","Revenue","R4185","LD - Supported Living","06-TRANSFER","Transfer Payments","06B","Social Services Clients","7066","Supportive Lodgings (Transfer Payments)","90926671","201811",23/01/2018 00:00:00,3500,"43419","Home Care Services","REDACTED DATA","AMAN SURA T/APATHWAY INDEPENDENT CARE & AUTISM SERVICES","",,""
"London Borough of Redbridge","http://opendatacommunities.org/doc/london-borough-council/redbridge","6BADULTSOCIA","Adult Social Care","6CADLEARNDIS","Adults Under 65 with Learning Disabilities","REV","Revenue","R4185","LD - Supported Living","09-INCOME","Income","09C","Customer and Client Receipts","8553","Care Package Charges","90926671","201811",23/01/2018 00:00:00,-31.76,"43419","Home Care Services","REDACTED DATA","AMAN SURA T/APATHWAY INDEPENDENT CARE & AUTISM SERVICES","",,""
"London Borough of Redbridge","http://opendatacommunities.org/doc/london-borough-council/redbridge","4BMANGT&SUPP","Management & Support Services","4CHIGHRDROUT","Highways/Roads (Routine)","REV","Revenue","R7075","Drainage","05-THIRD","Third Party Payments","05H","Private contractors","6915","Contractor Payments","3502537","201811",21/02/2018 00:00:00,2887.46,"18632","Civil Engineers","REDACTED DATA","KENSON CONTRACTORS BENINGTON LTD","1314691","http://opencorporates.com/companies/gb/1314691","301629589"
"London Borough of Redbridge","http://opendatacommunities.org/doc/london-borough-council/redbridge","6BADULTSOCIA","Adult Social Care","6CADPHYSDIS","Adults Under 65 with Phys Disab or Sensory Impair","REV","Revenue","R4214","PD Direct Payments","06-TRANSFER","Transfer Payments","06B","Social Services Clients","7053","Direct Payments","3501110","201811",07/02/2018 00:00:00,3507.6,"90005","Home Care Services DP","REDACTED DATA","REDACTED DATA","",,""
"London Borough of Redbridge","http://opendatacommunities.org/doc/london-borough-council/redbridge","6BADULTSOCIA","Adult Social Care","6CADPHYSDIS","Adults Under 65 with Phys Disab or Sensory Impair","REV","Revenue","R4214","PD Direct Payments","09-INCOME","Income","09C","Customer and Client Receipts","8545","Direct Payments Income","3501110","201811",07/02/2018 00:00:00,-66.56,"90005","Home Care Services DP","REDACTED DATA","REDACTED DATA","",,""
"London Borough of Redbridge","http://opendatacommunities.org/doc/london-borough-council/redbridge","6BADULTSOCIA","Adult Social Care","6CADLEARNDIS","Adults Under 65 with Learning Disabilities","REV","Revenue","R4185","LD - Supported Living","06-TRANSFER","Transfer Payments","06B","Social Services Clients","7066","Supportive Lodgings (Transfer Payments)","90926470","201811",23/01/2018 00:00:00,3441,"64710","Residential Care Homes","REDACTED DATA","TOPAZ CARE AND SUPPORT","10246406","http://opencorporates.com/companies/gb/10246406",""
"London Borough of Redbridge","http://opendatacommunities.org/doc/london-borough-council/redbridge","6BADULTSOCIA","Adult Social Care","6CADLEARNDIS","Adults Under 65 with Learning Disabilities","REV","Revenue","R4218","LD Individual Budgets","06-TRANSFER","Transfer Payments","06B","Social Services Clients","7053","Direct Payments","3501047","201811",07/02/2018 00:00:00,3557.36,"90005","Home Care Services DP","REDACTED DATA","REDACTED DATA","",,""
"London Borough of Redbridge","http://opendatacommunities.org/doc/london-borough-council/redbridge","6BADULTSOCIA","Adult Social Care","6CADLEARNDIS","Adults Under 65 with Learning Disabilities","REV","Revenue","R4218","LD Individual Budgets","09-INCOME","Income","09C","Customer and Client Receipts","8545","Direct Payments Income","3501047","201811",07/02/2018 00:00:00,-117,"90005","Home Care Services DP","REDACTED DATA","REDACTED DATA","",,""
"London Borough of Redbridge","http://opendatacommunities.org/doc/london-borough-council/redbridge","6BSOCIALSERV","Social Services","6CCHILLOOKED","Children Looked After","REV","Revenue","R2117","SEN and CD Care and Support Packages Social Care","06-TRANSFER","Transfer Payments","06B","Social Services Clients","7053","Direct Payments","3502786","201811",27/02/2018 00:00:00,3436.5,"98758","Statutory Payments to Individuals","REDACTED DATA","REDACTED DATA","",,""
"London Borough of Redbridge","http://opendatacommunities.org/doc/london-borough-council/redbridge","6BADULTSOCIA","Adult Social Care","6COLDINCMENT","Older People (65 or over) incl. Older Mentally Ill","REV","Revenue","R4211","Older People Direct Payments","06-TRANSFER","Transfer Payments","06B","Social Services Clients","7053","Direct Payments","3501493","201811",07/02/2018 00:00:00,3697.28,"90005","Home Care Services DP","REDACTED DATA","REDACTED DATA","",,""
"London Borough of Redbridge","http://opendatacommunities.org/doc/london-borough-council/redbridge","6BADULTSOCIA","Adult Social Care","6COLDINCMENT","Older People (65 or over) incl. Older Mentally Ill","REV","Revenue","R4211","Older People Direct Payments","09-INCOME","Income","09C","Customer and Client Receipts","8545","Direct Payments Income","3501493","201811",07/02/2018 00:00:00,-261.6,"90005","Home Care Services DP","REDACTED DATA","REDACTED DATA","",,""
"London Borough of Redbridge","http://opendatacommunities.org/doc/london-borough-council/redbridge","6BSOCIALSERV","Social Services","6CCHILLOOKED","Children Looked After","REV","Revenue","R2117","SEN and CD Care and Support Packages Social Care","06-TRANSFER","Transfer Payments","06B","Social Services Clients","7050","Agency Homecare","60366291","201811",07/02/2018 00:00:00,3427,"79980","Training Services","REDACTED DATA","ACCESS ALL CARE & TRAINING SOLUTIONS LTD","7545714","http://opencorporates.com/companies/gb/7545714",""
"London Borough of Redbridge","http://opendatacommunities.org/doc/london-borough-council/redbridge","2BENVIRONMEN","Environmental Services","2CCONSPROT","Consumer Protection","REV","Revenue","R6771","Trading Standards","01-EMPLOYEES","Employees","01A","Direct employee expenses","4","Agency Staff - Pay","60366791","201811",18/08/2017 00:00:00,2850,"31230","Employment and Recruitment Agencies","REDACTED DATA","PANORAMIC ASSOCIATES LIMITED","6881542","http://opencorporates.com/companies/gb/6881542","972671391"
"London Borough of Redbridge","http://opendatacommunities.org/doc/london-borough-council/redbridge","3BNONSCHFUND","Non-School Funding","6CCHILLOOKED","Children Looked After","REV","Revenue","R2238","Looked After Children Placements LA","05-THIRD","Third Party Payments","05H","Private contractors","6917","Fostering Costs - Agency","60365751","201811",01/02/2018 00:00:00,3420,"1880","Adoption and Fostering","REDACTED DATA","BRIGHTER FUTURES FOSTER CARE LTD","8013526237","http://opencorporates.com/companies/gb/8013526237","6846257"
"London Borough of Redbridge","http://opendatacommunities.org/doc/london-borough-council/redbridge","6BADULTSOCIA","Adult Social Care","6CADLEARNDIS","Adults Under 65 with Learning Disabilities","REV","Revenue","R4215","LD Direct Payments","06-TRANSFER","Transfer Payments","06B","Social Services Clients","7053","Direct Payments","3501737","201811",07/02/2018 00:00:00,3414.24,"90005","Home Care Services DP","REDACTED DATA","REDACTED DATA","",,""
"London Borough of Redbridge","http://opendatacommunities.org/doc/london-borough-council/redbridge","6BADULTSOCIA","Adult Social Care","6CADLEARNDIS","Adults Under 65 with Learning Disabilities","REV","Revenue","R4215","LD Direct Payments","06-TRANSFER","Transfer Payments","06B","Social Services Clients","7053","Direct Payments","3501652","201811",07/02/2018 00:00:00,3409.8,"90005","Home Care Services DP","REDACTED DATA","REDACTED DATA","",,""
"London Borough of Redbridge","http://opendatacommunities.org/doc/london-borough-council/redbridge","3BNONSCHFUND","Non-School Funding","6CCHILLOOKED","Children Looked After","REV","Revenue","R2238","Looked After Children Placements LA","05-THIRD","Third Party Payments","05H","Private contractors","6917","Fostering Costs - Agency","60366743","201811",31/12/2017 00:00:00,3407.83,"1880","Adoption and Fostering","REDACTED DATA","INTEGRATED FOSTERING SERVICES LTD","6978852","http://opencorporates.com/companies/gb/6978852",""
"London Borough of Redbridge","http://opendatacommunities.org/doc/london-borough-council/redbridge","3BNONSCHFUND","Non-School Funding","6CCHILLOOKED","Children Looked After","REV","Revenue","R2238","Looked After Children Placements LA","05-THIRD","Third Party Payments","05H","Private contractors","6917","Fostering Costs - Agency","60365986","201811",31/01/2018 00:00:00,3407.83,"1880","Adoption and Fostering","REDACTED DATA","INTEGRATED FOSTERING SERVICES LTD","6978852","http://opencorporates.com/companies/gb/6978852",""
"London Borough of Redbridge","http://opendatacommunities.org/doc/london-borough-council/redbridge","9BNONBVO","Outside the BVACOP Objective Structure","9CNONBVO","Outside the BVACOP Objective Structure","CAP","Capital","C2253","Parking Strategy","99-NONBV","Capital, Balance Sheet and Control","50E","Capital - Contract Payments","9151","Sub-Contractors (Capital Works)","60366109","201811",07/02/2018 00:00:00,2835.46,"70920","Signs and Nameplates","REDACTED DATA","KASPA SIGN PRODUCTS LTD","4288462","http://opencorporates.com/companies/gb/4288462","782684093"
"London Borough of Redbridge","http://opendatacommunities.org/doc/london-borough-council/redbridge","3BNONSCHFUND","Non-School Funding","3CNONSCH","Non Schools","REV","Revenue","R3963","Early Years - 2 Year Olds - Statutory Place Funding","05-THIRD","Third Party Payments","05A","Independent units within the council","6517","Non-Maintained Schools","3500508","201811",05/02/2018 00:00:00,3401.66,"53088","Nurseries and Creches","REDACTED DATA","MIDAS (SOUTH WOODFORD)LTD T/A PLAYDAYS NURSERY","5990590","http://opencorporates.com/companies/gb/5990590",""
"London Borough of Redbridge","http://opendatacommunities.org/doc/london-borough-council/redbridge","6BSOCIALSERV","Social Services","6CASYLUMSEEK","Asylum Seekers","REV","Revenue","R2129","Unaccompanied Asylum Seekers","05-THIRD","Third Party Payments","05H","Private contractors","6917","Fostering Costs - Agency","60365686","201811",05/02/2018 00:00:00,3400.04,"1880","Adoption and Fostering","REDACTED DATA","WELCOME FOSTER CARE LTD","6350870","http://opencorporates.com/companies/gb/6350870",""
"London Borough of Redbridge","http://opendatacommunities.org/doc/london-borough-council/redbridge","3BOPTIONHLDG","Optional Holding Accounts","3CADULT","Adult Education","REV","Revenue","R3490","RIAE   Home Cost Centre","02-PREMISES","Premises","02A","Repairs, alteration and maintenance of buildings","3040","Tenant Maintenance","70099528","201811",26/01/2018 00:00:00,2832,"30580","Electricians and Electrical Contractors","REDACTED DATA","HARDING BROS ELECTRICAL LTD","1237890","http://opencorporates.com/companies/gb/1237890","247960333"
"London Borough of Redbridge","http://opendatacommunities.org/doc/london-borough-council/redbridge","1BCENTRALPUB","Central Services to the Public","1CTRADSURDEF","Trading Account Surpluses & Deficits","REV","Revenue","R3971","Local London Director","01-EMPLOYEES","Employees","01A","Direct employee expenses","4","Agency Staff - Pay","60365408","201811",31/01/2018 00:00:00,2823,"31230","Employment and Recruitment Agencies","REDACTED DATA","GATENBY SANDERSON LTD","4451141","http://opencorporates.com/companies/gb/4451141","804465047"
"London Borough of Redbridge","http://opendatacommunities.org/doc/london-borough-council/redbridge","1BCENTRALPUB","Central Services to the Public","1CTRADSURDEF","Trading Account Surpluses & Deficits","REV","Revenue","R3971","Local London Director","01-EMPLOYEES","Employees","01A","Direct employee expenses","4","Agency Staff - Pay","60365888","201811",07/02/2018 00:00:00,2823,"31230","Employment and Recruitment Agencies","REDACTED DATA","GATENBY SANDERSON LTD","4451141","http://opencorporates.com/companies/gb/4451141","804465047"
"London Borough of Redbridge","http://opendatacommunities.org/doc/london-borough-council/redbridge","6BADULTSOCIA","Adult Social Care","6COLDINCMENT","Older People (65 or over) incl. Older Mentally Ill","REV","Revenue","R4378","OP Residential","05-THIRD","Third Party Payments","05F","Voluntary associations","6802","Residential Homes","90926770","201811",23/01/2018 00:00:00,3386.4,"64710","Residential Care Homes","REDACTED DATA","TEALK SERVICES LTD (THE BEECHES- ILFORD)","4203171","http://opencorporates.com/companies/gb/4203171",""
"London Borough of Redbridge","http://opendatacommunities.org/doc/london-borough-council/redbridge","6BADULTSOCIA","Adult Social Care","6CADLEARNDIS","Adults Under 65 with Learning Disabilities","REV","Revenue","R4215","LD Direct Payments","06-TRANSFER","Transfer Payments","06B","Social Services Clients","7053","Direct Payments","3501055","201811",07/02/2018 00:00:00,3482.64,"90005","Home Care Services DP","REDACTED DATA","REDACTED DATA","",,""
"London Borough of Redbridge","http://opendatacommunities.org/doc/london-borough-council/redbridge","6BADULTSOCIA","Adult Social Care","6CADLEARNDIS","Adults Under 65 with Learning Disabilities","REV","Revenue","R4215","LD Direct Payments","09-INCOME","Income","09C","Customer and Client Receipts","8545","Direct Payments Income","3501055","201811",07/02/2018 00:00:00,-119,"90005","Home Care Services DP","REDACTED DATA","REDACTED DATA","",,""
"London Borough of Redbridge","http://opendatacommunities.org/doc/london-borough-council/redbridge","3BOPTIONHLDG","Optional Holding Accounts","3CADULT","Adult Education","REV","Revenue","R3490","RIAE   Home Cost Centre","04-SUPPLIES","Supplies And Services","04K","Miscellaneous expenses","6216","Contract","3501884","201811",18/01/2018 00:00:00,2800,"20650","Computer Security","REDACTED DATA","PLANET IT LTD","4965388","http://opencorporates.com/companies/gb/4965388","855083318"
"London Borough of Redbridge","http://opendatacommunities.org/doc/london-borough-council/redbridge","4BPUBLICTRAN","Public Transport","4CPARKING","Parking Services","REV","Revenue","R7039","Onstreet P and D other","04-SUPPLIES","Supplies And Services","04K","Miscellaneous expenses","6241","Pay and Display Machine Maintenance","60367100","201811",19/02/2018 00:00:00,2800,"11040","Builders","REDACTED DATA","J A ALLEN BUILDERS","",,"250121912"
"London Borough of Redbridge","http://opendatacommunities.org/doc/london-borough-council/redbridge","3BLEACENTFND","LEA Centrally Held School Funds","3CNONSCH","Non Schools","REV","Revenue","R2230","Local Offer","01-EMPLOYEES","Employees","01B","Indirect employee expenses","2403","External Training","60366042","201811",31/01/2018 00:00:00,3350.33,"17020","Charities and Voluntary Organisations","REDACTED DATA","DISABLEMENT ASSOCIATION OF BARKING & DAGENHAM - DABD(UK)","2800290","http://opencorporates.com/companies/gb/2800290",""
"London Borough of Redbridge","http://opendatacommunities.org/doc/london-borough-council/redbridge","3BNONSCHFUND","Non-School Funding","6CCHILLOOKED","Children Looked After","REV","Revenue","R2238","Looked After Children Placements LA","05-THIRD","Third Party Payments","05H","Private contractors","6917","Fostering Costs - Agency","60365772","201811",31/01/2018 00:00:00,3346,"1880","Adoption and Fostering","REDACTED DATA","THE ADOLESCENT & CHILDREN'S TRUST","2779751","http://opencorporates.com/companies/gb/2779751",""
"London Borough of Redbridge","http://opendatacommunities.org/doc/london-borough-council/redbridge","6BADULTSOCIA","Adult Social Care","6CADPHYSDIS","Adults Under 65 with Phys Disab or Sensory Impair","REV","Revenue","R4387","PD Nursing","05-THIRD","Third Party Payments","05H","Private contractors","6909","Nursing Homes","90926670","201811",23/01/2018 00:00:00,3345.12,"53350","Nursing Homes","REDACTED DATA","WESTMINSTER PATERNOSTER HOUSE","",,"626524835"
"London Borough of Redbridge","http://opendatacommunities.org/doc/london-borough-council/redbridge","6BADULTSOCIA","Adult Social Care","6CADLEARNDIS","Adults Under 65 with Learning Disabilities","REV","Revenue","R4185","LD - Supported Living","06-TRANSFER","Transfer Payments","06B","Social Services Clients","7066","Supportive Lodgings (Transfer Payments)","90926394","201811",23/01/2018 00:00:00,3343.57,"64710","Residential Care Homes","REDACTED DATA","CARE LONDON LTD","7235608","http://opencorporates.com/companies/gb/7235608",""
"London Borough of Redbridge","http://opendatacommunities.org/doc/london-borough-council/redbridge","3BNONSCHFUND","Non-School Funding","6CCHILLOOKED","Children Looked After","REV","Revenue","R2238","Looked After Children Placements LA","05-THIRD","Third Party Payments","05H","Private contractors","6917","Fostering Costs - Agency","60362304","201811",03/01/2018 00:00:00,3339.01,"17020","Charities and Voluntary Organisations","REDACTED DATA","BARNARDOS (TANNERS LANE)","1227919","http://opencorporates.com/companies/gb/1227919","507477337"
"London Borough of Redbridge","http://opendatacommunities.org/doc/london-borough-council/redbridge","3BNONSCHFUND","Non-School Funding","6CCHILLOOKED","Children Looked After","REV","Revenue","R2238","Looked After Children Placements LA","05-THIRD","Third Party Payments","05H","Private contractors","6917","Fostering Costs - Agency","60362305","201811",03/01/2018 00:00:00,3339.01,"17020","Charities and Voluntary Organisations","REDACTED DATA","BARNARDOS (TANNERS LANE)","1227919","http://opencorporates.com/companies/gb/1227919","507477337"
"London Borough of Redbridge","http://opendatacommunities.org/doc/london-borough-council/redbridge","3BNONSCHFUND","Non-School Funding","6CCHILLOOKED","Children Looked After","REV","Revenue","R2238","Looked After Children Placements LA","05-THIRD","Third Party Payments","05H","Private contractors","6917","Fostering Costs - Agency","60362315","201811",03/01/2018 00:00:00,3339.01,"17020","Charities and Voluntary Organisations","REDACTED DATA","BARNARDOS (TANNERS LANE)","1227919","http://opencorporates.com/companies/gb/1227919","507477337"
"London Borough of Redbridge","http://opendatacommunities.org/doc/london-borough-council/redbridge","3BNONSCHFUND","Non-School Funding","6CCHILLOOKED","Children Looked After","REV","Revenue","R2238","Looked After Children Placements LA","05-THIRD","Third Party Payments","05H","Private contractors","6917","Fostering Costs - Agency","60362316","201811",03/01/2018 00:00:00,3339.01,"17020","Charities and Voluntary Organisations","REDACTED DATA","BARNARDOS (TANNERS LANE)","1227919","http://opencorporates.com/companies/gb/1227919","507477337"
"London Borough of Redbridge","http://opendatacommunities.org/doc/london-borough-council/redbridge","3BOPTIONHLDG","Optional Holding Accounts","3CADULT","Adult Education","REV","Revenue","R3490","RIAE   Home Cost Centre","04-SUPPLIES","Supplies And Services","04H","Grants and subscriptions","5950","Grants","3501877","201811",06/02/2018 00:00:00,3333.34,"17020","Charities and Voluntary Organisations","REDACTED DATA","WANSTEAD HOUSE COMMUNITY ASSCN","",,""
"London Borough of Redbridge","http://opendatacommunities.org/doc/london-borough-council/redbridge","4BMANGT&SUPP","Management & Support Services","4CHIGHRDROUT","Highways/Roads (Routine)","REV","Revenue","R7075","Drainage","05-THIRD","Third Party Payments","05H","Private contractors","6915","Contractor Payments","3502303","201811",14/02/2018 00:00:00,2777.6,"18632","Civil Engineers","REDACTED DATA","KENSON CONTRACTORS BENINGTON LTD","1314691","http://opencorporates.com/companies/gb/1314691","301629589"
"London Borough of Redbridge","http://opendatacommunities.org/doc/london-borough-council/redbridge","3BNONSCHFUND","Non-School Funding","3CYOUTH","Youth Service","REV","Revenue","R3478","Connexions","02-PREMISES","Premises","02B","Energy costs","4000","Electricity","80029016","201811",29/11/2016 00:00:00,2774.43,"39564","Gas Companies","REDACTED DATA","KENT COUNTY COUNCIL (GAS & ELECTRIC)","",,"204269191"
"London Borough of Redbridge","http://opendatacommunities.org/doc/london-borough-council/redbridge","6BADULTSOCIA","Adult Social Care","6CADLEARNDIS","Adults Under 65 with Learning Disabilities","REV","Revenue","R4188","LD - Residential Care","05-THIRD","Third Party Payments","05F","Voluntary associations","6802","Residential Homes","90926484","201811",23/01/2018 00:00:00,3650.28,"64710","Residential Care Homes","REDACTED DATA","ALYSON HOUSE RCH LTD","10311835","http://opencorporates.com/companies/gb/10311835",""
"London Borough of Redbridge","http://opendatacommunities.org/doc/london-borough-council/redbridge","6BADULTSOCIA","Adult Social Care","6CADLEARNDIS","Adults Under 65 with Learning Disabilities","REV","Revenue","R4188","LD - Residential Care","09-INCOME","Income","09C","Customer and Client Receipts","8555","Accommodation Charges","90926484","201811",23/01/2018 00:00:00,-323,"64710","Residential Care Homes","REDACTED DATA","ALYSON HOUSE RCH LTD","10311835","http://opencorporates.com/companies/gb/10311835",""
"London Borough of Redbridge","http://opendatacommunities.org/doc/london-borough-council/redbridge","3BINDSCHFUND","Individual School Funds","3CDELSECOND","Delegated Individual Secondary School Budgets","REV","Revenue","S3566","KING SOLOMON -  Reprographics","04-SUPPLIES","Supplies And Services","04A","Equipment, furniture and materials","5502","Equipment Purchase","60364127","201810",15/01/2018 00:00:00,2772.28,"47650","Leasing Services","REDACTED DATA","CF CORPORATE FINANCE LTD","5414774","http://opencorporates.com/companies/gb/5414774","480912639"
"London Borough of Redbridge","http://opendatacommunities.org/doc/london-borough-council/redbridge","6BADULTSOCIA","Adult Social Care","6CADMENHLTH","Adults Under 65 with Mental Health Needs","REV","Revenue","R4190","MH - Residential Care","05-THIRD","Third Party Payments","05F","Voluntary associations","6802","Residential Homes","90926393","201811",23/01/2018 00:00:00,3321.43,"64710","Residential Care Homes","REDACTED DATA","CARE LONDON LTD","7235608","http://opencorporates.com/companies/gb/7235608",""
"London Borough of Redbridge","http://opendatacommunities.org/doc/london-borough-council/redbridge","3BNONSCHFUND","Non-School Funding","6CCHILLOOKED","Children Looked After","REV","Revenue","R2239","Leaving care � Staying Put","04-SUPPLIES","Supplies And Services","04K","Miscellaneous expenses","6291","Staying Put - Agency","60361633","201811",01/08/2017 00:00:00,3321.34,"1880","Adoption and Fostering","REDACTED DATA","CAPSTONE FOSTER CARE (SOUTH EAST) LTD","4486203","http://opencorporates.com/companies/gb/4486203",""
"London Borough of Redbridge","http://opendatacommunities.org/doc/london-borough-council/redbridge","9BNONBVO","Outside the BVACOP Objective Structure","9CNONBVO","Outside the BVACOP Objective Structure","BAL","Balance Sheet","B0340","NNDR Hainualt Business Improvement District","99-NONBV","Capital, Balance Sheet and Control","50Q","Other Balances & Reserves","9912","Personal Account - Creditor","70098476","201811",04/12/2017 00:00:00,2761.74,"11905","Business Centres","REDACTED DATA","HAINAULT BUSINESS PARK","5804216","http://opencorporates.com/companies/gb/5804216",""
"London Borough of Redbridge","http://opendatacommunities.org/doc/london-borough-council/redbridge","6BADULTSOCIA","Adult Social Care","6CADMENHLTH","Adults Under 65 with Mental Health Needs","REV","Revenue","R4190","MH - Residential Care","05-THIRD","Third Party Payments","05F","Voluntary associations","6802","Residential Homes","90926753","201811",23/01/2018 00:00:00,3313.4,"64710","Residential Care Homes","REDACTED DATA","TEALK SERVICES LTD (THE BEECHES- ILFORD)","4203171","http://opencorporates.com/companies/gb/4203171",""
"London Borough of Redbridge","http://opendatacommunities.org/doc/london-borough-council/redbridge","1BOTHEROPI&E","Other Operating Income & Expenditure","1CTRADSURDEF","Trading Account Surpluses & Deficits","REV","Revenue","R9568","Corporate Landlord","04-SUPPLIES","Supplies And Services","04F","Communications and computing","5851","Computer Equipment - Purchases","60366007","201811",22/11/2017 00:00:00,2760,"20703","Computer Systems and Software","REDACTED DATA","TECHNOLOGY FORGE","2293004","http://opencorporates.com/companies/gb/2293004","492496307"
"London Borough of Redbridge","http://opendatacommunities.org/doc/london-borough-council/redbridge","6BADULTSOCIA","Adult Social Care","6CADLEARNDIS","Adults Under 65 with Learning Disabilities","REV","Revenue","R4185","LD - Supported Living","06-TRANSFER","Transfer Payments","06B","Social Services Clients","7066","Supportive Lodgings (Transfer Payments)","90926423","201811",23/01/2018 00:00:00,3311.33,"17020","Charities and Voluntary Organisations","REDACTED DATA","NORWOOD SCHOOLS LTD","516901","http://opencorporates.com/companies/gb/516901","629720917"
"London Borough of Redbridge","http://opendatacommunities.org/doc/london-borough-council/redbridge","6BADULTSOCIA","Adult Social Care","6COLDINCMENT","Older People (65 or over) incl. Older Mentally Ill","REV","Revenue","R4378","OP Residential","05-THIRD","Third Party Payments","05F","Voluntary associations","6802","Residential Homes","90926292","201811",23/01/2018 00:00:00,4544,"64710","Residential Care Homes","REDACTED DATA","ABBELEIGH HOUSE R.C.H","",,""
"London Borough of Redbridge","http://opendatacommunities.org/doc/london-borough-council/redbridge","6BADULTSOCIA","Adult Social Care","6COLDINCMENT","Older People (65 or over) incl. Older Mentally Ill","REV","Revenue","R4378","OP Residential","09-INCOME","Income","09C","Customer and Client Receipts","8555","Accommodation Charges","90926292","201811",23/01/2018 00:00:00,-1233.76,"64710","Residential Care Homes","REDACTED DATA","ABBELEIGH HOUSE R.C.H","",,""
"London Borough of Redbridge","http://opendatacommunities.org/doc/london-borough-council/redbridge","9BNONBVO","Outside the BVACOP Objective Structure","9CNONBVO","Outside the BVACOP Objective Structure","REV","Revenue","R5218","Responsive Repairs Team","04-SUPPLIES","Supplies And Services","04H","Grants and subscriptions","5954","Professional Fees","60366097","201811",07/02/2018 00:00:00,2758,"47830","Legal Services","REDACTED DATA","AECOM LIMITED","OC306911","http://opencorporates.com/companies/gb/OC306911","611853162"
"London Borough of Redbridge","http://opendatacommunities.org/doc/london-borough-council/redbridge","6BSOCIALSERV","Social Services","6CCHILLOOKED","Children Looked After","REV","Revenue","R2132","Asylum Seekers Non Grant Funded Accompanied","04-SUPPLIES","Supplies And Services","04K","Miscellaneous expenses","6930","Transitional (Under 18)","60366623","201811",01/02/2018 00:00:00,3305.71,"47846","Letting Agents","REDACTED DATA","GOLDEN CARE ESTATES","4756375","http://opencorporates.com/companies/gb/4756375","911917137"
"London Borough of Redbridge","http://opendatacommunities.org/doc/london-borough-council/redbridge","3BLEACENTFND","LEA Centrally Held School Funds","3CFACILIMPRO","Facilitating School Improvement","REV","Revenue","R3240","Advisers/Inspectors","01-EMPLOYEES","Employees","01A","Direct employee expenses","4","Agency Staff - Pay","60365858","201811",07/02/2018 00:00:00,2750,"31230","Employment and Recruitment Agencies","REDACTED DATA","TIMOTHY JAMES CONSULTING LTD","4934795","http://opencorporates.com/companies/gb/4934795","821965222"
"London Borough of Redbridge","http://opendatacommunities.org/doc/london-borough-council/redbridge","3BLEACENTFND","LEA Centrally Held School Funds","3CFACILIMPRO","Facilitating School Improvement","REV","Revenue","R3240","Advisers/Inspectors","01-EMPLOYEES","Employees","01A","Direct employee expenses","4","Agency Staff - Pay","60365857","201811",07/02/2018 00:00:00,2750,"31230","Employment and Recruitment Agencies","REDACTED DATA","TIMOTHY JAMES CONSULTING LTD","4934795","http://opencorporates.com/companies/gb/4934795","821965222"
"London Borough of Redbridge","http://opendatacommunities.org/doc/london-borough-council/redbridge","3BLEACENTFND","LEA Centrally Held School Funds","3CFACILIMPRO","Facilitating School Improvement","REV","Revenue","R3240","Advisers/Inspectors","01-EMPLOYEES","Employees","01A","Direct employee expenses","4","Agency Staff - Pay","60363969","201810",17/01/2018 00:00:00,2750,"31230","Employment and Recruitment Agencies","REDACTED DATA","TIMOTHY JAMES CONSULTING LTD","4934795","http://opencorporates.com/companies/gb/4934795","821965222"
"London Borough of Redbridge","http://opendatacommunities.org/doc/london-borough-council/redbridge","3BLEACENTFND","LEA Centrally Held School Funds","3CFACILIMPRO","Facilitating School Improvement","REV","Revenue","R3240","Advisers/Inspectors","01-EMPLOYEES","Employees","01A","Direct employee expenses","4","Agency Staff - Pay","60364609","201810",24/01/2018 00:00:00,2750,"31230","Employment and Recruitment Agencies","REDACTED DATA","TIMOTHY JAMES CONSULTING LTD","4934795","http://opencorporates.com/companies/gb/4934795","821965222"
"London Borough of Redbridge","http://opendatacommunities.org/doc/london-borough-council/redbridge","5BGFHOUSING","General Fund Housing","5CHOMELESS","Homelessness","REV","Revenue","R5630","HAC Temporary Accomodation","05-THIRD","Third Party Payments","05H","Private contractors","6900","Nightly Let Plus Charges","3500604","201811",01/02/2016 00:00:00,3299,"47846","Letting Agents","REDACTED DATA","THEORI HOUSING MANAGEMENT SERVICES LIMITED","4048450","http://opencorporates.com/companies/gb/4048450","773898950"
"London Borough of Redbridge","http://opendatacommunities.org/doc/london-borough-council/redbridge","3BLEACENTFND","LEA Centrally Held School Funds","3CFACILIMPRO","Facilitating School Improvement","REV","Revenue","R3240","Advisers/Inspectors","04-SUPPLIES","Supplies And Services","04K","Miscellaneous expenses","6280","Miscellaneous Expenditure","60366240","201811",31/01/2018 00:00:00,2745.6,"69240","Security Services","REDACTED DATA","CHARTER SECURITY PLC","1530957","http://opencorporates.com/companies/gb/1530957","342117968"
"London Borough of Redbridge","http://opendatacommunities.org/doc/london-borough-council/redbridge","6BADULTSOCIA","Adult Social Care","6CADLEARNDIS","Adults Under 65 with Learning Disabilities","REV","Revenue","R4188","LD - Residential Care","05-THIRD","Third Party Payments","05F","Voluntary associations","6802","Residential Homes","90926669","201811",23/01/2018 00:00:00,3617.56,"64710","Residential Care Homes","REDACTED DATA","OAKFIELD (EASTON MAUDIT) LTD","",,""
"London Borough of Redbridge","http://opendatacommunities.org/doc/london-borough-council/redbridge","6BADULTSOCIA","Adult Social Care","6CADLEARNDIS","Adults Under 65 with Learning Disabilities","REV","Revenue","R4188","LD - Residential Care","09-INCOME","Income","09C","Customer and Client Receipts","8555","Accommodation Charges","90926669","201811",23/01/2018 00:00:00,-323,"64710","Residential Care Homes","REDACTED DATA","OAKFIELD (EASTON MAUDIT) LTD","",,""
"London Borough of Redbridge","http://opendatacommunities.org/doc/london-borough-council/redbridge","9BNONBVO","Outside the BVACOP Objective Structure","9CNONBVO","Outside the BVACOP Objective Structure","REV","Revenue","R7703","Passenger Transport Unit","01-EMPLOYEES","Employees","01A","Direct employee expenses","409","Agency Staff Pay","664559","201811",07/02/2018 00:00:00,2736.09,"31230","Employment and Recruitment Agencies","REDACTED DATA","BERRY RECRUITMENT LTD","7036111","http://opencorporates.com/companies/gb/7036111","981989739"
"London Borough of Redbridge","http://opendatacommunities.org/doc/london-borough-council/redbridge","3BINDSCHFUND","Individual School Funds","3CDELSECOND","Delegated Individual Secondary School Budgets","REV","Revenue","S2203","TRINITY: CAPITAL: Privately Funded","99-NONBV","Capital, Balance Sheet and Control","99B","Accounting & Control","7409","Schools Capital New Construction, Conversion and Renovation","60365770","201811",16/01/2018 00:00:00,3283.2,"11040","Builders","REDACTED DATA","M & G CONSTRUCTION LTD.","1918880","http://opencorporates.com/companies/gb/1918880","406392853"
"London Borough of Redbridge","http://opendatacommunities.org/doc/london-borough-council/redbridge","3BNONSCHFUND","Non-School Funding","6CCHILLOOKED","Children Looked After","REV","Revenue","R2238","Looked After Children Placements LA","05-THIRD","Third Party Payments","05H","Private contractors","6917","Fostering Costs - Agency","60365495","201811",01/02/2017 00:00:00,3280,"1880","Adoption and Fostering","REDACTED DATA","FIVE RIVERS CHILD CARE LTD","4236028","http://opencorporates.com/companies/gb/4236028",""
"London Borough of Redbridge","http://opendatacommunities.org/doc/london-borough-council/redbridge","3BNONSCHFUND","Non-School Funding","6CCHILLOOKED","Children Looked After","REV","Revenue","R2238","Looked After Children Placements LA","05-THIRD","Third Party Payments","05H","Private contractors","6917","Fostering Costs - Agency","60365496","201811",01/02/2018 00:00:00,3280,"1880","Adoption and Fostering","REDACTED DATA","FIVE RIVERS CHILD CARE LTD","4236028","http://opencorporates.com/companies/gb/4236028",""
"London Borough of Redbridge","http://opendatacommunities.org/doc/london-borough-council/redbridge","4BMANGT&SUPP","Management & Support Services","4CHIGHRDROUT","Highways/Roads (Routine)","REV","Revenue","R7070","Reactive Maintenance","05-THIRD","Third Party Payments","05H","Private contractors","6915","Contractor Payments","3503250","201811",27/02/2018 00:00:00,2728.61,"18632","Civil Engineers","REDACTED DATA","KENSON CONTRACTORS BENINGTON LTD","1314691","http://opencorporates.com/companies/gb/1314691","301629589"
"London Borough of Redbridge","http://opendatacommunities.org/doc/london-borough-council/redbridge","6BADULTSOCIA","Adult Social Care","6CADLEARNDIS","Adults Under 65 with Learning Disabilities","REV","Revenue","R4188","LD - Residential Care","05-THIRD","Third Party Payments","05F","Voluntary associations","6802","Residential Homes","90926734","201811",23/01/2018 00:00:00,3649.88,"64710","Residential Care Homes","REDACTED DATA","ST ELIZABETH'S CENTRE","3492921","http://opencorporates.com/companies/gb/3492921","216707373"
"London Borough of Redbridge","http://opendatacommunities.org/doc/london-borough-council/redbridge","6BADULTSOCIA","Adult Social Care","6CADLEARNDIS","Adults Under 65 with Learning Disabilities","REV","Revenue","R4188","LD - Residential Care","09-INCOME","Income","09C","Customer and Client Receipts","8555","Accommodation Charges","90926734","201811",23/01/2018 00:00:00,-378.6,"64710","Residential Care Homes","REDACTED DATA","ST ELIZABETH'S CENTRE","3492921","http://opencorporates.com/companies/gb/3492921","216707373"
"London Borough of Redbridge","http://opendatacommunities.org/doc/london-borough-council/redbridge","6BADULTSOCIA","Adult Social Care","6CADLEARNDIS","Adults Under 65 with Learning Disabilities","REV","Revenue","R4218","LD Individual Budgets","06-TRANSFER","Transfer Payments","06B","Social Services Clients","7053","Direct Payments","3501269","201811",07/02/2018 00:00:00,3303.12,"90005","Home Care Services DP","REDACTED DATA","REDACTED DATA","",,""
"London Borough of Redbridge","http://opendatacommunities.org/doc/london-borough-council/redbridge","6BADULTSOCIA","Adult Social Care","6CADLEARNDIS","Adults Under 65 with Learning Disabilities","REV","Revenue","R4218","LD Individual Budgets","09-INCOME","Income","09C","Customer and Client Receipts","8545","Direct Payments Income","3501269","201811",07/02/2018 00:00:00,-37.04,"90005","Home Care Services DP","REDACTED DATA","REDACTED DATA","",,""
"London Borough of Redbridge","http://opendatacommunities.org/doc/london-borough-council/redbridge","9BNONBVO","Outside the BVACOP Objective Structure","9CNONBVO","Outside the BVACOP Objective Structure","CAP","Capital","C4296","Gearies permanent expansion","99-NONBV","Capital, Balance Sheet and Control","50E","Capital - Contract Payments","9163","Main Building / structure","60365214","201811",31/01/2018 00:00:00,2720,"11560","Buildings - Sectional and Portable","REDACTED DATA","BOYTON BRJ SYSTEM BUILDINGS LTD","56056","http://opencorporates.com/companies/gb/56056","382187534"
"London Borough of Redbridge","http://opendatacommunities.org/doc/london-borough-council/redbridge","6BADULTSOCIA","Adult Social Care","6CADLEARNDIS","Adults Under 65 with Learning Disabilities","REV","Revenue","R4215","LD Direct Payments","06-TRANSFER","Transfer Payments","06B","Social Services Clients","7053","Direct Payments","3501084","201811",07/02/2018 00:00:00,3257.52,"90005","Home Care Services DP","REDACTED DATA","REDACTED DATA","",,""
"London Borough of Redbridge","http://opendatacommunities.org/doc/london-borough-council/redbridge","9BNONBVO","Outside the BVACOP Objective Structure","9CNONBVO","Outside the BVACOP Objective Structure","CAP","Capital","C1053","IT Modernisation-End Point Computing Refresh (CAPITAL)","99-NONBV","Capital, Balance Sheet and Control","50B","Capital - Contracted Works","9094","ICT","60364122","201811",17/01/2018 00:00:00,2714,"20703","Computer Systems and Software","REDACTED DATA","STONE COMPUTERS","2658501","http://opencorporates.com/companies/gb/2658501","747878857"
"London Borough of Redbridge","http://opendatacommunities.org/doc/london-borough-council/redbridge","3BNONSCHFUND","Non-School Funding","6CCHILLOOKED","Children Looked After","REV","Revenue","R2238","Looked After Children Placements LA","05-THIRD","Third Party Payments","05H","Private contractors","6917","Fostering Costs - Agency","60365664","201811",31/01/2018 00:00:00,3255,"1880","Adoption and Fostering","REDACTED DATA","NATIONAL FOSTERING AGENCY","3127814","http://opencorporates.com/companies/gb/3127814","673006159"
"London Borough of Redbridge","http://opendatacommunities.org/doc/london-borough-council/redbridge","3BNONSCHFUND","Non-School Funding","6CCHILLOOKED","Children Looked After","REV","Revenue","R2238","Looked After Children Placements LA","05-THIRD","Third Party Payments","05H","Private contractors","6917","Fostering Costs - Agency","60365627","201811",31/01/2018 00:00:00,3255,"1880","Adoption and Fostering","REDACTED DATA","NATIONAL FOSTERING AGENCY","3127814","http://opencorporates.com/companies/gb/3127814","673006159"
"London Borough of Redbridge","http://opendatacommunities.org/doc/london-borough-council/redbridge","6BSOCIALSERV","Social Services","4CMANGT&SUPP","Management & Support Services","REV","Revenue","R2150","CQ and F - Training","01-EMPLOYEES","Employees","01B","Indirect employee expenses","2403","External Training","60366539","201811",13/02/2018 00:00:00,2700,"79980","Training Services","REDACTED DATA","SAM TARLING CONSULTANCY  LTD","8099157","http://opencorporates.com/companies/gb/8099157","136697084"
"London Borough of Redbridge","http://opendatacommunities.org/doc/london-borough-council/redbridge","9BNONBVO","Outside the BVACOP Objective Structure","9CNONBVO","Outside the BVACOP Objective Structure","REV","Revenue","R7651","Grounds-Administration","05-THIRD","Third Party Payments","05H","Private contractors","6914","Sub-Contractors","60365407","201811",29/01/2018 00:00:00,2700,"39351","Gardening Services","REDACTED DATA","BUSH WHEELER SERVICES LTD","2927425033","http://opencorporates.com/companies/gb/2927425033","830604067"
"London Borough of Redbridge","http://opendatacommunities.org/doc/london-borough-council/redbridge","6BADULTSOCIA","Adult Social Care","6CADLEARNDIS","Adults Under 65 with Learning Disabilities","REV","Revenue","R4188","LD - Residential Care","05-THIRD","Third Party Payments","05F","Voluntary associations","6802","Residential Homes","90926748","201811",23/01/2018 00:00:00,3629.84,"64710","Residential Care Homes","REDACTED DATA","TEALK SERVICES LTD (THE BEECHES- ILFORD)","4203171","http://opencorporates.com/companies/gb/4203171",""
"London Borough of Redbridge","http://opendatacommunities.org/doc/london-borough-council/redbridge","6BADULTSOCIA","Adult Social Care","6CADLEARNDIS","Adults Under 65 with Learning Disabilities","REV","Revenue","R4188","LD - Residential Care","09-INCOME","Income","09C","Customer and Client Receipts","8555","Accommodation Charges","90926748","201811",23/01/2018 00:00:00,-391,"64710","Residential Care Homes","REDACTED DATA","TEALK SERVICES LTD (THE BEECHES- ILFORD)","4203171","http://opencorporates.com/companies/gb/4203171",""
"London Borough of Redbridge","http://opendatacommunities.org/doc/london-borough-council/redbridge","6BADULTSOCIA","Adult Social Care","6CADLEARNDIS","Adults Under 65 with Learning Disabilities","REV","Revenue","R4218","LD Individual Budgets","06-TRANSFER","Transfer Payments","06B","Social Services Clients","7053","Direct Payments","3501313","201811",07/02/2018 00:00:00,3351.24,"90005","Home Care Services DP","REDACTED DATA","REDACTED DATA","",,""
"London Borough of Redbridge","http://opendatacommunities.org/doc/london-borough-council/redbridge","6BADULTSOCIA","Adult Social Care","6CADLEARNDIS","Adults Under 65 with Learning Disabilities","REV","Revenue","R4218","LD Individual Budgets","09-INCOME","Income","09C","Customer and Client Receipts","8545","Direct Payments Income","3501313","201811",07/02/2018 00:00:00,-113,"90005","Home Care Services DP","REDACTED DATA","REDACTED DATA","",,""
"London Borough of Redbridge","http://opendatacommunities.org/doc/london-borough-council/redbridge","6BADULTSOCIA","Adult Social Care","6CADLEARNDIS","Adults Under 65 with Learning Disabilities","REV","Revenue","R4188","LD - Residential Care","05-THIRD","Third Party Payments","05F","Voluntary associations","6802","Residential Homes","90926749","201811",23/01/2018 00:00:00,3771.72,"64710","Residential Care Homes","REDACTED DATA","TEALK SERVICES LTD (THE BEECHES- ILFORD)","4203171","http://opencorporates.com/companies/gb/4203171",""
"London Borough of Redbridge","http://opendatacommunities.org/doc/london-borough-council/redbridge","6BADULTSOCIA","Adult Social Care","6CADLEARNDIS","Adults Under 65 with Learning Disabilities","REV","Revenue","R4188","LD - Residential Care","09-INCOME","Income","09C","Customer and Client Receipts","8555","Accommodation Charges","90926749","201811",23/01/2018 00:00:00,-537.8,"64710","Residential Care Homes","REDACTED DATA","TEALK SERVICES LTD (THE BEECHES- ILFORD)","4203171","http://opencorporates.com/companies/gb/4203171",""
"London Borough of Redbridge","http://opendatacommunities.org/doc/london-borough-council/redbridge","3BNONSCHFUND","Non-School Funding","6CCHILLOOKED","Children Looked After","REV","Revenue","R2238","Looked After Children Placements LA","05-THIRD","Third Party Payments","05H","Private contractors","6917","Fostering Costs - Agency","60359194","201811",03/11/2017 00:00:00,3231.3,"17020","Charities and Voluntary Organisations","REDACTED DATA","BARNARDOS (TANNERS LANE)","1227919","http://opencorporates.com/companies/gb/1227919","507477337"
"London Borough of Redbridge","http://opendatacommunities.org/doc/london-borough-council/redbridge","3BNONSCHFUND","Non-School Funding","6CCHILLOOKED","Children Looked After","REV","Revenue","R2238","Looked After Children Placements LA","05-THIRD","Third Party Payments","05H","Private contractors","6917","Fostering Costs - Agency","60359195","201811",03/11/2017 00:00:00,3231.3,"17020","Charities and Voluntary Organisations","REDACTED DATA","BARNARDOS (TANNERS LANE)","1227919","http://opencorporates.com/companies/gb/1227919","507477337"
"London Borough of Redbridge","http://opendatacommunities.org/doc/london-borough-council/redbridge","6BADULTSOCIA","Adult Social Care","6CADMENHLTH","Adults Under 65 with Mental Health Needs","REV","Revenue","R4190","MH - Residential Care","05-THIRD","Third Party Payments","05F","Voluntary associations","6802","Residential Homes","90926472","201811",23/01/2018 00:00:00,3224.13,"42200","Health Authorities","REDACTED DATA","NORTH EAST LONDON NHS FOUNDATION TRUST","",,"654404447"
